Local authority department which incurred the expenditure,Service Division,Summary of the Purpose of Expenditure,Expense Type,Detailed Expense Type,Date of Transaction,Beneficiary,Merchant Category,Gross Amount,VAT,Net Amount
Children and Adult Services,Education,Selby Cottage Childcare Centre,Supplies and Services,Provisions,01-Apr-2016,TESCO STORES 2278,Catering costs - provisions,33.08,0.00,33.08
Children and Adult Services,Education,Selby Cottage Childcare Centre,Supplies and Services,Clothing Uniforms and Laundry,01-Apr-2016,POUNDLAND LTD 1330,Clothing uniforms and laundry,8.05,1.34,6.71
Children and Adult Services,Education,Selby Cottage Childcare Centre,Supplies and Services,Equipment and Materials,01-Apr-2016,WILKO RETAIL LIMIT,Equipment-purchase and rental,17.85,0.00,17.85
Children and Adult Services,Education,Shildon Childcare,Supplies and Services,Equipment and Materials,01-Apr-2016,B & M RETAIL,Toys,12.99,0.00,12.99
Children and Adult Services,Childrens Services,Secure Management,Supplies and Services,Provisions,01-Apr-2016,TESCO STORES 6329,Catering costs - provisions,81.39,0.00,81.39
Neighbourhood Services,Culture & Sport,Wellbeing4Life,Supplies and Services,Provisions,01-Apr-2016,ASDA SUPERSTORE,Catering costs - provisions,13.29,0.00,13.29
Neighbourhood Services,Direct Services,C&G - South Grounds Maintenance,Supplies and Services,Equipment and Materials,01-Apr-2016,SCREWFIX,Equipment-purchase and rental,10.99,1.83,9.16
Neighbourhood Services,Direct Services,C&G - South Grounds Maintenance,Supplies and Services,Equipment and Materials,01-Apr-2016,SCREWFIX,Equipment-purchase and rental,69.95,11.66,58.29
Neighbourhood Services,Direct Services,Catering - County Hall Restaurant,Supplies and Services,Provisions,01-Apr-2016,JR HOLLAND FOODSERVICE,Catering costs - provisions,25.45,0.00,25.45
Neighbourhood Services,Direct Services,Catering - County Hall Restaurant,Supplies and Services,Provisions,01-Apr-2016,JR HOLLAND FOODSERVICE,Catering costs - provisions,16.53,0.00,16.53
Neighbourhood Services,Direct Services,Catering - County Hall Restaurant,Supplies and Services,Provisions,01-Apr-2016,JR HOLLAND FOODSERVICE,Catering costs - provisions,13.16,0.00,13.16
Neighbourhood Services,Culture & Sport,Bp Auckland Town Hall Library,Supplies and Services,Provisions,01-Apr-2016,ASDA STORES,Catering costs - provisions,28.89,0.00,28.89
Children and Adult Services,Childrens Services,Durham 0 - 5,Supplies and Services,Newspapers Books and Periodicals,01-Apr-2016,"Amazon Svcs Europe,SAR",Books-school library,12.29,0.00,12.29
Children and Adult Services,Childrens Services,Durham 0 - 5,Supplies and Services,Newspapers Books and Periodicals,01-Apr-2016,Amazon UK Marketplace,Books-school library,7.38,0.00,7.38
Children and Adult Services,Childrens Services,Durham 0 - 5,Supplies and Services,Newspapers Books and Periodicals,01-Apr-2016,Amazon UK Marketplace,Books-school library,11.49,0.00,11.49
Neighbourhood Services,Culture & Sport,Office Services,Supplies and Services,Equipment and Materials,01-Apr-2016,GOOGLE ADWS2420292471,Misc equipment tools and materials,16.77,0.00,16.77
Children and Adult Services,Childrens Services,Walworth,Supplies and Services,Newspapers Books and Periodicals,01-Apr-2016,Amazon UK Marketplace,Books-school library,15.28,0.00,15.28
Children and Adult Services,Childrens Services,Walworth,Supplies and Services,Newspapers Books and Periodicals,01-Apr-2016,Amazon UK Marketplace,Books-school library,12.09,0.00,12.09
Neighbourhood Services,Culture & Sport,Hardwick Park Catering,Supplies and Services,Provisions,01-Apr-2016,JR HOLLAND FOODSERVICE,Catering costs - provisions,8.32,0.00,8.32
Neighbourhood Services,Culture & Sport,Hardwick Park Catering,Supplies and Services,Provisions,01-Apr-2016,JR HOLLAND FOODSERVICE,Catering costs - provisions,4.48,0.00,4.48
Neighbourhood Services,Culture & Sport,Hardwick Park Catering,Supplies and Services,Provisions,01-Apr-2016,BRAKE BROS LTD,Catering costs - provisions,381.90,63.65,318.25
Neighbourhood Services,Culture & Sport,Hardwick Park Catering,Supplies and Services,Provisions,01-Apr-2016,BRAKE BROS LTD,Catering costs - provisions,404.44,,404.44
Neighbourhood Services,Culture & Sport,Hardwick Park Catering,Supplies and Services,Provisions,01-Apr-2016,BRAKE BROS LTD,Catering costs - provisions,146.34,24.39,121.95
Neighbourhood Services,Culture & Sport,Hardwick Park Catering,Supplies and Services,Provisions,01-Apr-2016,BRAKE BROS LTD,Catering costs - provisions,90.59,,90.59
Resources,I.C.T. Services,Operations - System & Repairs Trading,Supplies and Services,Computers and Communications,01-Apr-2016,THE REPLACE BASE LTD,Computer hardware,15.00,2.50,12.50
Resources,I.C.T. Services,Operations - System & Repairs Trading,Supplies and Services,Computers and Communications,01-Apr-2016,THE REPLACE BASE LTD,Computer hardware,1.30,,1.30
Neighbourhood Services,Direct Services,Catering - Green Lane Canteen,Supplies and Services,Provisions,01-Apr-2016,JR HOLLAND FOODSERVICE,Catering costs - provisions,20.13,0.00,20.13
Children and Adult Services,Childrens Services,Coxhoe Satelite Home,Supplies and Services,Clothing Uniforms and Laundry,01-Apr-2016,THE RANGE,Clothing uniforms and laundry,4.00,0.00,4.00
Neighbourhood Services,Direct Services,Gas Servicing and Repairs,Supplies and Services,Subscriptions,01-Apr-2016,GAS SAFE REGISTER,Subscriptions,"1,987.20",331.20,1656.00
Children and Adult Services,Childrens Services,Coxhoe Satelite Home,Supplies and Services,Provisions,01-Apr-2016,ASDA SUPERSTORE 4987,Catering costs - provisions,72.38,0.00,72.38
Neighbourhood Services,Culture & Sport,Wellbeing4Life,Supplies and Services,Provisions,01-Apr-2016,TESCO STORES 2916,Catering costs - provisions,16.00,0.00,16.00
Resources,I.C.T. Services,Applications and Development,Supplies and Services,Computers and Communications,01-Apr-2016,TELERIK,Computer hardware,340.40,0.00,340.40
Neighbourhood Services,Direct Services,Catering - Service Direct,Supplies and Services,Provisions,01-Apr-2016,JR HOLLAND FOODSERVICE,Catering costs - provisions,43.28,0.00,43.28
Neighbourhood Services,Direct Services,Catering - Service Direct,Supplies and Services,Provisions,01-Apr-2016,JR HOLLAND FOODSERVICE,Catering costs - provisions,9.87,0.00,9.87
Resources,Financial Services,Purchasing,Supplies and Services,Services,01-Apr-2016,DJMEDICAL,Medical fees,395.98,66.00,329.98
Neighbourhood Services,Culture & Sport,Woodhouse Close Leisure Complex,Supplies and Services,Provisions,01-Apr-2016,BRAKE BROS LTD,Catering costs - provisions,107.85,0.00,107.85
Neighbourhood Services,Culture & Sport,Locality 2 Team Management,Supplies and Services,Provisions,01-Apr-2016,ASDA SUPERSTORE 4987,Catering costs - provisions,9.50,0.00,9.50
Children and Adult Services,Education,Selby Cottage Childcare Centre,Supplies and Services,Miscellaneous Expenses,02-Apr-2016,HOBBYCRAFT,Other expenses,23.97,0.00,23.97
Children and Adult Services,Childrens Services,Secure Management,Supplies and Services,Provisions,02-Apr-2016,TESCO STORES 6329,Catering costs - provisions,122.93,0.00,122.93
Regeneration & Economic Development,Economic Development and Housing,Business Growth and Innovation General,Supplies and Services,Equipment and Materials,02-Apr-2016,ADOBE CREATIVE CLOUD,Other consumables,45.73,7.62,38.11
Regeneration & Economic Development,Economic Development and Housing,Business Growth and Innovation General,Supplies and Services,Newspapers Books and Periodicals,02-Apr-2016,FASTHOSTS INTERNET,Books-school library,59.99,10.00,49.99
Children and Adult Services,Childrens Services,Durham 0 - 5,Supplies and Services,Newspapers Books and Periodicals,02-Apr-2016,Amazon UK Marketplace,Books-school library,2.57,0.00,2.57
Children and Adult Services,Childrens Services,Durham 0 - 5,Supplies and Services,Newspapers Books and Periodicals,02-Apr-2016,Amazon UK Marketplace,Books-school library,48.79,0.00,48.79
Neighbourhood Services,Culture & Sport,Office Services,Supplies and Services,Advertising,02-Apr-2016,TWITTER ADVERTISING,Advertising other than for staff,42.00,0.00,42.00
Children and Adult Services,Childrens Services,Coxhoe Satelite Home,Supplies and Services,Newspapers Books and Periodicals,02-Apr-2016,Amazon UK Marketplace,Books-school library,2.19,0.00,2.19
Neighbourhood Services,Culture & Sport,Events,Supplies and Services,Newspapers Books and Periodicals,02-Apr-2016,Amazon EU,Books-school library,66.06,0.00,66.06
Regeneration & Economic Development,Economic Development and Housing,Client Travel Reimbursements,Transport,Public Transport,03-Apr-2016,NATIONAL EXPRESS LIMIT,Travel-clients/students/children,65.70,0.00,65.70
Neighbourhood Services,Culture & Sport,Office Services,Supplies and Services,Advertising,03-Apr-2016,TWITTER ADVERTISING,Advertising other than for staff,6.00,0.00,6.00
Resources,I.C.T. Services,Operations - System & Repairs Trading,Supplies and Services,Computers and Communications,03-Apr-2016,Amazon UK Marketplace,Computer hardware,12.82,0.00,12.82
Resources,Resources Management,Resources Management,Supplies and Services,Provisions,03-Apr-2016,CO-OP GROUP 010830,Catering costs - provisions,13.87,0.00,13.87
Children and Adult Services,Childrens Services,Durham and Chester Le Street Locality,Supplies and Services,Clothing Uniforms and Laundry,03-Apr-2016,ARGOS LTD,Clothing uniforms and laundry,79.98,0.00,79.98
Dedicated Schools Grant,Dedicated Schools Grant,Part Sighted-Belmont Comp,Supplies and Services,Equipment and Materials,03-Apr-2016,Audible Ltd,Misc equipment tools and materials,7.99,0.00,7.99
Children and Adult Services,Childrens Services,LAC & Permanence Team 1 Aycliffe,Employees,Recruitment Instruction and Training,03-Apr-2016,PREMIER INN,Training-all costs,-295.00,0.00,-295.00
Resources,I.C.T. Services,Applications and Development,Supplies and Services,Computers and Communications,04-Apr-2016,TELERIK,Computer hardware,9.36,0.00,9.36
Neighbourhood Services,Culture & Sport,Hardwick Park Catering,Supplies and Services,Printing Stationery and Gen Off Exps,04-Apr-2016,Amazon UK Marketplace,Administrative stationery etc,42.97,0.00,42.97
Children and Adult Services,Education,Selby Cottage Childcare Centre,Supplies and Services,Provisions,04-Apr-2016,TESCO STORES 2278,Catering costs - provisions,23.05,0.00,23.05
Children and Adult Services,Education,Shildon Childcare,Income,Fees and Charges,04-Apr-2016,WWW.MONEYCLAIM.GOV,Fees-legal,105.00,0.00,105.00
Children and Adult Services,Childrens Services,Bishop Auckland 0 - 5,Supplies and Services,Provisions,04-Apr-2016,TESCO STORES 6329,Catering costs - provisions,31.28,0.00,31.28
Children and Adult Services,Education,Shildon Childcare,Supplies and Services,Provisions,04-Apr-2016,ASDA HOME SHOPPING,Catering costs - provisions,31.33,0.00,31.33
Children and Adult Services,Education,Shildon Childcare,Supplies and Services,Provisions,04-Apr-2016,ASDA HOME SHOPPING,Catering costs - provisions,0.01,0.00,0.01
Neighbourhood Services,Direct Services,C&G - South Street Cleansing,Transport,Running Costs of Vehicles,04-Apr-2016,SNOWBALLS (RAILWAY,Vehicle running expenses,81.34,13.56,67.78
Children and Adult Services,Childrens Services,9 Cedar Drive Aycliffe,Supplies and Services,Provisions,04-Apr-2016,ASDA SUPERSTORE 4987,Catering costs - provisions,28.13,0.00,28.13
Neighbourhood Services,Direct Services,Catering - County Hall Restaurant,Supplies and Services,Provisions,04-Apr-2016,BRAMBLES FOODS LTD,Catering costs - provisions,367.98,0.00,367.98
Neighbourhood Services,Direct Services,Catering - County Hall Restaurant,Supplies and Services,Provisions,04-Apr-2016,FREEMAN CATERING BUTCH,Catering costs - provisions,89.98,0.00,89.98
Neighbourhood Services,Direct Services,Catering - County Hall Restaurant,Supplies and Services,Provisions,04-Apr-2016,FREEMAN CATERING BUTCH,Catering costs - provisions,9.96,0.00,9.96
Neighbourhood Services,Direct Services,Catering - County Hall Restaurant,Supplies and Services,Provisions,04-Apr-2016,JR HOLLAND FOODSERVICE,Catering costs - provisions,30.66,0.00,30.66
Neighbourhood Services,Direct Services,Catering - County Hall Restaurant,Supplies and Services,Provisions,04-Apr-2016,JR HOLLAND FOODSERVICE,Catering costs - provisions,13.52,0.00,13.52
Neighbourhood Services,Direct Services,Catering - County Hall Restaurant,Supplies and Services,Provisions,04-Apr-2016,BRAKE BROS LTD,Catering costs - provisions,239.08,0.00,239.08
Neighbourhood Services,Culture & Sport,Gala Theatre - Catering etc,Supplies and Services,Provisions,04-Apr-2016,FREEMAN CATERING BUTCH,Catering costs - provisions,22.05,0.00,22.05
Neighbourhood Services,Culture & Sport,Gala Theatre - Catering etc,Supplies and Services,Provisions,04-Apr-2016,JR HOLLAND FOODSERVICE,Catering costs - provisions,72.05,0.00,72.05
Children and Adult Services,Childrens Services,LAC & Permanence Team 1 Aycliffe,Supplies and Services,Equipment and Materials,04-Apr-2016,HM PASSPORT,Equipment-purchase and rental,90.00,0.00,90.00
Neighbourhood Services,Culture & Sport,Hardwick Park Catering,Supplies and Services,Provisions,04-Apr-2016,FREEMAN CATERING BUTCH,Catering costs - provisions,22.54,0.00,22.54
Neighbourhood Services,Culture & Sport,Hardwick Park Catering,Supplies and Services,Provisions,04-Apr-2016,JR HOLLAND FOODSERVICE,Catering costs - provisions,33.30,0.00,33.30
Neighbourhood Services,Culture & Sport,Hardwick Park Catering,Supplies and Services,Provisions,04-Apr-2016,JR HOLLAND FOODSERVICE,Catering costs - provisions,4.16,0.00,4.16
Neighbourhood Services,Culture & Sport,Hardwick Park Catering,Supplies and Services,Provisions,04-Apr-2016,BRAKE BROS LTD,Catering costs - provisions,113.22,18.87,94.35
Neighbourhood Services,Culture & Sport,Hardwick Park Catering,Supplies and Services,Provisions,04-Apr-2016,BRAKE BROS LTD,Catering costs - provisions,123.72,,123.72
Resources,I.C.T. Services,Operations - System & Repairs Trading,Supplies and Services,Computers and Communications,04-Apr-2016,Amazon UK Marketplace,Computer hardware,25.90,0.00,25.90
Resources,I.C.T. Services,Business Support,Supplies and Services,Equipment and Materials,04-Apr-2016,CAPITA GAS,Equipment-purchase and rental,182.40,30.40,152.00
Neighbourhood Services,Direct Services,Catering - Green Lane Canteen,Supplies and Services,Provisions,04-Apr-2016,BRAMBLES FOODS LTD,Catering costs - provisions,61.66,0.00,61.66
Neighbourhood Services,Direct Services,Catering - Green Lane Canteen,Supplies and Services,Provisions,04-Apr-2016,FREEMAN CATERING BUTCH,Catering costs - provisions,52.04,0.00,52.04
Resources,Financial Services,Collections,Employees,Recruitment Instruction and Training,04-Apr-2016,IRRV,Training-all costs,337.66,0.00,337.66
Regeneration & Economic Development,Economic Development and Housing,Employability - Youth Contract,Supplies and Services,Equipment and Materials,04-Apr-2016,B&Q DIRECT,Equipment-purchase and rental,84.00,14.00,70.00
Children and Adult Services,Childrens Services,Coxhoe Satelite Home,Supplies and Services,Newspapers Books and Periodicals,04-Apr-2016,Amazon UK Marketplace,Books-school library,4.64,0.00,4.64
Regeneration & Economic Development,Transport and Contracted Services,Traffic,Supplies and Services,Newspapers Books and Periodicals,04-Apr-2016,STATIONERY OFFICE BOOK,Newspapers books and periodicals,325.00,0.00,325.00
Neighbourhood Services,Culture & Sport,Bp Auckland Town Hall Cafe,Supplies and Services,Provisions,04-Apr-2016,BRAMBLES FOODS LTD,Catering costs - provisions,61.29,0.00,61.29
Neighbourhood Services,Culture & Sport,Bp Auckland Town Hall Cafe,Supplies and Services,Provisions,04-Apr-2016,BRAKE BROS LTD,Catering costs - provisions,57.60,0.00,57.60
Neighbourhood Services,Culture & Sport,Bp Auckland Town Hall Cafe,Supplies and Services,Provisions,04-Apr-2016,BRAKE BROS LTD,Catering costs - provisions,48.38,0.00,48.38
Neighbourhood Services,Direct Services,Catering - Service Direct,Supplies and Services,Provisions,04-Apr-2016,BRAMBLES FOODS LTD,Catering costs - provisions,33.68,0.00,33.68
Neighbourhood Services,Culture & Sport,Woodhouse Close Leisure Complex,Supplies and Services,Provisions,04-Apr-2016,JR HOLLAND FOODSERVICE,Catering costs - provisions,32.85,0.00,32.85
Neighbourhood Services,Culture & Sport,Woodhouse Close Leisure Complex,Supplies and Services,Provisions,04-Apr-2016,BRAKE BROS LTD,Catering costs - provisions,71.69,0.00,71.69
Children and Adult Services,Childrens Services,TTF-Attachment and Results,Supplies and Services,Furniture,04-Apr-2016,ARGOS RETAIL GROUP,Furniture repair and replacement,98.94,0.00,98.94
Regeneration & Economic Development,Economic Development and Housing,Business Growth and Innovation General,Supplies and Services,Equipment and Materials,04-Apr-2016,MEETEDGAR.COM STARTER,Other consumables,34.54,0.00,34.54
Regeneration & Economic Development,Economic Development and Housing,Business Growth and Innovation General,Supplies and Services,Miscellaneous Expenses,05-Apr-2016,WWW.SMMT.CO.UK,Other expenses,60.00,10.00,50.00
Neighbourhood Services,Direct Services,Catering - County Hall Restaurant,Supplies and Services,Provisions,05-Apr-2016,JR HOLLAND FOODSERVICE,Catering costs - provisions,34.08,0.00,34.08
Neighbourhood Services,Direct Services,Catering - County Hall Restaurant,Supplies and Services,Provisions,05-Apr-2016,JR HOLLAND FOODSERVICE,Catering costs - provisions,8.18,0.00,8.18
Neighbourhood Services,Direct Services,Catering - County Hall Restaurant,Supplies and Services,Provisions,05-Apr-2016,JR HOLLAND FOODSERVICE,Catering costs - provisions,4.76,0.00,4.76
Neighbourhood Services,Direct Services,Catering - County Hall Restaurant,Supplies and Services,Provisions,05-Apr-2016,JR HOLLAND FOODSERVICE,Catering costs - provisions,4.16,0.00,4.16
Neighbourhood Services,Culture & Sport,Gala Theatre - Catering etc,Supplies and Services,Provisions,05-Apr-2016,BRAKE BROS LTD,Catering costs - provisions,158.04,26.34,131.70
Neighbourhood Services,Culture & Sport,Gala Theatre - Catering etc,Supplies and Services,Provisions,05-Apr-2016,BRAKE BROS LTD,Catering costs - provisions,298.59,,298.59
Children and Adult Services,Childrens Services,Framwellgate Moor CU,Supplies and Services,Provisions,05-Apr-2016,ASDA HOME SHOPPING,Catering costs - provisions,118.92,0.00,118.92
Children and Adult Services,Childrens Services,High Etherley Satelite Home,Supplies and Services,Provisions,05-Apr-2016,TESCO STORES 6329,Catering costs - provisions,99.76,0.00,99.76
Neighbourhood Services,Direct Services,C&G - North Grounds Maintenance,Supplies and Services,Equipment and Materials,05-Apr-2016,HARELAW SAWMILL,Equipment-purchase and rental,80.70,13.45,67.25
Children and Adult Services,Childrens Services,Secure Management,Supplies and Services,Clothing Uniforms and Laundry,05-Apr-2016,ARGOS RETAIL GROUP,Clothing uniforms and laundry,24.99,0.00,24.99
Children and Adult Services,Childrens Services,Secure Management,Supplies and Services,Clothing Uniforms and Laundry,05-Apr-2016,WWW.FOOTASYLUM.COM,Clothing uniforms and laundry,79.98,0.00,79.98
Neighbourhood Services,Culture & Sport,Hardwick Park Catering,Supplies and Services,Provisions,05-Apr-2016,JR HOLLAND FOODSERVICE,Catering costs - provisions,78.68,0.00,78.68
Neighbourhood Services,Culture & Sport,Hardwick Park Catering,Supplies and Services,Provisions,05-Apr-2016,JR HOLLAND FOODSERVICE,Catering costs - provisions,60.83,0.00,60.83
Neighbourhood Services,Culture & Sport,Hardwick Park Catering,Supplies and Services,Provisions,05-Apr-2016,BRAKE BROS LTD,Catering costs - provisions,-19.44,0.00,-19.44
Neighbourhood Services,Direct Services,Catering - Green Lane Canteen,Supplies and Services,Provisions,05-Apr-2016,BRAKE BROS LTD,Catering costs - provisions,43.74,7.29,36.45
Neighbourhood Services,Direct Services,Catering - Green Lane Canteen,Supplies and Services,Provisions,05-Apr-2016,BRAKE BROS LTD,Catering costs - provisions,63.95,,63.95
Neighbourhood Services,Direct Services,Gas Servicing and Repairs,Supplies and Services,Equipment and Materials,05-Apr-2016,WWW.CORGI-DIRECT.COM,Direct materials,180.00,30.00,150.00
Children and Adult Services,Childrens Services,Coxhoe Satelite Home,Supplies and Services,Provisions,05-Apr-2016,ASDA SUPERSTORE 4987,Catering costs - provisions,58.79,0.00,58.79
Children and Adult Services,Childrens Services,Coxhoe Satelite Home,Supplies and Services,Provisions,05-Apr-2016,ASDA SUPERSTORE 4987,Catering costs - provisions,30.12,0.00,30.12
Resources,I.C.T. Services,Rechargeable Items,Supplies and Services,Telephones,05-Apr-2016,Amazon UK Marketplace,Telephones general-all costs,4.16,0.00,4.16
Resources,Legal & Democratic Services,Democratic Representation,Supplies and Services,Subscriptions,05-Apr-2016,WWW.ICO.GOV.UK,Subscriptions,35.00,0.00,35.00
Resources,Legal & Democratic Services,Democratic Representation,Supplies and Services,Subscriptions,05-Apr-2016,WWW.ICO.GOV.UK,Subscriptions,35.00,0.00,35.00
Resources,Legal & Democratic Services,Democratic Representation,Supplies and Services,Subscriptions,05-Apr-2016,WWW.ICO.GOV.UK,Subscriptions,35.00,0.00,35.00
Resources,Legal & Democratic Services,Democratic Representation,Supplies and Services,Subscriptions,05-Apr-2016,WWW.ICO.GOV.UK,Subscriptions,35.00,0.00,35.00
Resources,Legal & Democratic Services,Democratic Representation,Supplies and Services,Subscriptions,05-Apr-2016,WWW.ICO.GOV.UK,Subscriptions,35.00,0.00,35.00
Resources,Legal & Democratic Services,Democratic Representation,Supplies and Services,Subscriptions,05-Apr-2016,WWW.ICO.GOV.UK,Subscriptions,35.00,0.00,35.00
Resources,Legal & Democratic Services,Democratic Representation,Supplies and Services,Subscriptions,05-Apr-2016,WWW.ICO.GOV.UK,Subscriptions,35.00,0.00,35.00
Resources,Legal & Democratic Services,Democratic Representation,Supplies and Services,Subscriptions,05-Apr-2016,WWW.ICO.GOV.UK,Subscriptions,35.00,0.00,35.00
Resources,Legal & Democratic Services,Democratic Representation,Supplies and Services,Subscriptions,05-Apr-2016,WWW.ICO.GOV.UK,Subscriptions,35.00,0.00,35.00
Resources,Legal & Democratic Services,Democratic Representation,Supplies and Services,Subscriptions,05-Apr-2016,WWW.ICO.GOV.UK,Subscriptions,35.00,0.00,35.00
Resources,Legal & Democratic Services,Democratic Representation,Supplies and Services,Subscriptions,05-Apr-2016,WWW.ICO.GOV.UK,Subscriptions,35.00,0.00,35.00
Resources,Legal & Democratic Services,Democratic Representation,Supplies and Services,Subscriptions,05-Apr-2016,WWW.ICO.GOV.UK,Subscriptions,35.00,0.00,35.00
Resources,Legal & Democratic Services,Democratic Representation,Supplies and Services,Subscriptions,05-Apr-2016,WWW.ICO.GOV.UK,Subscriptions,35.00,0.00,35.00
Resources,I.C.T. Services,Web Development Group,Supplies and Services,Subscriptions,05-Apr-2016,FREEPARKING.CO.UK,Subscriptions,11.99,0.00,11.99
Neighbourhood Services,Direct Services,Catering - Service Direct,Supplies and Services,Provisions,05-Apr-2016,BRAKE BROS LTD,Catering costs - provisions,48.32,0.00,48.32
Neighbourhood Services,Direct Services,C&G - North Grounds Maintenance,Supplies and Services,Equipment and Materials,05-Apr-2016,MKM BUILDING SUPPLIES,Equipment-purchase and rental,74.88,12.48,62.40
Neighbourhood Services,Direct Services,C&G - North Grounds Maintenance,Supplies and Services,Newspapers Books and Periodicals,05-Apr-2016,TOOLSTATION LTD,Books-school library,102.45,17.08,85.37
Neighbourhood Services,Direct Services,C&G - North Grounds Maintenance,Supplies and Services,Newspapers Books and Periodicals,05-Apr-2016,TOOLSTATION LTD,Books-school library,88.09,14.68,73.41
Neighbourhood Services,Direct Services,C&G - North Grounds Maintenance,Supplies and Services,Equipment and Materials,05-Apr-2016,GUSTHARTS CHAINSAW CTR,Misc equipment tools and materials,173.18,28.86,144.32
Regeneration & Economic Development,Economic Development and Housing,B& B - Temp Accom,Supplies and Services,Grants to Voluntary Organisations,05-Apr-2016,AYCLIFFE BIZ,Accommodation assistance,245.00,0.00,245.00
Regeneration & Economic Development,Economic Development and Housing,B& B - Temp Accom,Supplies and Services,Grants to Voluntary Organisations,05-Apr-2016,AYCLIFFE BIZ,Accommodation assistance,245.00,0.00,245.00
Regeneration & Economic Development,Economic Development and Housing,B& B - Temp Accom,Supplies and Services,Grants to Voluntary Organisations,05-Apr-2016,AYCLIFFE BIZ,Accommodation assistance,210.00,0.00,210.00
Regeneration & Economic Development,Economic Development and Housing,B& B - Temp Accom,Supplies and Services,Grants to Voluntary Organisations,05-Apr-2016,AYCLIFFE BIZ,Accommodation assistance,70.00,0.00,70.00
Neighbourhood Services,Culture & Sport,Hardwick Park Catering,Supplies and Services,Printing Stationery and Gen Off Exps,05-Apr-2016,Amazon UK Marketplace,Administrative stationery etc,3.99,0.00,3.99
Neighbourhood Services,Culture & Sport,Hardwick Park Catering,Supplies and Services,Printing Stationery and Gen Off Exps,05-Apr-2016,WWW.TILLFOOD.CO.UK,Stationery,51.00,8.50,42.50
Regeneration & Economic Development,Spatial Policy Planning Assets & Environment,North Pennines Core,Supplies and Services,Newspapers Books and Periodicals,05-Apr-2016,SURVEYMONKEY.COM,Books-school library,26.00,4.33,21.67
Regeneration & Economic Development,Transport and Contracted Services,Care Connect All Localities,Supplies and Services,Telephones,05-Apr-2016,BT BILL PAYMENT 2,Telephones general-all costs,27.94,4.66,23.28
Regeneration & Economic Development,Transport and Contracted Services,Care Connect All Localities,Supplies and Services,Telephones,05-Apr-2016,BT BILL PAYMENT 2,Telephones general-all costs,-14.81,0.00,-14.81
Regeneration & Economic Development,Transport and Contracted Services,Care Connect All Localities,Supplies and Services,Telephones,05-Apr-2016,BT BILL PAYMENT 2,Telephones general-all costs,-14.81,0.00,-14.81
Regeneration & Economic Development,Economic Development and Housing,Business Growth and Innovation General,Supplies and Services,Equipment and Materials,06-Apr-2016,MEETEDGAR.COM STARTER,Other consumables,0.95,0.00,0.95
Children and Adult Services,Childrens Services,Secure Management,Supplies and Services,Clothing Uniforms and Laundry,06-Apr-2016,Amazon UK Marketplace,Clothing uniforms and laundry,7.54,0.00,7.54
Children and Adult Services,Education,Durham Learning Resources,Supplies and Services,Printing Stationery and Gen Off Exps,06-Apr-2016,LAKELAND LIMITED,Stationery,14.96,2.49,12.47
Children and Adult Services,Childrens Services,9 Cedar Drive Aycliffe,Supplies and Services,Provisions,06-Apr-2016,TESCO STORES 2916,Catering costs - provisions,16.87,0.00,16.87
Regeneration & Economic Development,Economic Development and Housing,Business Growth and Innovation General,Supplies and Services,Newspapers Books and Periodicals,06-Apr-2016,FASTHOSTS INTERNET,Books-school library,11.94,1.99,9.95
Neighbourhood Services,Direct Services,Catering - County Hall Restaurant,Supplies and Services,Provisions,06-Apr-2016,JR HOLLAND FOODSERVICE,Catering costs - provisions,156.44,0.00,156.44
Neighbourhood Services,Direct Services,Catering - County Hall Restaurant,Supplies and Services,Provisions,06-Apr-2016,JR HOLLAND FOODSERVICE,Catering costs - provisions,33.12,0.00,33.12
Neighbourhood Services,Direct Services,Catering - County Hall Restaurant,Supplies and Services,Provisions,06-Apr-2016,BRAKE BROS LTD,Catering costs - provisions,361.80,60.30,301.50
Neighbourhood Services,Direct Services,Catering - County Hall Restaurant,Supplies and Services,Provisions,06-Apr-2016,BRAKE BROS LTD,Catering costs - provisions,404.29,,404.29
Children and Adult Services,Childrens Services,Secure Management,Supplies and Services,Clothing Uniforms and Laundry,06-Apr-2016,Amazon UK Marketplace,Clothing uniforms and laundry,2.99,0.00,2.99
Children and Adult Services,Childrens Services,Secure Management,Supplies and Services,Clothing Uniforms and Laundry,06-Apr-2016,Amazon UK Marketplace,Clothing uniforms and laundry,4.94,0.82,4.12
Children and Adult Services,Childrens Services,Secure Management,Supplies and Services,Provisions,06-Apr-2016,TESCO STORES 6329,Catering costs - provisions,84.61,0.00,84.61
Neighbourhood Services,Culture & Sport,Hardwick Park Catering,Supplies and Services,Provisions,06-Apr-2016,JR HOLLAND FOODSERVICE,Catering costs - provisions,51.05,0.00,51.05
Neighbourhood Services,Culture & Sport,Hardwick Park Catering,Supplies and Services,Provisions,06-Apr-2016,BRAKE BROS LTD,Catering costs - provisions,127.08,21.18,105.90
Neighbourhood Services,Culture & Sport,Hardwick Park Catering,Supplies and Services,Provisions,06-Apr-2016,BRAKE BROS LTD,Catering costs - provisions,188.28,,188.28
Neighbourhood Services,Direct Services,Catering - Green Lane Canteen,Supplies and Services,Provisions,06-Apr-2016,JR HOLLAND FOODSERVICE,Catering costs - provisions,37.93,0.00,37.93
Neighbourhood Services,Direct Services,Catering - Green Lane Canteen,Supplies and Services,Provisions,06-Apr-2016,BRAKE BROS LTD,Catering costs - provisions,54.44,0.00,54.44
Neighbourhood Services,Direct Services,C&G - South Grounds Maintenance,Supplies and Services,Equipment and Materials,06-Apr-2016,SCREWFIX,Equipment-purchase and rental,49.76,0.00,49.76
Neighbourhood Services,Direct Services,C&G - South Grounds Maintenance,Transport,Running Costs of Vehicles,06-Apr-2016,D WARD AUTOMOTIVE,Vehicle running expenses,58.98,9.83,49.15
Neighbourhood Services,Direct Services,C&G - South Grounds Maintenance,Supplies and Services,Equipment and Materials,06-Apr-2016,TUDOR ENVIRONMENTAL,Equipment-purchase and rental,75.00,12.50,62.50
Children and Adult Services,Childrens Services,Coxhoe Satelite Home,Supplies and Services,Provisions,06-Apr-2016,ASDA STORES LTD,Catering costs - provisions,19.20,0.00,19.20
Children and Adult Services,Childrens Services,Coxhoe Satelite Home,Supplies and Services,Provisions,06-Apr-2016,ASDA STORES LTD,Catering costs - provisions,4.00,0.00,4.00
Children and Adult Services,Childrens Services,Child Protection & Disabilty Strategic Manager,Supplies and Services,Miscellaneous Expenses,06-Apr-2016,MIDDLESBROUGH COUNCIL,Other hired and contracted services,25.00,0.00,25.00
Resources,Internal Audit and Insurance,Internal Audit,Supplies and Services,Subscriptions,06-Apr-2016,WWW.ACCOUNTS@IIA.ORG.U,Subscriptions,118.00,0.00,118.00
Neighbourhood Services,Culture & Sport,Durham Town Hall,Supplies and Services,Services,06-Apr-2016,DISCLOSURE SCOT,Disclosure & Barring (DBS) Fees,25.00,0.00,25.00
Resources,Legal & Democratic Services,Democratic Representation,Supplies and Services,Subscriptions,06-Apr-2016,WWW.ICO.GOV.UK,Subscriptions,35.00,0.00,35.00
Resources,Legal & Democratic Services,Democratic Representation,Supplies and Services,Subscriptions,06-Apr-2016,WWW.ICO.GOV.UK,Subscriptions,35.00,0.00,35.00
Resources,Legal & Democratic Services,Democratic Representation,Supplies and Services,Subscriptions,06-Apr-2016,WWW.ICO.GOV.UK,Subscriptions,35.00,0.00,35.00
Resources,Legal & Democratic Services,Democratic Representation,Supplies and Services,Subscriptions,06-Apr-2016,WWW.ICO.GOV.UK,Subscriptions,35.00,0.00,35.00
Resources,Legal & Democratic Services,Democratic Representation,Supplies and Services,Subscriptions,06-Apr-2016,WWW.ICO.GOV.UK,Subscriptions,35.00,0.00,35.00
Neighbourhood Services,Direct Services,C&G - North Grounds Maintenance,Supplies and Services,Newspapers Books and Periodicals,06-Apr-2016,GRALANDS WOODWORK SUPP,Books-school library,17.00,2.83,14.17
Neighbourhood Services,Direct Services,C&G - North Grounds Maintenance,Supplies and Services,Equipment and Materials,06-Apr-2016,BESCOL,Other consumables,14.22,2.37,11.85
Neighbourhood Services,Direct Services,Catering - Service Direct,Supplies and Services,Provisions,06-Apr-2016,JR HOLLAND FOODSERVICE,Catering costs - provisions,17.62,0.00,17.62
Neighbourhood Services,Direct Services,Catering - Service Direct,Supplies and Services,Provisions,06-Apr-2016,JR HOLLAND FOODSERVICE,Catering costs - provisions,13.45,0.00,13.45
Neighbourhood Services,Direct Services,Catering - Service Direct,Supplies and Services,Provisions,06-Apr-2016,BRAKE BROS LTD,Catering costs - provisions,55.86,9.31,46.55
Neighbourhood Services,Direct Services,Catering - Service Direct,Supplies and Services,Provisions,06-Apr-2016,BRAKE BROS LTD,Catering costs - provisions,85.11,,85.11
Children and Adult Services,Childrens Services,Laurel Avenue Childrens Centre,Supplies and Services,Equipment and Materials,06-Apr-2016,MINI MOOS FARM,Misc equipment tools and materials,228.00,0.00,228.00
Neighbourhood Services,Culture & Sport,Woodhouse Close Leisure Complex,Supplies and Services,Provisions,06-Apr-2016,JR HOLLAND FOODSERVICE,Catering costs - provisions,26.18,0.00,26.18
Neighbourhood Services,Culture & Sport,Woodhouse Close Leisure Complex,Supplies and Services,Provisions,06-Apr-2016,BRAKE BROS LTD,Catering costs - provisions,78.01,0.00,78.01
Neighbourhood Services,Culture & Sport,Locality 2 Team Management,Supplies and Services,Equipment and Materials,06-Apr-2016,WILKO RETAIL LIMIT,Equipment-purchase and rental,20.88,0.00,20.88
Regeneration & Economic Development,Economic Development and Housing,Group Repair - Dawdon Ph 9,Income,Fees and Charges,07-Apr-2016,WWW.MONEYCLAIM.GOV,Fees-legal,185.00,0.00,185.00
Children and Adult Services,Childrens Services,9 Cedar Drive Aycliffe,Supplies and Services,Equipment and Materials,07-Apr-2016,TESCO DIRECT,Other consumables,195.22,0.00,195.22
Neighbourhood Services,Direct Services,Catering - County Hall Restaurant,Supplies and Services,Provisions,07-Apr-2016,JR HOLLAND FOODSERVICE,Catering costs - provisions,40.84,0.00,40.84
Neighbourhood Services,Direct Services,Catering - County Hall Restaurant,Supplies and Services,Provisions,07-Apr-2016,JR HOLLAND FOODSERVICE,Catering costs - provisions,31.24,0.00,31.24
Neighbourhood Services,Direct Services,Catering - County Hall Restaurant,Supplies and Services,Provisions,07-Apr-2016,JR HOLLAND FOODSERVICE,Catering costs - provisions,21.48,0.00,21.48
Neighbourhood Services,Direct Services,Catering - County Hall Restaurant,Supplies and Services,Provisions,07-Apr-2016,JR HOLLAND FOODSERVICE,Catering costs - provisions,5.51,0.00,5.51
Neighbourhood Services,Direct Services,Catering - County Hall Restaurant,Supplies and Services,Provisions,07-Apr-2016,BRAKE BROS LTD,Catering costs - provisions,189.81,0.00,189.81
Neighbourhood Services,Culture & Sport,Bp Auckland Town Hall Library,Supplies and Services,Provisions,07-Apr-2016,ASDA STORES,Catering costs - provisions,54.32,0.00,54.32
Neighbourhood Services,Direct Services,C&G - South Grounds Maintenance,Supplies and Services,Equipment and Materials,07-Apr-2016,B AND Q 1120,Equipment-purchase and rental,18.54,3.09,15.45
Neighbourhood Services,Culture & Sport,Gala Theatre - Catering etc,Supplies and Services,Provisions,07-Apr-2016,JR HOLLAND FOODSERVICE,Catering costs - provisions,36.59,0.00,36.59
Neighbourhood Services,Culture & Sport,Local Delivery-Libraries,Supplies and Services,Newspapers Books and Periodicals,07-Apr-2016,Amazon EU,Books-school library,74.91,0.00,74.91
Regeneration & Economic Development,Economic Development and Housing,International Relations,Transport,Public Transport,07-Apr-2016,PRINCE BISHOP SHOPPING,Staff travelling,2.10,0.00,2.10
Regeneration & Economic Development,Economic Development and Housing,International Relations,Supplies and Services,Newspapers Books and Periodicals,07-Apr-2016,WATERSTONES,Books-school library,88.88,0.00,88.88
Regeneration & Economic Development,Economic Development and Housing,International Relations,Employees,Recruitment Instruction and Training,07-Apr-2016,ENTROPAY UK,Training-all costs,-1.00,0.00,-1.00
Children and Adult Services,Childrens Services,Secure Education,Supplies and Services,Miscellaneous Expenses,07-Apr-2016,Amazon EU,Other expenses,89.90,15.00,74.90
Children and Adult Services,Childrens Services,Secure Management,Supplies and Services,Provisions,07-Apr-2016,TESCO STORES 6329,Catering costs - provisions,88.78,0.00,88.78
Neighbourhood Services,Culture & Sport,Hardwick Park Catering,Supplies and Services,Provisions,07-Apr-2016,JR HOLLAND FOODSERVICE,Catering costs - provisions,32.87,0.00,32.87
Neighbourhood Services,Culture & Sport,Hardwick Park Catering,Supplies and Services,Provisions,07-Apr-2016,BRAKE BROS LTD,Catering costs - provisions,301.50,50.25,251.25
Neighbourhood Services,Culture & Sport,Hardwick Park Catering,Supplies and Services,Provisions,07-Apr-2016,BRAKE BROS LTD,Catering costs - provisions,73.22,,73.22
Neighbourhood Services,Direct Services,C&G - South Grounds Maintenance,Supplies and Services,Equipment and Materials,07-Apr-2016,AYCLIFFE DECORATIV,Equipment-purchase and rental,37.03,0.00,37.03
Neighbourhood Services,Direct Services,C&G - South Grounds Maintenance,Supplies and Services,Newspapers Books and Periodicals,07-Apr-2016,C.L.A.S.S,Books-school library,21.60,3.60,18.00
Children and Adult Services,Childrens Services,Consett and Stanley Locality,Supplies and Services,Miscellaneous Expenses,07-Apr-2016,ROSEBUD CERAMICS,Other expenses,40.00,0.00,40.00
Neighbourhood Services,Culture & Sport,Wellbeing4Life,Supplies and Services,Provisions,07-Apr-2016,ALDI,Catering costs - provisions,11.51,0.00,11.51
Regeneration & Economic Development,Transport and Contracted Services,Traffic,Supplies and Services,Computers and Communications,07-Apr-2016,CRUCIAL.COM,Computer hardware,15.59,2.60,12.99
Neighbourhood Services,Culture & Sport,Bp Auckland Town Hall Cafe,Supplies and Services,Provisions,07-Apr-2016,JR HOLLAND FOODSERVICE,Catering costs - provisions,23.64,0.00,23.64
Regeneration & Economic Development,Transport and Contracted Services,Care Connect All Localities,Supplies and Services,Telephones,07-Apr-2016,BT BILL PAYMENT 2,Telephones general-all costs,67.07,0.00,67.07
Regeneration & Economic Development,Transport and Contracted Services,Care Connect All Localities,Supplies and Services,Telephones,07-Apr-2016,BT BILL PAYMENT 2,Telephones general-all costs,67.07,0.00,67.07
Neighbourhood Services,Technical Services,Training and Development,Third Party Payments,Rendered by Private Contractors,07-Apr-2016,ELECTRICAL CONTRACTORS,Payments to sub-contractors,48.00,8.00,40.00
Children and Adult Services,Childrens Services,Ferryhill 0 - 5,Supplies and Services,Clothing Uniforms and Laundry,07-Apr-2016,B&M RETAIL LTD,Clothing uniforms and laundry,27.93,0.00,27.93
Neighbourhood Services,Culture & Sport,Woodhouse Close Leisure Complex,Supplies and Services,Provisions,07-Apr-2016,BRAKE BROS LTD,Catering costs - provisions,82.62,13.77,68.85
Neighbourhood Services,Culture & Sport,Woodhouse Close Leisure Complex,Supplies and Services,Provisions,07-Apr-2016,BRAKE BROS LTD,Catering costs - provisions,125.56,,125.56
Regeneration & Economic Development,Economic Development and Housing,Employability - Youth Contract,Supplies and Services,Miscellaneous Expenses,07-Apr-2016,CO-OP GROUP 010511,Other expenses,91.00,0.00,91.00
Regeneration & Economic Development,Economic Development and Housing,Employability - Youth Contract,Supplies and Services,Miscellaneous Expenses,07-Apr-2016,CO-OP GROUP 010511,Other expenses,85.50,0.00,85.50
Regeneration & Economic Development,Economic Development and Housing,Employability - Youth Contract,Supplies and Services,Miscellaneous Expenses,07-Apr-2016,CO-OP GROUP 010690,Other expenses,60.50,0.00,60.50
Resources,I.C.T. Services,ICT Telephony Recharges,Supplies and Services,Telephones,08-Apr-2016,Amazon UK Marketplace,Telephones general-all costs,195.49,0.00,195.49
Children and Adult Services,Education,Selby Cottage Childcare Centre,Supplies and Services,Provisions,08-Apr-2016,ASDA STORES 4333,Catering costs - provisions,39.19,0.00,39.19
Children and Adult Services,Education,Selby Cottage Childcare Centre,Supplies and Services,Clothing Uniforms and Laundry,08-Apr-2016,B&M RETAIL,Clothing uniforms and laundry,117.46,0.00,117.46
Children and Adult Services,Education,Selby Cottage Childcare Centre,Supplies and Services,Clothing Uniforms and Laundry,08-Apr-2016,POUNDLAND,Clothing uniforms and laundry,57.10,0.00,57.10
Regeneration & Economic Development,Spatial Policy Planning Assets & Environment,Building Control - Central/East Area,Income,Fees and Charges,08-Apr-2016,WWW.MONEYCLAIM.GOV,Fees-legal,35.00,0.00,35.00
Regeneration & Economic Development,Economic Development and Housing,Business Growth and Innovation General,Supplies and Services,Advertising,08-Apr-2016,GUMTREE COM,Advertising other than for staff,13.98,0.00,13.98
Neighbourhood Services,Direct Services,Catering - County Hall Restaurant,Supplies and Services,Provisions,08-Apr-2016,JR HOLLAND FOODSERVICE,Catering costs - provisions,39.00,0.00,39.00
Neighbourhood Services,Direct Services,Catering - County Hall Restaurant,Supplies and Services,Provisions,08-Apr-2016,JR HOLLAND FOODSERVICE,Catering costs - provisions,14.93,0.00,14.93
Neighbourhood Services,Culture & Sport,Bp Auckland Town Hall Library,Supplies and Services,Newspapers Books and Periodicals,08-Apr-2016,Amazon EU,Books-school library,42.98,0.00,42.98
Children and Adult Services,Childrens Services,Bishop Auckland 0 - 5,Supplies and Services,Provisions,08-Apr-2016,LIDL UK,Catering costs - provisions,3.29,0.00,3.29
Children and Adult Services,Childrens Services,Secure Management,Supplies and Services,Provisions,08-Apr-2016,TESCO STORES 6329,Catering costs - provisions,97.14,0.00,97.14
Neighbourhood Services,Culture & Sport,Hardwick Park Catering,Supplies and Services,Provisions,08-Apr-2016,JR HOLLAND FOODSERVICE,Catering costs - provisions,8.01,0.00,8.01
Neighbourhood Services,Culture & Sport,Hardwick Park Catering,Supplies and Services,Provisions,08-Apr-2016,BRAKE BROS LTD,Catering costs - provisions,326.34,54.39,271.95
Neighbourhood Services,Culture & Sport,Hardwick Park Catering,Supplies and Services,Provisions,08-Apr-2016,BRAKE BROS LTD,Catering costs - provisions,268.74,,268.74
Neighbourhood Services,Culture & Sport,Hardwick Park Catering,Supplies and Services,Provisions,08-Apr-2016,BRAKE BROS LTD,Catering costs - provisions,79.98,13.33,66.65
Neighbourhood Services,Culture & Sport,Hardwick Park Catering,Supplies and Services,Provisions,08-Apr-2016,BRAKE BROS LTD,Catering costs - provisions,57.21,,57.21
Neighbourhood Services,Culture & Sport,Hardwick Park Catering,Supplies and Services,Provisions,08-Apr-2016,BRAKE BROS LTD,Catering costs - provisions,-13.84,0.00,-13.84
Neighbourhood Services,Culture & Sport,Hardwick Park Catering,Supplies and Services,Provisions,08-Apr-2016,BRAKE BROS LTD,Catering costs - provisions,-16.05,0.00,-16.05
Resources,I.C.T. Services,Operations - System & Repairs Trading,Supplies and Services,Computers and Communications,08-Apr-2016,Amazon UK Marketplace,Computer hardware,51.80,0.00,51.80
Neighbourhood Services,Direct Services,Catering - Green Lane Canteen,Supplies and Services,Provisions,08-Apr-2016,JR HOLLAND FOODSERVICE,Catering costs - provisions,24.08,0.00,24.08
Regeneration & Economic Development,Economic Development and Housing,Employability - Youth Contract,Supplies and Services,Provisions,08-Apr-2016,ASDA STORES LTD,Catering costs - provisions,18.05,0.00,18.05
Neighbourhood Services,Direct Services,Catering - Service Direct,Supplies and Services,Provisions,08-Apr-2016,JR HOLLAND FOODSERVICE,Catering costs - provisions,18.36,0.00,18.36
Neighbourhood Services,Direct Services,Catering - Service Direct,Supplies and Services,Provisions,08-Apr-2016,JR HOLLAND FOODSERVICE,Catering costs - provisions,6.58,0.00,6.58
Resources,Financial Services,Purchasing,Supplies and Services,Miscellaneous Expenses,08-Apr-2016,WWW.VETIMED.CO.UK,Other expenses,46.50,0.00,46.50
Resources,Financial Services,Purchasing,Supplies and Services,Services,08-Apr-2016,DJMEDICAL,Medical fees,309.98,51.66,258.32
Neighbourhood Services,Direct Services,Spectrum 8 Seaham,Supplies and Services,Miscellaneous Expenses,08-Apr-2016,TVLICENSING.CO.UK,Licences,145.50,0.00,145.50
Resources,Financial Services,Purchasing,Supplies and Services,Postages,08-Apr-2016,POST OFFICE SHOP,Postages,112.99,0.00,112.99
Children and Adult Services,Childrens Services,9 Cedar Drive Aycliffe,Supplies and Services,Clothing Uniforms and Laundry,09-Apr-2016,NEW LOOK 1996,Clothing uniforms and laundry,9.50,0.00,9.50
Children and Adult Services,Childrens Services,9 Cedar Drive Aycliffe,Supplies and Services,Provisions,09-Apr-2016,ASDA STORES 4320,Catering costs - provisions,22.05,0.00,22.05
Children and Adult Services,Childrens Services,9 Cedar Drive Aycliffe,Supplies and Services,Provisions,09-Apr-2016,TESCO STORES 2916,Catering costs - provisions,10.55,0.00,10.55
Children and Adult Services,Childrens Services,Secure Management,Supplies and Services,Provisions,09-Apr-2016,TESCO STORES 6329,Catering costs - provisions,121.92,0.00,121.92
Neighbourhood Services,Culture & Sport,Hardwick Park Catering,Supplies and Services,Provisions,09-Apr-2016,BRAKE BROS LTD,Catering costs - provisions,23.56,0.00,23.56
Neighbourhood Services,Culture & Sport,Hardwick Park Catering,Supplies and Services,Provisions,09-Apr-2016,BRAKE BROS LTD,Catering costs - provisions,-9.77,0.00,-9.77
Neighbourhood Services,Culture & Sport,Locality 2 Team Management,Supplies and Services,Equipment and Materials,09-Apr-2016,HOMEPLAN DIY LIMITED,Other consumables,13.50,0.00,13.50
Neighbourhood Services,Culture & Sport,Office Services,Supplies and Services,Advertising,10-Apr-2016,TWITTER ADVERTISING,Advertising other than for staff,6.00,0.00,6.00
Assistant Chief Executive,Policy & Communications Division,Corporate News,Supplies and Services,Subscriptions,10-Apr-2016,ADOBE CAPTIVATE SUBS,Subscriptions,22.86,0.00,22.86
Children and Adult Services,Childrens Services,CDYOS - Support,Supplies and Services,Provisions,10-Apr-2016,ASDA HOME SHOPPING,Catering costs - provisions,71.53,0.00,71.53
Children and Adult Services,Childrens Services,CDYOS - Support,Supplies and Services,Provisions,10-Apr-2016,ASDA HOME SHOPPING,Catering costs - provisions,-2.30,0.00,-2.30
Children and Adult Services,Education,Selby Cottage Childcare Centre,Supplies and Services,Provisions,11-Apr-2016,TESCO STORES 2278,Catering costs - provisions,129.07,0.00,129.07
Children and Adult Services,Childrens Services,Bishop Auckland 0 - 5,Supplies and Services,Provisions,11-Apr-2016,TESCO STORES 6329,Catering costs - provisions,20.74,0.00,20.74
Neighbourhood Services,Direct Services,C&G - South Street Cleansing,Supplies and Services,Provisions,11-Apr-2016,J M RAINE,Catering costs - provisions,34.49,0.00,34.49
Neighbourhood Services,Direct Services,C&G - South Street Cleansing,Transport,Running Costs of Vehicles,11-Apr-2016,SNOWBALLS (RAILWAY,Vehicle running expenses,131.58,21.93,109.65
Regeneration & Economic Development,Economic Development and Housing,Business Growth and Innovation General,Supplies and Services,Miscellaneous Expenses,11-Apr-2016,WWW.SMMT.CO.UK,Other expenses,60.00,10.00,50.00
Neighbourhood Services,Culture & Sport,Volunteer & Skills,Supplies and Services,Equipment and Materials,11-Apr-2016,Amazon UK Marketplace,Other consumables,-7.24,0.00,-7.24
Neighbourhood Services,Direct Services,Catering - County Hall Restaurant,Supplies and Services,Provisions,11-Apr-2016,BRAMBLES FOODS LTD,Catering costs - provisions,386.91,0.00,386.91
Neighbourhood Services,Direct Services,Catering - County Hall Restaurant,Supplies and Services,Provisions,11-Apr-2016,JR HOLLAND FOODSERVICE,Catering costs - provisions,28.71,0.00,28.71
Neighbourhood Services,Direct Services,Catering - County Hall Restaurant,Supplies and Services,Provisions,11-Apr-2016,JR HOLLAND FOODSERVICE,Catering costs - provisions,6.94,0.00,6.94
Neighbourhood Services,Direct Services,Catering - County Hall Restaurant,Supplies and Services,Provisions,11-Apr-2016,BRAKE BROS LTD,Catering costs - provisions,347.49,0.00,347.49
Children and Adult Services,Childrens Services,Peterlee and Seaham Locality,Supplies and Services,Miscellaneous Expenses,11-Apr-2016,ADVENTURE VALLEY,Recreational exps outings parties,270.00,0.00,270.00
Neighbourhood Services,Culture & Sport,Local Delivery-Libraries,Supplies and Services,Newspapers Books and Periodicals,11-Apr-2016,Amazon EU,Books-school library,65.54,0.00,65.54
Children and Adult Services,Education,Dean Bank Childcare,Supplies and Services,Provisions,11-Apr-2016,ASDA HOME SHOPPING,Catering costs - provisions,48.66,0.00,48.66
Children and Adult Services,Childrens Services,Barnard,Supplies and Services,Newspapers Books and Periodicals,11-Apr-2016,Amazon UK Marketplace,Books-school library,35.91,0.00,35.91
Children and Adult Services,Childrens Services,Barnard,Supplies and Services,Newspapers Books and Periodicals,11-Apr-2016,Amazon UK Marketplace,Books-school library,42.30,0.00,42.30
Children and Adult Services,Childrens Services,Barnard,Supplies and Services,Newspapers Books and Periodicals,11-Apr-2016,Amazon UK Marketplace,Books-school library,79.84,0.00,79.84
Children and Adult Services,Childrens Services,Lumley,Supplies and Services,Equipment and Materials,11-Apr-2016,TESCO - Tescopay,Other consumables,32.00,0.00,32.00
Children and Adult Services,Childrens Services,Lumley,Supplies and Services,Equipment and Materials,11-Apr-2016,TESCO DIRECT,Other consumables,235.00,0.00,235.00
Children and Adult Services,Childrens Services,Lumley,Supplies and Services,Equipment and Materials,11-Apr-2016,TESCO-Seller_IST_1_240,Other consumables,28.98,0.00,28.98
Children and Adult Services,Childrens Services,Lumley,Supplies and Services,Equipment and Materials,11-Apr-2016,TESCO-Seller_IST_1_240,Other consumables,11.98,0.00,11.98
Neighbourhood Services,Culture & Sport,Hardwick Park Catering,Supplies and Services,Provisions,11-Apr-2016,FREEMAN CATERING BUTCH,Catering costs - provisions,30.02,0.00,30.02
Neighbourhood Services,Culture & Sport,Hardwick Park Catering,Supplies and Services,Provisions,11-Apr-2016,FREEMAN CATERING BUTCH,Catering costs - provisions,27.88,0.00,27.88
Neighbourhood Services,Culture & Sport,Hardwick Park Catering,Supplies and Services,Provisions,11-Apr-2016,FREEMAN CATERING BUTCH,Catering costs - provisions,9.21,0.00,9.21
Neighbourhood Services,Culture & Sport,Hardwick Park Catering,Supplies and Services,Provisions,11-Apr-2016,JR HOLLAND FOODSERVICE,Catering costs - provisions,23.86,0.00,23.86
Neighbourhood Services,Culture & Sport,Hardwick Park Catering,Supplies and Services,Provisions,11-Apr-2016,JR HOLLAND FOODSERVICE,Catering costs - provisions,14.10,0.00,14.10
Neighbourhood Services,Culture & Sport,Hardwick Park Catering,Supplies and Services,Provisions,11-Apr-2016,BRAKE BROS LTD,Catering costs - provisions,161.10,26.85,134.25
Neighbourhood Services,Culture & Sport,Hardwick Park Catering,Supplies and Services,Provisions,11-Apr-2016,BRAKE BROS LTD,Catering costs - provisions,222.40,,222.40
Regeneration & Economic Development,Spatial Policy Planning Assets & Environment,North Pennines Core,Supplies and Services,Subsistence,11-Apr-2016,LEAFI LTD,Subsistence,14.90,0.00,14.90
Regeneration & Economic Development,Spatial Policy Planning Assets & Environment,North Pennines Core,Transport,Public Transport,11-Apr-2016,LUL TICKET MACHINE,Staff travelling,12.10,0.00,12.10
Resources,I.C.T. Services,Operations - System & Repairs Trading,Supplies and Services,Computers and Communications,11-Apr-2016,THE REPLACE BASE LTD,Computer hardware,24.96,4.16,20.80
Resources,I.C.T. Services,Operations - System & Repairs Trading,Supplies and Services,Computers and Communications,11-Apr-2016,THE REPLACE BASE LTD,Computer hardware,4.79,,4.79
Neighbourhood Services,Direct Services,Catering - Green Lane Canteen,Supplies and Services,Provisions,11-Apr-2016,BRAMBLES FOODS LTD,Catering costs - provisions,70.15,0.00,70.15
Neighbourhood Services,Direct Services,Catering - Green Lane Canteen,Supplies and Services,Provisions,11-Apr-2016,FREEMAN CATERING BUTCH,Catering costs - provisions,61.87,0.00,61.87
Resources,Financial Services,Purchasing,Employees,Recruitment Instruction and Training,11-Apr-2016,TYNE AND WEAR SPORT,Training-all costs,35.00,0.00,35.00
Neighbourhood Services,Direct Services,C&G - South Grounds Maintenance,Supplies and Services,Equipment and Materials,11-Apr-2016,SCREWFIX,Equipment-purchase and rental,42.98,0.00,42.98
Children and Adult Services,Childrens Services,Coxhoe Satelite Home,Supplies and Services,Provisions,11-Apr-2016,ASDA SUPERSTORE 4987,Catering costs - provisions,56.99,0.00,56.99
Children and Adult Services,Childrens Services,Coxhoe Satelite Home,Supplies and Services,Provisions,11-Apr-2016,ASDA SUPERSTORE 4987,Catering costs - provisions,18.30,0.00,18.30
Resources,Resources Management,Resources Management,Supplies and Services,Provisions,11-Apr-2016,SAINSBURYS LOC4937,Catering costs - provisions,3.25,0.00,3.25
Neighbourhood Services,Culture & Sport,Wellbeing4Life,Supplies and Services,Provisions,11-Apr-2016,ALDI,Catering costs - provisions,7.24,0.00,7.24
Neighbourhood Services,Culture & Sport,Events,Supplies and Services,Equipment and Materials,11-Apr-2016,SCREWFIX,Equipment-purchase and rental,94.97,0.00,94.97
Children and Adult Services,Childrens Services,CDYOS - Support,Supplies and Services,Equipment and Materials,11-Apr-2016,B AND Q 1162,Equipment-purchase and rental,120.00,0.00,120.00
Neighbourhood Services,Culture & Sport,Bp Auckland Town Hall Cafe,Supplies and Services,Provisions,11-Apr-2016,BRAMBLES FOODS LTD,Catering costs - provisions,86.58,0.00,86.58
Neighbourhood Services,Culture & Sport,Bp Auckland Town Hall Cafe,Supplies and Services,Provisions,11-Apr-2016,JR HOLLAND FOODSERVICE,Catering costs - provisions,27.30,0.00,27.30
Neighbourhood Services,Direct Services,Catering - Service Direct,Supplies and Services,Provisions,11-Apr-2016,BRAMBLES FOODS LTD,Catering costs - provisions,75.78,0.00,75.78
Neighbourhood Services,Direct Services,Catering - Service Direct,Supplies and Services,Provisions,11-Apr-2016,FREEMAN CATERING BUTCH,Catering costs - provisions,66.91,0.00,66.91
Neighbourhood Services,Direct Services,Catering - Service Direct,Supplies and Services,Provisions,11-Apr-2016,FREEMAN CATERING BUTCH,Catering costs - provisions,49.69,0.00,49.69
Neighbourhood Services,Direct Services,C&G - North Grounds Maintenance,Supplies and Services,Equipment and Materials,11-Apr-2016,MKM BUILDING SUPPLIES,Equipment-purchase and rental,117.12,19.52,97.60
Neighbourhood Services,Direct Services,C&G - North Grounds Maintenance,Supplies and Services,Miscellaneous Expenses,11-Apr-2016,TOM CONWAY MOTORCYCLES,Other hired and contracted services,101.98,17.00,84.98
Neighbourhood Services,Direct Services,C&G - North Grounds Maintenance,Supplies and Services,Equipment and Materials,11-Apr-2016,WILKO DURHAM 426,Equipment-purchase and rental,3.00,0.50,2.50
Neighbourhood Services,Direct Services,C&G - North Grounds Maintenance,Supplies and Services,Equipment and Materials,11-Apr-2016,MKM BUILDING SUPPLIES,Equipment-purchase and rental,-74.88,-12.48,-62.40
Neighbourhood Services,Culture & Sport,Woodhouse Close Leisure Complex,Supplies and Services,Provisions,11-Apr-2016,FREEMAN CATERING BUTCH,Catering costs - provisions,37.56,0.00,37.56
Neighbourhood Services,Culture & Sport,Woodhouse Close Leisure Complex,Supplies and Services,Provisions,11-Apr-2016,JR HOLLAND FOODSERVICE,Catering costs - provisions,46.86,0.00,46.86
Neighbourhood Services,Culture & Sport,Woodhouse Close Leisure Complex,Supplies and Services,Provisions,11-Apr-2016,BRAKE BROS LTD,Catering costs - provisions,94.68,0.00,94.68
Children and Adult Services,Childrens Services,TTF-Attachment and Results,Supplies and Services,Furniture,11-Apr-2016,EDS BEDS LTD,Furniture repair and replacement,231.00,0.00,231.00
Children and Adult Services,Childrens Services,Lumley,Supplies and Services,Equipment and Materials,11-Apr-2016,SPORTSDIRECT.COM,Toys,27.49,4.58,22.91
Neighbourhood Services,Direct Services,R&R - North Refuse Collection,Income,Fees and Charges,12-Apr-2016,WWW.MONEYCLAIM.GOV,Fees-legal,35.00,0.00,35.00
Children and Adult Services,Childrens Services,Bishop Auckland 0 - 5,Supplies and Services,Provisions,12-Apr-2016,TESCO STORES 6329,Catering costs - provisions,64.90,0.00,64.90
Regeneration & Economic Development,Economic Development and Housing,Work Programme - Consett,Supplies and Services,Miscellaneous Expenses,12-Apr-2016,NCS VUE CITB HS&E REV,Other expenses,234.00,0.00,234.00
Children and Adult Services,Childrens Services,Short Break Services-Park Hse Sher,Supplies and Services,Equipment and Materials,12-Apr-2016,CURRYS ONLINE,Equipment-purchase and rental,299.99,50.00,249.99
Regeneration & Economic Development,Economic Development and Housing,Business Growth and Innovation General,Supplies and Services,Equipment and Materials,12-Apr-2016,LINKEDIN-327 3535393,Misc equipment tools and materials,102.17,0.00,102.17
Children and Adult Services,Head of Adults,OP Management,Income,Fees and Charges,12-Apr-2016,WWW.MONEYCLAIM.GOV,Fees-legal,35.00,0.00,35.00
Resources,Financial Services,SF-Financial Services Team,Supplies and Services,Provisions,12-Apr-2016,ASDA 4387,Catering costs - provisions,133.50,22.25,111.25
Neighbourhood Services,Direct Services,Catering - County Hall Restaurant,Supplies and Services,Provisions,12-Apr-2016,JR HOLLAND FOODSERVICE,Catering costs - provisions,93.41,0.00,93.41
Neighbourhood Services,Direct Services,Catering - County Hall Restaurant,Supplies and Services,Provisions,12-Apr-2016,JR HOLLAND FOODSERVICE,Catering costs - provisions,14.71,0.00,14.71
Neighbourhood Services,Direct Services,Catering - County Hall Restaurant,Supplies and Services,Provisions,12-Apr-2016,JR HOLLAND FOODSERVICE,Catering costs - provisions,10.74,0.00,10.74
Resources,I.C.T. Services,Domains,Supplies and Services,Subscriptions,12-Apr-2016,WEB NETWORKSOLUTIONS,Subscriptions,50.20,8.37,41.83
Neighbourhood Services,Culture & Sport,Gala Theatre - Catering etc,Supplies and Services,Provisions,12-Apr-2016,JR HOLLAND FOODSERVICE,Catering costs - provisions,46.46,0.00,46.46
Neighbourhood Services,Culture & Sport,Gala Theatre - Catering etc,Supplies and Services,Provisions,12-Apr-2016,BRAKE BROS LTD,Catering costs - provisions,64.20,10.70,53.50
Neighbourhood Services,Culture & Sport,Gala Theatre - Catering etc,Supplies and Services,Provisions,12-Apr-2016,BRAKE BROS LTD,Catering costs - provisions,34.45,,34.45
Neighbourhood Services,Culture & Sport,Gala Theatre - Catering etc,Supplies and Services,Provisions,12-Apr-2016,BRAKE BROS LTD,Catering costs - provisions,19.42,0.00,19.42
Children and Adult Services,Childrens Services,Framwellgate Moor CU,Supplies and Services,Provisions,12-Apr-2016,ASDA HOME SHOPPING,Catering costs - provisions,247.55,0.00,247.55
Children and Adult Services,Childrens Services,Durham 0 - 5,Supplies and Services,Provisions,12-Apr-2016,LIDL UK,Catering costs - provisions,4.71,0.00,4.71
Children and Adult Services,Education,Dean Bank Childcare,Supplies and Services,Postages,12-Apr-2016,POST OFFICE COUNTER,Postages,12.80,0.00,12.80
Children and Adult Services,Education,Dean Bank Childcare,Supplies and Services,Newspapers Books and Periodicals,12-Apr-2016,Amazon UK Marketplace,Books-school library,6.97,0.00,6.97
Children and Adult Services,Education,Dean Bank Childcare,Supplies and Services,Clothing Uniforms and Laundry,12-Apr-2016,B&M RETAIL LTD,Clothing uniforms and laundry,4.51,0.00,4.51
Children and Adult Services,Childrens Services,High Etherley Satelite Home,Supplies and Services,Provisions,12-Apr-2016,TESCO STORES 6329,Catering costs - provisions,121.41,0.00,121.41
Children and Adult Services,Childrens Services,Barnard,Supplies and Services,Newspapers Books and Periodicals,12-Apr-2016,Amazon UK Marketplace,Books-school library,41.54,0.00,41.54
Children and Adult Services,Childrens Services,Barnard,Supplies and Services,Newspapers Books and Periodicals,12-Apr-2016,Amazon UK Marketplace,Books-school library,43.68,0.00,43.68
Children and Adult Services,Childrens Services,Secure Management,Supplies and Services,Clothing Uniforms and Laundry,12-Apr-2016,SPORTSDIRECT.COM,Clothing uniforms and laundry,17.74,0.00,17.74
Children and Adult Services,Childrens Services,Secure Management,Supplies and Services,Clothing Uniforms and Laundry,12-Apr-2016,WWW.FOOTASYLUM.COM,Clothing uniforms and laundry,187.90,0.00,187.90
Children and Adult Services,Childrens Services,Secure Management,Supplies and Services,Clothing Uniforms and Laundry,12-Apr-2016,NEW LOOK INTERNET,Clothing uniforms and laundry,126.90,0.00,126.90
Neighbourhood Services,Culture & Sport,Hardwick Park Catering,Supplies and Services,Provisions,12-Apr-2016,JR HOLLAND FOODSERVICE,Catering costs - provisions,65.21,0.00,65.21
Neighbourhood Services,Culture & Sport,Hardwick Park Catering,Supplies and Services,Provisions,12-Apr-2016,JR HOLLAND FOODSERVICE,Catering costs - provisions,25.27,0.00,25.27
Neighbourhood Services,Culture & Sport,Hardwick Park Catering,Supplies and Services,Provisions,12-Apr-2016,JR HOLLAND FOODSERVICE,Catering costs - provisions,7.44,0.00,7.44
Neighbourhood Services,Culture & Sport,Hardwick Park Catering,Supplies and Services,Provisions,12-Apr-2016,BRAKE BROS LTD,Catering costs - provisions,623.34,103.89,519.45
Neighbourhood Services,Culture & Sport,Hardwick Park Catering,Supplies and Services,Provisions,12-Apr-2016,BRAKE BROS LTD,Catering costs - provisions,113.62,,113.62
Neighbourhood Services,Culture & Sport,Hardwick Park Catering,Supplies and Services,Provisions,12-Apr-2016,JR HOLLAND FOODSERVICE,Catering costs - provisions,-5.08,0.00,-5.08
Neighbourhood Services,Culture & Sport,Hardwick Park Catering,Supplies and Services,Provisions,12-Apr-2016,BRAKE BROS LTD,Catering costs - provisions,-31.14,0.00,-31.14
Resources,I.C.T. Services,Operations - System & Repairs Team,Supplies and Services,Computers and Communications,12-Apr-2016,HSO IFIXIT GMBH,Computer hardware,20.03,3.34,16.69
Children and Adult Services,Education,CPD Conferences,Supplies and Services,Provisions,12-Apr-2016,SAINSBURYS SACAT 0776,Catering costs - provisions,19.63,3.27,16.36
Children and Adult Services,Education,EDC Premises,Supplies and Services,Equipment and Materials,12-Apr-2016,HOMEBASE LTD 215,Materials,10.00,1.67,8.33
Neighbourhood Services,Direct Services,Catering - Green Lane Canteen,Supplies and Services,Provisions,12-Apr-2016,BRAKE BROS LTD,Catering costs - provisions,20.10,3.35,16.75
Neighbourhood Services,Direct Services,Catering - Green Lane Canteen,Supplies and Services,Provisions,12-Apr-2016,BRAKE BROS LTD,Catering costs - provisions,83.69,,83.69
Children and Adult Services,Childrens Services,Families First Stanley,Supplies and Services,Equipment and Materials,12-Apr-2016,Amazon UK Marketplace,ICT supplies etc,134.85,0.00,134.85
Children and Adult Services,Childrens Services,Community Support Team,Supplies and Services,Equipment and Materials,12-Apr-2016,Amazon UK Marketplace,ICT supplies etc,134.85,0.00,134.85
Children and Adult Services,Childrens Services,Tow Law CU,Supplies and Services,Provisions,12-Apr-2016,TESCO STORES 2371,Catering costs - provisions,255.29,0.00,255.29
Neighbourhood Services,Direct Services,C&G - South Grounds Maintenance,Transport,Running Costs of Vehicles,12-Apr-2016,SNOWBALLS (RAILWAY,Vehicle running expenses,142.77,23.80,118.97
Neighbourhood Services,Culture & Sport,Events,Supplies and Services,Newspapers Books and Periodicals,12-Apr-2016,Amazon UK Marketplace,Books-school library,126.30,0.00,126.30
Neighbourhood Services,Culture & Sport,Events,Supplies and Services,Provisions,12-Apr-2016,SAINSBURYS TO YOU 0774,Catering costs - provisions,65.60,0.00,65.60
Children and Adult Services,Childrens Services,CDYOS - Support,Supplies and Services,Equipment and Materials,12-Apr-2016,B AND Q 1162,Equipment-purchase and rental,75.52,0.00,75.52
Neighbourhood Services,Direct Services,Catering - Service Direct,Supplies and Services,Provisions,12-Apr-2016,JR HOLLAND FOODSERVICE,Catering costs - provisions,21.32,0.00,21.32
Neighbourhood Services,Direct Services,Catering - Service Direct,Supplies and Services,Provisions,12-Apr-2016,BRAKE BROS LTD,Catering costs - provisions,55.49,0.00,55.49
Neighbourhood Services,Direct Services,C&G - North Grounds Maintenance,Supplies and Services,Newspapers Books and Periodicals,12-Apr-2016,TOOLSTATION LTD,Books-school library,27.25,4.54,22.71
Neighbourhood Services,Direct Services,C&G - North Grounds Maintenance,Supplies and Services,Equipment and Materials,12-Apr-2016,GUSTHARTS CHAINSAW CTR,Misc equipment tools and materials,495.65,82.61,413.04
Neighbourhood Services,Direct Services,C&G - North Grounds Maintenance,Supplies and Services,Equipment and Materials,12-Apr-2016,GUSTHARTS CHAINSAW CTR,Misc equipment tools and materials,114.09,19.02,95.07
Neighbourhood Services,Culture & Sport,Woodhouse Close Leisure Complex,Supplies and Services,Provisions,12-Apr-2016,JR HOLLAND FOODSERVICE,Catering costs - provisions,-0.57,0.00,-0.57
Regeneration & Economic Development,Economic Development and Housing,Business Growth and Innovation General,Supplies and Services,Advertising,12-Apr-2016,ADROLL,Advertising other than for staff,49.32,0.00,49.32
Resources,I.C.T. Services,Web Development Group,Supplies and Services,Computers and Communications,12-Apr-2016,avangate.com,Computer hardware,140.88,0.00,140.88
Resources,I.C.T. Services,Domains,Supplies and Services,Subscriptions,13-Apr-2016,WEB NETWORKSOLUTIONS,Subscriptions,1.38,0.00,1.38
Resources,I.C.T. Services,Operations - System & Repairs Team,Supplies and Services,Computers and Communications,13-Apr-2016,HSO IFIXIT GMBH,Computer hardware,0.55,0.00,0.55
Children and Adult Services,Childrens Services,Bishop Auckland 0 - 5,Supplies and Services,Furniture,13-Apr-2016,FRANKS THE FLOORING ST,Furniture repair and replacement,100.00,0.00,100.00
Neighbourhood Services,Direct Services,Catering - County Hall Restaurant,Supplies and Services,Provisions,13-Apr-2016,JR HOLLAND FOODSERVICE,Catering costs - provisions,76.78,0.00,76.78
Neighbourhood Services,Direct Services,Catering - County Hall Restaurant,Supplies and Services,Provisions,13-Apr-2016,JR HOLLAND FOODSERVICE,Catering costs - provisions,33.12,0.00,33.12
Neighbourhood Services,Direct Services,Catering - County Hall Restaurant,Supplies and Services,Provisions,13-Apr-2016,BRAKE BROS LTD,Catering costs - provisions,136.44,22.74,113.70
Neighbourhood Services,Direct Services,Catering - County Hall Restaurant,Supplies and Services,Provisions,13-Apr-2016,BRAKE BROS LTD,Catering costs - provisions,406.90,,406.90
Children and Adult Services,Childrens Services,High Etherley Satelite Home,Supplies and Services,Furniture,13-Apr-2016,ARGOS LTD,Furniture repair and replacement,9.00,0.00,9.00
Children and Adult Services,Childrens Services,High Etherley Satelite Home,Supplies and Services,Furniture,13-Apr-2016,WILKO RETAIL LIMIT,Furniture repair and replacement,35.00,0.00,35.00
Children and Adult Services,Childrens Services,High Etherley Satelite Home,Supplies and Services,Provisions,13-Apr-2016,TESCO STORES 6329,Catering costs - provisions,3.90,0.00,3.90
Children and Adult Services,Childrens Services,Secure Management,Supplies and Services,Equipment and Materials,13-Apr-2016,Amazon UK Marketplace,Other consumables,25.99,0.00,25.99
Children and Adult Services,Childrens Services,Secure Management,Supplies and Services,Provisions,13-Apr-2016,TESCO STORES 6329,Catering costs - provisions,90.95,0.00,90.95
Neighbourhood Services,Direct Services,C&G - South Grounds Maintenance,Supplies and Services,Provisions,13-Apr-2016,J M RAINE,Catering costs - provisions,270.98,0.00,270.98
Neighbourhood Services,Direct Services,C&G - South Grounds Maintenance,Supplies and Services,Equipment and Materials,13-Apr-2016,SCREWFIX,Equipment-purchase and rental,5.38,0.90,4.48
Neighbourhood Services,Culture & Sport,Hardwick Park Catering,Supplies and Services,Provisions,13-Apr-2016,JR HOLLAND FOODSERVICE,Catering costs - provisions,47.80,0.00,47.80
Neighbourhood Services,Culture & Sport,Hardwick Park Catering,Supplies and Services,Provisions,13-Apr-2016,BRAKE BROS LTD,Catering costs - provisions,142.32,23.72,118.60
Neighbourhood Services,Culture & Sport,Hardwick Park Catering,Supplies and Services,Provisions,13-Apr-2016,BRAKE BROS LTD,Catering costs - provisions,64.94,,64.94
Resources,I.C.T. Services,Operations - System & Repairs Trading,Supplies and Services,Computers and Communications,13-Apr-2016,SONTEC (ELECTRONIC,Computer hardware,24.90,4.15,20.75
Neighbourhood Services,Direct Services,Catering - Green Lane Canteen,Supplies and Services,Provisions,13-Apr-2016,JR HOLLAND FOODSERVICE,Catering costs - provisions,32.95,0.00,32.95
Neighbourhood Services,Direct Services,Catering - Green Lane Canteen,Supplies and Services,Provisions,13-Apr-2016,BRAKE BROS LTD,Catering costs - provisions,104.71,0.00,104.71
Children and Adult Services,Childrens Services,Tow Law CU,Supplies and Services,Provisions,13-Apr-2016,ICELAND,Catering costs - provisions,21.00,0.00,21.00
Children and Adult Services,Childrens Services,Coxhoe Satelite Home,Supplies and Services,Provisions,13-Apr-2016,CO-OP GROUP 310016,Catering costs - provisions,9.76,0.00,9.76
Neighbourhood Services,Culture & Sport,Wellbeing4Life,Supplies and Services,Provisions,13-Apr-2016,ALDI,Catering costs - provisions,21.70,0.00,21.70
Neighbourhood Services,Technical Services,Building Design,Supplies and Services,Telephones,13-Apr-2016,Amazon UK Marketplace,Telephones general-all costs,19.23,0.00,19.23
Neighbourhood Services,Direct Services,C&G - North Grounds Maintenance,Supplies and Services,Newspapers Books and Periodicals,13-Apr-2016,DAVID DIXON LTD,Books-school library,477.60,79.60,398.00
Neighbourhood Services,Direct Services,C&G - North Grounds Maintenance,Supplies and Services,Newspapers Books and Periodicals,13-Apr-2016,DAVID DIXON LTD,Books-school library,275.64,45.94,229.70
Neighbourhood Services,Direct Services,C&G - North Grounds Maintenance,Supplies and Services,Newspapers Books and Periodicals,13-Apr-2016,GRALANDS WOODWORK SUPP,Books-school library,58.00,9.67,48.33
Neighbourhood Services,Culture & Sport,Sports,Employees,Recruitment Instruction and Training,13-Apr-2016,TYNE AND WEAR SPORT,Training-all costs,35.00,0.00,35.00
Neighbourhood Services,Culture & Sport,Bp Auckland Town Hall Cafe,Supplies and Services,Provisions,13-Apr-2016,JR HOLLAND FOODSERVICE,Catering costs - provisions,27.26,0.00,27.26
Neighbourhood Services,Direct Services,Catering - Service Direct,Supplies and Services,Provisions,13-Apr-2016,JR HOLLAND FOODSERVICE,Catering costs - provisions,16.12,0.00,16.12
Neighbourhood Services,Direct Services,Catering - Service Direct,Supplies and Services,Provisions,13-Apr-2016,JR HOLLAND FOODSERVICE,Catering costs - provisions,13.45,0.00,13.45
Neighbourhood Services,Direct Services,Catering - Service Direct,Supplies and Services,Provisions,13-Apr-2016,BRAKE BROS LTD,Catering costs - provisions,40.68,6.78,33.90
Neighbourhood Services,Direct Services,Catering - Service Direct,Supplies and Services,Provisions,13-Apr-2016,BRAKE BROS LTD,Catering costs - provisions,90.29,,90.29
Dedicated Schools Grant,Dedicated Schools Grant,Part Sighted-Belmont Comp,Supplies and Services,Equipment and Materials,13-Apr-2016,Kindle Unlimited,Equipment-purchase and rental,7.99,0.00,7.99
Neighbourhood Services,Culture & Sport,Woodhouse Close Leisure Complex,Supplies and Services,Provisions,13-Apr-2016,JR HOLLAND FOODSERVICE,Catering costs - provisions,25.43,0.00,25.43
Children and Adult Services,Planning & Service Strategy,P and P-Performance Management,Supplies and Services,Services,13-Apr-2016,DISCLOSURE SCOT,Disclosure & Barring (DBS) Fees,25.00,0.00,25.00
Children and Adult Services,Childrens Services,TTF-Attachment and Results,Supplies and Services,Furniture,13-Apr-2016,ARGOS DIRECT,Furniture repair and replacement,-10.00,0.00,-10.00
Children and Adult Services,Education,School Admissions and Transport,Supplies and Services,Postages,13-Apr-2016,POST OFFICE SHOP,Postages,3.00,0.50,2.50
Children and Adult Services,Education,School Admissions and Transport,Supplies and Services,Postages,13-Apr-2016,POST OFFICE SHOP,Postages,331.99,,331.99
Regeneration & Economic Development,Economic Development and Housing,Business Growth and Innovation General,Supplies and Services,Advertising,14-Apr-2016,ADROLL,Advertising other than for staff,1.36,0.00,1.36
Children and Adult Services,Education,Selby Cottage Childcare Centre,Supplies and Services,Clothing Uniforms and Laundry,14-Apr-2016,THE RANGE,Clothing uniforms and laundry,103.27,0.00,103.27
Children and Adult Services,Education,Selby Cottage Childcare Centre,Supplies and Services,Furniture,14-Apr-2016,IKEA,Furniture repair and replacement,108.00,0.00,108.00
Regeneration & Economic Development,Economic Development and Housing,Business Growth and Innovation General,Supplies and Services,Advertising,14-Apr-2016,ADROLL,Advertising other than for staff,16.42,0.00,16.42
Children and Adult Services,Childrens Services,Newton Aycliffe Childrens Centre,Supplies and Services,Postages,14-Apr-2016,WWW.ROYALMAIL.COM,Postages,28.93,0.00,28.93
Children and Adult Services,Childrens Services,Durham 0 - 5,Supplies and Services,Miscellaneous Expenses,14-Apr-2016,ADVENTURE VALLEY,Training-other activities,220.00,0.00,220.00
Neighbourhood Services,Direct Services,Catering - County Hall Restaurant,Supplies and Services,Provisions,14-Apr-2016,JR HOLLAND FOODSERVICE,Catering costs - provisions,92.25,0.00,92.25
Neighbourhood Services,Direct Services,Catering - County Hall Restaurant,Supplies and Services,Provisions,14-Apr-2016,JR HOLLAND FOODSERVICE,Catering costs - provisions,26.80,0.00,26.80
Neighbourhood Services,Direct Services,Catering - County Hall Restaurant,Supplies and Services,Provisions,14-Apr-2016,JR HOLLAND FOODSERVICE,Catering costs - provisions,13.16,0.00,13.16
Neighbourhood Services,Direct Services,Catering - County Hall Restaurant,Supplies and Services,Provisions,14-Apr-2016,JR HOLLAND FOODSERVICE,Catering costs - provisions,3.72,0.00,3.72
Neighbourhood Services,Direct Services,Catering - County Hall Restaurant,Supplies and Services,Provisions,14-Apr-2016,BRAKE BROS LTD,Catering costs - provisions,191.77,0.00,191.77
Children and Adult Services,Childrens Services,Bishop Auckland 0 - 5,Supplies and Services,Provisions,14-Apr-2016,LIDL UK,Catering costs - provisions,3.55,0.00,3.55
Neighbourhood Services,Culture & Sport,Gala Theatre - Catering etc,Supplies and Services,Provisions,14-Apr-2016,JR HOLLAND FOODSERVICE,Catering costs - provisions,53.75,0.00,53.75
Children and Adult Services,Childrens Services,Durham 0 - 5,Supplies and Services,Equipment and Materials,14-Apr-2016,WILKO DURHAM 426,Equipment-purchase and rental,21.65,0.00,21.65
Neighbourhood Services,Culture & Sport,Local Delivery-Libraries,Supplies and Services,Newspapers Books and Periodicals,14-Apr-2016,Amazon EU,Books-school library,13.49,0.00,13.49
Children and Adult Services,Education,ABG Education Health Partnership,Employees,Recruitment Instruction and Training,14-Apr-2016,EVENTBRITE INC,Training-all costs,-396.32,0.00,-396.32
Regeneration & Economic Development,Economic Development and Housing,International Relations,Transport,Public Transport,14-Apr-2016,DB BAHN A-NR SPF9UU,Staff travelling,172.50,0.00,172.50
Neighbourhood Services,Direct Services,C&G - North Grounds Maintenance,Supplies and Services,Equipment and Materials,14-Apr-2016,BESCOL,Other consumables,21.97,3.66,18.31
Neighbourhood Services,Direct Services,C&G - North Grounds Maintenance,Supplies and Services,Equipment and Materials,14-Apr-2016,SCREWFIX,Equipment-purchase and rental,299.99,50.00,249.99
Children and Adult Services,Childrens Services,Walworth,Supplies and Services,Equipment and Materials,14-Apr-2016,Amazon EU,Toys,18.99,0.00,18.99
Children and Adult Services,Childrens Services,Secure Education,Third Party Payments,Rendered by Private Contractors,14-Apr-2016,EB JAVASCRIPT PROGRAM,Payments to sub-contractors,22.29,0.00,22.29
Children and Adult Services,Childrens Services,Secure Management,Supplies and Services,Provisions,14-Apr-2016,TESCO STORES 6329,Catering costs - provisions,91.06,0.00,91.06
Children and Adult Services,Childrens Services,Secure Management,Supplies and Services,Clothing Uniforms and Laundry,14-Apr-2016,WWW.FOOTLOCKER.EU,Clothing uniforms and laundry,-89.99,0.00,-89.99
Neighbourhood Services,Direct Services,C&G - South Grounds Maintenance,Supplies and Services,Equipment and Materials,14-Apr-2016,HORNS GARDEN CENTR,Equipment-purchase and rental,16.99,2.83,14.16
Neighbourhood Services,Culture & Sport,Hardwick Park Catering,Supplies and Services,Provisions,14-Apr-2016,JR HOLLAND FOODSERVICE,Catering costs - provisions,17.61,0.00,17.61
Neighbourhood Services,Culture & Sport,Hardwick Park Catering,Supplies and Services,Provisions,14-Apr-2016,JR HOLLAND FOODSERVICE,Catering costs - provisions,9.21,0.00,9.21
Regeneration & Economic Development,Economic Development and Housing,International Relations,Transport,Public Transport,14-Apr-2016,PRINCE BISHOP SHOPPING,Staff travelling,2.10,0.00,2.10
Resources,Legal & Democratic Services,Democratic Representation,Supplies and Services,Subscriptions,14-Apr-2016,WWW.ICO.GOV.UK,Subscriptions,35.00,0.00,35.00
Resources,Legal & Democratic Services,Democratic Representation,Supplies and Services,Subscriptions,14-Apr-2016,WWW.ICO.GOV.UK,Subscriptions,35.00,0.00,35.00
Resources,Legal & Democratic Services,Democratic Representation,Supplies and Services,Subscriptions,14-Apr-2016,WWW.ICO.GOV.UK,Subscriptions,35.00,0.00,35.00
Resources,Legal & Democratic Services,Democratic Representation,Supplies and Services,Subscriptions,14-Apr-2016,WWW.ICO.GOV.UK,Subscriptions,35.00,0.00,35.00
Resources,Legal & Democratic Services,Democratic Representation,Supplies and Services,Subscriptions,14-Apr-2016,WWW.ICO.GOV.UK,Subscriptions,35.00,0.00,35.00
Resources,Legal & Democratic Services,Democratic Representation,Supplies and Services,Subscriptions,14-Apr-2016,WWW.ICO.GOV.UK,Subscriptions,35.00,0.00,35.00
Resources,Legal & Democratic Services,Democratic Representation,Supplies and Services,Subscriptions,14-Apr-2016,WWW.ICO.GOV.UK,Subscriptions,35.00,0.00,35.00
Resources,Legal & Democratic Services,Democratic Representation,Supplies and Services,Subscriptions,14-Apr-2016,WWW.ICO.GOV.UK,Subscriptions,35.00,0.00,35.00
Resources,Legal & Democratic Services,Democratic Representation,Supplies and Services,Subscriptions,14-Apr-2016,WWW.ICO.GOV.UK,Subscriptions,35.00,0.00,35.00
Resources,Legal & Democratic Services,Democratic Representation,Supplies and Services,Subscriptions,14-Apr-2016,WWW.ICO.GOV.UK,Subscriptions,35.00,0.00,35.00
Resources,Legal & Democratic Services,Democratic Representation,Supplies and Services,Subscriptions,14-Apr-2016,WWW.ICO.GOV.UK,Subscriptions,35.00,0.00,35.00
Resources,Legal & Democratic Services,Democratic Representation,Supplies and Services,Subscriptions,14-Apr-2016,WWW.ICO.GOV.UK,Subscriptions,35.00,0.00,35.00
Resources,Legal & Democratic Services,Democratic Representation,Supplies and Services,Subscriptions,14-Apr-2016,WWW.ICO.GOV.UK,Subscriptions,35.00,0.00,35.00
Resources,Legal & Democratic Services,Democratic Representation,Supplies and Services,Grants to Voluntary Organisations,14-Apr-2016,IMPERIAL LONDON HOTELS,Accommodation assistance,117.00,0.00,117.00
Resources,Legal & Democratic Services,Democratic Representation,Supplies and Services,Grants to Voluntary Organisations,14-Apr-2016,IMPERIAL LONDON HOTELS,Accommodation assistance,258.00,0.00,258.00
Neighbourhood Services,Culture & Sport,Positive Futures,Supplies and Services,Provisions,14-Apr-2016,TESCO STORES 2371,Catering costs - provisions,19.41,0.00,19.41
Neighbourhood Services,Culture & Sport,Woodhouse Close Leisure Complex,Supplies and Services,Provisions,14-Apr-2016,BRAKE BROS LTD,Catering costs - provisions,105.60,17.60,88.00
Neighbourhood Services,Culture & Sport,Woodhouse Close Leisure Complex,Supplies and Services,Provisions,14-Apr-2016,BRAKE BROS LTD,Catering costs - provisions,99.40,,99.40
Resources,I.C.T. Services,Operations - MSU,Supplies and Services,Miscellaneous Expenses,14-Apr-2016,WWW.SSL247.CO.UK,Licences,214.80,35.80,179.00
Neighbourhood Services,Culture & Sport,Locality 2 Team Management,Supplies and Services,Newspapers Books and Periodicals,14-Apr-2016,Amazon UK Marketplace,Books-school library,43.97,0.00,43.97
Regeneration & Economic Development,Economic Development and Housing,Business Growth and Innovation General,Supplies and Services,Computers and Communications,14-Apr-2016,WATCHFULPAYPAL,Computer hardware,14.10,0.00,14.10
Regeneration & Economic Development,Economic Development and Housing,Business Growth and Innovation General,Supplies and Services,Advertising,15-Apr-2016,ADROLL,Advertising other than for staff,0.45,0.00,0.45
Regeneration & Economic Development,Economic Development and Housing,International Relations,Transport,Public Transport,15-Apr-2016,DB BAHN A-NR SPF9UU,Staff travelling,4.74,0.00,4.74
Neighbourhood Services,Direct Services,C&G - South Street Cleansing,Transport,Running Costs of Vehicles,15-Apr-2016,SNOWBALLS (RAILWAY,Vehicle running expenses,81.66,13.61,68.05
Neighbourhood Services,Direct Services,Catering - County Hall Restaurant,Supplies and Services,Provisions,15-Apr-2016,JR HOLLAND FOODSERVICE,Catering costs - provisions,102.45,0.00,102.45
Neighbourhood Services,Direct Services,Catering - County Hall Restaurant,Supplies and Services,Provisions,15-Apr-2016,JR HOLLAND FOODSERVICE,Catering costs - provisions,13.16,0.00,13.16
Children and Adult Services,Childrens Services,Bishop Auckland 5 - 19,Supplies and Services,Equipment and Materials,15-Apr-2016,HOME BARGAINS,Other consumables,6.23,1.04,5.19
Children and Adult Services,Childrens Services,Bishop Auckland 0 - 5,Supplies and Services,Provisions,15-Apr-2016,WM MORRISON 040,Catering costs - provisions,10.88,0.00,10.88
Regeneration & Economic Development,Spatial Policy Planning Assets & Environment,North Pennines Core,Supplies and Services,Clothing Uniforms and Laundry,15-Apr-2016,WWW.TANKLOCKS.CO.UK,Clothing uniforms and laundry,22.56,3.76,18.80
Children and Adult Services,Childrens Services,High Etherley Satelite Home,Supplies and Services,Furniture,15-Apr-2016,ASDA STORES LTD 4313,Curtains and carpets,156.00,0.00,156.00
Children and Adult Services,Childrens Services,High Etherley Satelite Home,Supplies and Services,Furniture,15-Apr-2016,ASDA STORES,Furniture repair and replacement,5.00,0.00,5.00
Children and Adult Services,Childrens Services,High Etherley Satelite Home,Supplies and Services,Furniture,15-Apr-2016,TESCO STORES 6329,Curtains and carpets,5.00,0.00,5.00
Children and Adult Services,Childrens Services,High Etherley Satelite Home,Supplies and Services,Equipment and Materials,15-Apr-2016,CURRYS ONLINE,Equipment-purchase and rental,107.98,0.00,107.98
Regeneration & Economic Development,Economic Development and Housing,International Relations,Transport,Public Transport,15-Apr-2016,PRINCE BISHOP SHOPPING,Staff travelling,3.30,0.00,3.30
Neighbourhood Services,Direct Services,C&G - North Grounds Maintenance,Supplies and Services,Equipment and Materials,15-Apr-2016,BESCOL,Other consumables,42.12,7.02,35.10
Children and Adult Services,Childrens Services,Newton Aycliffe Teenage Parent Programme,Supplies and Services,Equipment and Materials,15-Apr-2016,TESCO DIRECT,Other consumables,124.00,0.00,124.00
Children and Adult Services,Childrens Services,Secure Education,Third Party Payments,Rendered by Private Contractors,15-Apr-2016,EB ADVANCED FUNCTIONA,Payments to sub-contractors,22.29,0.00,22.29
Children and Adult Services,Childrens Services,Secure Education,Third Party Payments,Rendered by Private Contractors,15-Apr-2016,EB GCSE COMPUTING EXA,Payments to sub-contractors,22.29,0.00,22.29
Children and Adult Services,Childrens Services,Secure Education,Third Party Payments,Rendered by Private Contractors,15-Apr-2016,EB LOW LEVEL PROGRAMM,Payments to sub-contractors,22.29,0.00,22.29
Children and Adult Services,Childrens Services,Secure Education,Third Party Payments,Rendered by Private Contractors,15-Apr-2016,EB USING COMPLEX DATA,Payments to sub-contractors,22.29,0.00,22.29
Children and Adult Services,Childrens Services,Secure Management,Supplies and Services,Provisions,15-Apr-2016,TESCO STORES 6329,Catering costs - provisions,98.43,0.00,98.43
Neighbourhood Services,Culture & Sport,Hardwick Park Catering,Supplies and Services,Provisions,15-Apr-2016,JR HOLLAND FOODSERVICE,Catering costs - provisions,17.94,0.00,17.94
Neighbourhood Services,Culture & Sport,Hardwick Park Catering,Supplies and Services,Provisions,15-Apr-2016,JR HOLLAND FOODSERVICE,Catering costs - provisions,4.16,0.00,4.16
Neighbourhood Services,Culture & Sport,Hardwick Park Catering,Supplies and Services,Provisions,15-Apr-2016,BRAKE BROS LTD,Catering costs - provisions,133.08,22.18,110.90
Neighbourhood Services,Culture & Sport,Hardwick Park Catering,Supplies and Services,Provisions,15-Apr-2016,BRAKE BROS LTD,Catering costs - provisions,183.36,,183.36
Neighbourhood Services,Culture & Sport,Hardwick Park Catering,Supplies and Services,Provisions,15-Apr-2016,BRAKE BROS LTD,Catering costs - provisions,89.82,14.97,74.85
Neighbourhood Services,Culture & Sport,Hardwick Park Catering,Supplies and Services,Provisions,15-Apr-2016,BRAKE BROS LTD,Catering costs - provisions,32.49,,32.49
Resources,I.C.T. Services,Operations - System & Repairs Trading,Supplies and Services,Computers and Communications,15-Apr-2016,Amazon UK Marketplace,Computer hardware,3.06,0.00,3.06
Resources,I.C.T. Services,Operations - MSU,Supplies and Services,Computers and Communications,15-Apr-2016,Amazon UK Marketplace,Computer hardware,75.43,0.00,75.43
Neighbourhood Services,Direct Services,Catering - Green Lane Canteen,Supplies and Services,Provisions,15-Apr-2016,JR HOLLAND FOODSERVICE,Catering costs - provisions,46.38,0.00,46.38
Regeneration & Economic Development,Economic Development and Housing,Employability - Youth Contract,Supplies and Services,Equipment and Materials,15-Apr-2016,WWW.SIMPLYGO.COM,Other consumables,18.40,0.00,18.40
Children and Adult Services,Childrens Services,Coxhoe Satelite Home,Supplies and Services,Provisions,15-Apr-2016,ALDI,Catering costs - provisions,34.21,0.00,34.21
Children and Adult Services,Childrens Services,Coxhoe Satelite Home,Supplies and Services,Provisions,15-Apr-2016,ICELAND,Catering costs - provisions,16.50,0.00,16.50
Neighbourhood Services,Direct Services,C&G - South Grounds Maintenance,Supplies and Services,Provisions,15-Apr-2016,J M RAINE,Catering costs - provisions,40.78,6.80,33.98
Regeneration & Economic Development,Economic Development and Housing,Business Services General,Transport,Public Transport,15-Apr-2016,ECML NEWCASTLE PARKING,Staff travelling,15.50,0.00,15.50
Assistant Chief Executive,Planning & Performance Division,Information Management,Supplies and Services,Newspapers Books and Periodicals,15-Apr-2016,Amazon UK Marketplace,Newspapers books and periodicals,33.76,0.00,33.76
Regeneration & Economic Development,Transport and Contracted Services,Traffic,Supplies and Services,Computers and Communications,15-Apr-2016,CRUCIAL.COM,Computer hardware,46.76,0.00,46.76
Resources,I.C.T. Services,Administration,Transport,Public Transport,15-Apr-2016,OYSTER RENEW WEB,Staff travelling,50.00,0.00,50.00
Resources,Legal & Democratic Services,Democratic Representation,Supplies and Services,Grants to Voluntary Organisations,15-Apr-2016,IMPERIAL LONDON HOTELS,Accommodation assistance,117.00,0.00,117.00
Neighbourhood Services,Direct Services,C&G - North Grounds Maintenance,Supplies and Services,Equipment and Materials,15-Apr-2016,NEW ROW FARM NURSERIES,Misc equipment tools and materials,499.99,83.33,416.66
Neighbourhood Services,Direct Services,C&G - North Grounds Maintenance,Supplies and Services,Equipment and Materials,15-Apr-2016,NEW ROW FARM NURSERIES,Misc equipment tools and materials,499.99,83.33,416.66
Neighbourhood Services,Culture & Sport,Sports,Employees,Recruitment Instruction and Training,15-Apr-2016,TYNE AND WEAR SPORT,Training-all costs,35.00,0.00,35.00
Neighbourhood Services,Culture & Sport,Sports,Employees,Recruitment Instruction and Training,15-Apr-2016,TYNE AND WEAR SPORT,Training-all costs,30.00,0.00,30.00
Neighbourhood Services,Culture & Sport,Sports,Employees,Recruitment Instruction and Training,15-Apr-2016,TYNE AND WEAR SPORT,Training-all costs,15.00,0.00,15.00
Neighbourhood Services,Direct Services,Catering - Service Direct,Supplies and Services,Provisions,15-Apr-2016,JR HOLLAND FOODSERVICE,Catering costs - provisions,33.13,0.00,33.13
Neighbourhood Services,Direct Services,Catering - Service Direct,Supplies and Services,Provisions,15-Apr-2016,JR HOLLAND FOODSERVICE,Catering costs - provisions,9.87,0.00,9.87
Neighbourhood Services,Direct Services,Catering - Service Direct,Supplies and Services,Provisions,15-Apr-2016,BRAKE BROS LTD,Catering costs - provisions,-11.86,0.00,-11.86
Neighbourhood Services,Direct Services,C&G - North Grounds Maintenance,Supplies and Services,Equipment and Materials,15-Apr-2016,SCREWFIX,Equipment-purchase and rental,71.00,11.83,59.17
Children and Adult Services,Childrens Services,Bishop Auckland and Barnard Castle Locality,Supplies and Services,Equipment and Materials,15-Apr-2016,TESCO - Seller_IST_1_2,Other consumables,339.98,0.00,339.98
Neighbourhood Services,Technical Services,Training and Development,Supplies and Services,Newspapers Books and Periodicals,15-Apr-2016,STATIONERY OFFICE BOOK,Books-school library,35.70,5.95,29.75
Neighbourhood Services,Technical Services,Training and Development,Supplies and Services,Newspapers Books and Periodicals,15-Apr-2016,STATIONERY OFFICE BOOK,Books-school library,14.98,,14.98
Regeneration & Economic Development,Economic Development and Housing,Housing Solutions - Core Team,Supplies and Services,Services,15-Apr-2016,DISCLOSURE SCOT,Disclosure & Barring (DBS) Fees,25.00,0.00,25.00
Children and Adult Services,Planning & Service Strategy,SF-Rivergreen Durham,Transport,Public Transport,15-Apr-2016,PRINCE BISHOP SHOPPING,Staff travelling,3.30,0.00,3.30
Children and Adult Services,Education,Shildon Childcare,Supplies and Services,Equipment and Materials,16-Apr-2016,HOME BARGAINS,Toys,16.81,2.80,14.01
Children and Adult Services,Childrens Services,Durham 0 - 5,Supplies and Services,Clothing Uniforms and Laundry,16-Apr-2016,POUNDLAND LTD 1037,Clothing uniforms and laundry,4.00,0.00,4.00
Children and Adult Services,Childrens Services,Secure Management,Supplies and Services,Provisions,16-Apr-2016,TESCO STORES 6329,Catering costs - provisions,135.11,0.00,135.11
Children and Adult Services,Childrens Services,Secure Management,Supplies and Services,Provisions,16-Apr-2016,TESCO STORES 6329,Catering costs - provisions,-4.75,0.00,-4.75
Neighbourhood Services,Culture & Sport,Gala Theatre Stage School,Supplies and Services,Printing Stationery and Gen Off Exps,16-Apr-2016,SHOPFITTING WAREHOUSE,Stationery,103.14,17.19,85.95
Neighbourhood Services,Culture & Sport,Events,Supplies and Services,Newspapers Books and Periodicals,16-Apr-2016,Amazon UK Marketplace,Books-school library,172.31,0.00,172.31
Neighbourhood Services,Direct Services,Seaham CAP Library St Johns Square Seaham,Supplies and Services,Miscellaneous Expenses,16-Apr-2016,TVLICENSING.CO.UK,Licences,145.50,0.00,145.50
Neighbourhood Services,Direct Services,Meadowfield Depot - Running Costs,Supplies and Services,Miscellaneous Expenses,16-Apr-2016,TVLICENSING.CO.UK,Licences,145.50,0.00,145.50
Neighbourhood Services,Culture & Sport,Facilities Management - Ch-le-St Leisure Centre (N),Supplies and Services,Miscellaneous Expenses,16-Apr-2016,TVLICENSING.CO.UK,Licences,145.50,0.00,145.50
Regeneration & Economic Development,Economic Development and Housing,Business Growth and Innovation General,Supplies and Services,Equipment and Materials,17-Apr-2016,PatentInspirationEU,Misc equipment tools and materials,78.80,0.00,78.80
Neighbourhood Services,Direct Services,Gas Servicing and Repairs,Supplies and Services,Subscriptions,17-Apr-2016,PAYPAL GOTOGASLIMI,Subscriptions,149.99,0.00,149.99
Resources,Resources Management,Resources Management,Supplies and Services,Provisions,17-Apr-2016,CO-OP GROUP 010830,Catering costs - provisions,2.00,0.00,2.00
Regeneration & Economic Development,Economic Development and Housing,Business Growth and Innovation General,Supplies and Services,Computers and Communications,18-Apr-2016,WATCHFULPAYPAL,Computer hardware,0.39,0.00,0.39
Regeneration & Economic Development,Economic Development and Housing,Business Growth and Innovation General,Supplies and Services,Equipment and Materials,18-Apr-2016,PatentInspirationEU,Misc equipment tools and materials,2.17,0.00,2.17
Children and Adult Services,Education,Selby Cottage Childcare Centre,Supplies and Services,Clothing Uniforms and Laundry,18-Apr-2016,THE RANGE,Clothing uniforms and laundry,149.01,0.00,149.01
Children and Adult Services,Education,Selby Cottage Childcare Centre,Supplies and Services,Furniture,18-Apr-2016,IKEA,Furniture repair and replacement,64.40,0.00,64.40
Children and Adult Services,Education,Shildon Childcare,Supplies and Services,Provisions,18-Apr-2016,ASDA HOME SHOPPING,Catering costs - provisions,43.06,0.00,43.06
Children and Adult Services,Childrens Services,9 Cedar Drive Aycliffe,Supplies and Services,Newspapers Books and Periodicals,18-Apr-2016,BONACIA,Books-school library,17.99,0.00,17.99
Children and Adult Services,Childrens Services,9 Cedar Drive Aycliffe,Employees,Recruitment Instruction and Training,18-Apr-2016,PARENTPAY.COM,Training-all costs,20.00,0.00,20.00
Children and Adult Services,Childrens Services,9 Cedar Drive Aycliffe,Supplies and Services,Provisions,18-Apr-2016,TESCO STORES 2916,Catering costs - provisions,49.26,0.00,49.26
Children and Adult Services,Childrens Services,9 Cedar Drive Aycliffe,Supplies and Services,Provisions,18-Apr-2016,TESCO STORES 2916,Catering costs - provisions,21.00,0.00,21.00
Regeneration & Economic Development,Economic Development and Housing,Business Growth and Innovation General,Supplies and Services,Equipment and Materials,18-Apr-2016,LINKEDIN-3278449163,Misc equipment tools and materials,107.10,0.00,107.10
Neighbourhood Services,Direct Services,Catering - County Hall Restaurant,Supplies and Services,Provisions,18-Apr-2016,BRAMBLES FOODS LTD,Catering costs - provisions,512.49,0.00,512.49
Neighbourhood Services,Direct Services,Catering - County Hall Restaurant,Supplies and Services,Provisions,18-Apr-2016,FREEMAN CATERING BUTCH,Catering costs - provisions,68.84,0.00,68.84
Neighbourhood Services,Direct Services,Catering - County Hall Restaurant,Supplies and Services,Provisions,18-Apr-2016,JR HOLLAND FOODSERVICE,Catering costs - provisions,75.39,0.00,75.39
Neighbourhood Services,Direct Services,Catering - County Hall Restaurant,Supplies and Services,Provisions,18-Apr-2016,JR HOLLAND FOODSERVICE,Catering costs - provisions,13.52,0.00,13.52
Neighbourhood Services,Direct Services,Catering - County Hall Restaurant,Supplies and Services,Provisions,18-Apr-2016,BRAKE BROS LTD,Catering costs - provisions,170.76,28.46,142.30
Neighbourhood Services,Direct Services,Catering - County Hall Restaurant,Supplies and Services,Provisions,18-Apr-2016,BRAKE BROS LTD,Catering costs - provisions,220.98,,220.98
Children and Adult Services,Education,Durham SSP,Supplies and Services,Miscellaneous Expenses,18-Apr-2016,TRAINLINE,Other hired and contracted services,43.76,0.00,43.76
Children and Adult Services,Childrens Services,Durham 0 - 5,Supplies and Services,Equipment and Materials,18-Apr-2016,WILKO DURHAM 426,Equipment-purchase and rental,6.80,0.00,6.80
Children and Adult Services,Education,Dean Bank Childcare,Supplies and Services,Provisions,18-Apr-2016,ASDA HOME SHOPPING,Catering costs - provisions,58.57,0.00,58.57
Neighbourhood Services,Direct Services,C&G - North Grounds Maintenance,Supplies and Services,Equipment and Materials,18-Apr-2016,WWW.ARCO.CO.UK,Direct materials,62.39,10.40,51.99
Neighbourhood Services,Culture & Sport,Hardwick Park Catering,Supplies and Services,Provisions,18-Apr-2016,FREEMAN CATERING BUTCH,Catering costs - provisions,23.50,0.00,23.50
Neighbourhood Services,Culture & Sport,Hardwick Park Catering,Supplies and Services,Provisions,18-Apr-2016,FREEMAN CATERING BUTCH,Catering costs - provisions,19.36,0.00,19.36
Neighbourhood Services,Culture & Sport,Hardwick Park Catering,Supplies and Services,Provisions,18-Apr-2016,JR HOLLAND FOODSERVICE,Catering costs - provisions,20.65,0.00,20.65
Neighbourhood Services,Culture & Sport,Hardwick Park Catering,Supplies and Services,Provisions,18-Apr-2016,BRAKE BROS LTD,Catering costs - provisions,118.20,19.70,98.50
Neighbourhood Services,Culture & Sport,Hardwick Park Catering,Supplies and Services,Provisions,18-Apr-2016,BRAKE BROS LTD,Catering costs - provisions,156.68,,156.68
Neighbourhood Services,Culture & Sport,Hardwick Park Catering,Supplies and Services,Provisions,18-Apr-2016,BRAKE BROS LTD,Catering costs - provisions,52.82,0.00,52.82
Neighbourhood Services,Culture & Sport,Gala Theatre Stage School,Supplies and Services,Furniture,18-Apr-2016,IKEA,Furniture repair and replacement,20.00,0.00,20.00
Neighbourhood Services,Direct Services,Catering - Green Lane Canteen,Supplies and Services,Provisions,18-Apr-2016,BRAMBLES FOODS LTD,Catering costs - provisions,88.92,0.00,88.92
Neighbourhood Services,Direct Services,Catering - Green Lane Canteen,Supplies and Services,Provisions,18-Apr-2016,FREEMAN CATERING BUTCH,Catering costs - provisions,98.36,0.00,98.36
Neighbourhood Services,Direct Services,Catering - Green Lane Canteen,Supplies and Services,Provisions,18-Apr-2016,FREEMAN CATERING BUTCH,Catering costs - provisions,44.06,0.00,44.06
Neighbourhood Services,Direct Services,C&G - South Grounds Maintenance,Supplies and Services,Provisions,18-Apr-2016,J M RAINE,Catering costs - provisions,187.42,0.00,187.42
Neighbourhood Services,Direct Services,C&G - South Grounds Maintenance,Supplies and Services,Provisions,18-Apr-2016,J M RAINE,Catering costs - provisions,33.00,0.00,33.00
Neighbourhood Services,Direct Services,Gas Servicing and Repairs,Supplies and Services,Subscriptions,18-Apr-2016,PAYPAL GOTOGASLIMI,Subscriptions,-149.99,0.00,-149.99
Neighbourhood Services,Culture & Sport,Wellbeing4Life,Supplies and Services,Provisions,18-Apr-2016,TESCO STORES 2916,Catering costs - provisions,15.05,0.00,15.05
Regeneration & Economic Development,Spatial Policy Planning Assets & Environment,North Pennines Core,Supplies and Services,Miscellaneous Expenses,18-Apr-2016,THE RABY ESTATES,Other expenses,18.54,3.09,15.45
Regeneration & Economic Development,Spatial Policy Planning Assets & Environment,North Pennines Core,Supplies and Services,Miscellaneous Expenses,18-Apr-2016,THE RABY ESTATES,Other expenses,46.46,,46.46
Resources,Legal & Democratic Services,Lord Lieutenancy,Supplies and Services,Advertising,18-Apr-2016,STATIONERY OFFICE BOOK,Advertising other than for staff,49.44,8.24,41.20
Resources,I.C.T. Services,Administration,Transport,Public Transport,18-Apr-2016,OYSTER RENEW WEB,Staff travelling,50.00,0.00,50.00
Neighbourhood Services,Culture & Sport,Bp Auckland Town Hall Cafe,Supplies and Services,Provisions,18-Apr-2016,BRAMBLES FOODS LTD,Catering costs - provisions,82.23,0.00,82.23
Neighbourhood Services,Culture & Sport,Bp Auckland Town Hall Cafe,Supplies and Services,Provisions,18-Apr-2016,JR HOLLAND FOODSERVICE,Catering costs - provisions,15.49,0.00,15.49
Neighbourhood Services,Culture & Sport,Bp Auckland Town Hall Cafe,Supplies and Services,Provisions,18-Apr-2016,BRAKE BROS LTD,Catering costs - provisions,141.78,23.63,118.15
Neighbourhood Services,Culture & Sport,Bp Auckland Town Hall Cafe,Supplies and Services,Provisions,18-Apr-2016,BRAKE BROS LTD,Catering costs - provisions,80.01,,80.01
Neighbourhood Services,Culture & Sport,Bp Auckland Town Hall Cafe,Supplies and Services,Provisions,18-Apr-2016,BRAKE BROS LTD,Catering costs - provisions,85.35,0.00,85.35
Regeneration & Economic Development,Transport and Contracted Services,Care Connect All Localities,Supplies and Services,Telephones,18-Apr-2016,BT BILL PAYMENT 2,Telephones general-all costs,83.82,13.97,69.85
Regeneration & Economic Development,Transport and Contracted Services,Care Connect All Localities,Supplies and Services,Telephones,18-Apr-2016,BT BILL PAYMENT 2,Telephones general-all costs,83.82,13.97,69.85
Regeneration & Economic Development,Transport and Contracted Services,Care Connect All Localities,Supplies and Services,Telephones,18-Apr-2016,BT BILL PAYMENT 2,Telephones general-all costs,78.66,13.11,65.55
Regeneration & Economic Development,Transport and Contracted Services,Care Connect All Localities,Supplies and Services,Telephones,18-Apr-2016,BT BILL PAYMENT 2,Telephones general-all costs,27.60,4.60,23.00
Regeneration & Economic Development,Transport and Contracted Services,Care Connect All Localities,Supplies and Services,Telephones,18-Apr-2016,BT BILL PAYMENT 2,Telephones general-all costs,84.24,14.04,70.20
Neighbourhood Services,Direct Services,Catering - Service Direct,Supplies and Services,Provisions,18-Apr-2016,BRAMBLES FOODS LTD,Catering costs - provisions,75.78,0.00,75.78
Neighbourhood Services,Direct Services,Catering - Service Direct,Supplies and Services,Provisions,18-Apr-2016,FREEMAN CATERING BUTCH,Catering costs - provisions,80.87,0.00,80.87
Neighbourhood Services,Culture & Sport,Positive Futures,Supplies and Services,Provisions,18-Apr-2016,ASDA STORES LTD,Catering costs - provisions,9.52,0.00,9.52
Neighbourhood Services,Culture & Sport,Woodhouse Close Leisure Complex,Supplies and Services,Provisions,18-Apr-2016,JR HOLLAND FOODSERVICE,Catering costs - provisions,36.59,0.00,36.59
Neighbourhood Services,Culture & Sport,Woodhouse Close Leisure Complex,Supplies and Services,Provisions,18-Apr-2016,BRAKE BROS LTD,Catering costs - provisions,79.64,0.00,79.64
Neighbourhood Services,Culture & Sport,Locality 2 Team Management,Supplies and Services,Clothing Uniforms and Laundry,18-Apr-2016,ARGOS LTD,Clothing uniforms and laundry,49.99,0.00,49.99
Neighbourhood Services,Culture & Sport,Abbey Leisure Centre,Supplies and Services,Miscellaneous Expenses,18-Apr-2016,TV LICENSING,Licences,145.50,0.00,145.50
Regeneration & Economic Development,Economic Development and Housing,Group Repair - Dawdon Ph 9,Income,Fees and Charges,19-Apr-2016,HMCOURT-SERVICES.G,Fees-legal,100.00,0.00,100.00
Children and Adult Services,Childrens Services,Bishop Auckland 0 - 5,Supplies and Services,Provisions,19-Apr-2016,TESCO STORES 6329,Catering costs - provisions,51.46,0.00,51.46
Children and Adult Services,Childrens Services,Bishop Auckland 0 - 5,Supplies and Services,Provisions,19-Apr-2016,TESCO STORES 6329,Catering costs - provisions,2.76,0.00,2.76
Children and Adult Services,Childrens Services,9 Cedar Drive Aycliffe,Supplies and Services,Clothing Uniforms and Laundry,19-Apr-2016,THE RANGE,Clothing uniforms and laundry,33.97,0.00,33.97
Children and Adult Services,Childrens Services,9 Cedar Drive Aycliffe,Supplies and Services,Clothing Uniforms and Laundry,19-Apr-2016,THE RANGE,Clothing uniforms and laundry,15.99,0.00,15.99
Neighbourhood Services,Direct Services,Catering - County Hall Restaurant,Supplies and Services,Provisions,19-Apr-2016,JR HOLLAND FOODSERVICE,Catering costs - provisions,21.64,0.00,21.64
Neighbourhood Services,Direct Services,Catering - County Hall Restaurant,Supplies and Services,Provisions,19-Apr-2016,BRAKE BROS LTD,Catering costs - provisions,238.17,0.00,238.17
Resources,I.C.T. Services,Domains,Supplies and Services,Subscriptions,19-Apr-2016,WEB NETWORKSOLUTIONS,Subscriptions,63.55,10.59,52.96
Neighbourhood Services,Culture & Sport,Gala Theatre - Catering etc,Supplies and Services,Provisions,19-Apr-2016,JR HOLLAND FOODSERVICE,Catering costs - provisions,36.82,0.00,36.82
Neighbourhood Services,Culture & Sport,Gala Theatre - Catering etc,Supplies and Services,Provisions,19-Apr-2016,BRAKE BROS LTD,Catering costs - provisions,24.00,4.00,20.00
Neighbourhood Services,Culture & Sport,Gala Theatre - Catering etc,Supplies and Services,Provisions,19-Apr-2016,BRAKE BROS LTD,Catering costs - provisions,149.23,,149.23
Children and Adult Services,Childrens Services,Framwellgate Moor CU,Supplies and Services,Provisions,19-Apr-2016,ASDA HOME SHOPPING,Catering costs - provisions,172.43,0.00,172.43
Children and Adult Services,Childrens Services,Peterlee and Seaham Locality,Supplies and Services,Equipment and Materials,19-Apr-2016,CURRYS ONLINE,Equipment-purchase and rental,29.99,0.00,29.99
Children and Adult Services,Childrens Services,Secure Management,Supplies and Services,Clothing Uniforms and Laundry,19-Apr-2016,WWW.FOOTASYLUM.COM,Clothing uniforms and laundry,177.96,0.00,177.96
Neighbourhood Services,Culture & Sport,Hardwick Park Catering,Supplies and Services,Provisions,19-Apr-2016,JR HOLLAND FOODSERVICE,Catering costs - provisions,94.25,0.00,94.25
Neighbourhood Services,Culture & Sport,Hardwick Park Catering,Supplies and Services,Provisions,19-Apr-2016,JR HOLLAND FOODSERVICE,Catering costs - provisions,7.34,0.00,7.34
Neighbourhood Services,Culture & Sport,Hardwick Park Catering,Supplies and Services,Provisions,19-Apr-2016,JR HOLLAND FOODSERVICE,Catering costs - provisions,1.48,0.00,1.48
Resources,I.C.T. Services,Business Support,Supplies and Services,Newspapers Books and Periodicals,19-Apr-2016,WWW.POWERTOLLWAREHOUSE,Books-school library,10.73,0.00,10.73
Neighbourhood Services,Direct Services,Catering - Green Lane Canteen,Supplies and Services,Provisions,19-Apr-2016,BRAKE BROS LTD,Catering costs - provisions,19.02,3.17,15.85
Neighbourhood Services,Direct Services,Catering - Green Lane Canteen,Supplies and Services,Provisions,19-Apr-2016,BRAKE BROS LTD,Catering costs - provisions,122.49,,122.49
Children and Adult Services,Childrens Services,Tow Law CU,Supplies and Services,Clothing Uniforms and Laundry,19-Apr-2016,ORIGINAL FACTORY S,Clothing uniforms and laundry,29.00,0.00,29.00
Children and Adult Services,Childrens Services,Bishop Auckland 0 - 5,Supplies and Services,Provisions,19-Apr-2016,TESCO STORES 6329,Catering costs - provisions,40.56,0.00,40.56
Neighbourhood Services,Direct Services,C&G - South Grounds Maintenance,Supplies and Services,Equipment and Materials,19-Apr-2016,J.T.ATKINSON,Equipment-purchase and rental,12.60,0.00,12.60
Neighbourhood Services,Direct Services,C&G - South Grounds Maintenance,Supplies and Services,Equipment and Materials,19-Apr-2016,MAXWELLS D I Y,Other consumables,40.46,0.00,40.46
Neighbourhood Services,Direct Services,C&G - South Grounds Maintenance,Supplies and Services,Equipment and Materials,19-Apr-2016,COXHOE SERVICE AND SUP,Direct materials,36.00,6.00,30.00
Neighbourhood Services,Culture & Sport,Wellbeing4Life,Supplies and Services,Provisions,19-Apr-2016,TESCO STORES 2916,Catering costs - provisions,8.18,0.00,8.18
Children and Adult Services,Childrens Services,Peterlee and Seaham Locality,Supplies and Services,Equipment and Materials,19-Apr-2016,WILKO.COM,Equipment-purchase and rental,56.00,0.00,56.00
Children and Adult Services,Childrens Services,Peterlee and Seaham Locality,Supplies and Services,Clothing Uniforms and Laundry,19-Apr-2016,ARGOS RETAIL GROUP,Clothing uniforms and laundry,308.94,0.00,308.94
Neighbourhood Services,Culture & Sport,Sports,Employees,Recruitment Instruction and Training,19-Apr-2016,TYNE AND WEAR SPORT,Training-all costs,35.00,0.00,35.00
Neighbourhood Services,Culture & Sport,Sports,Employees,Recruitment Instruction and Training,19-Apr-2016,TYNE AND WEAR SPORT,Training-all costs,35.00,0.00,35.00
Neighbourhood Services,Direct Services,Catering - Service Direct,Supplies and Services,Provisions,19-Apr-2016,BRAKE BROS LTD,Catering costs - provisions,60.34,0.00,60.34
Children and Adult Services,Childrens Services,Bishop Auckland and Barnard Castle Locality,Supplies and Services,Furniture,19-Apr-2016,KIDDICARE,Furniture repair and replacement,149.70,0.00,149.70
Children and Adult Services,Childrens Services,Dean Bank Childrens Centre,Supplies and Services,Provisions,19-Apr-2016,ASDA HOME SHOPPING,Catering costs - provisions,30.52,0.00,30.52
Children and Adult Services,Childrens Services,Dean Bank Childrens Centre,Supplies and Services,Provisions,19-Apr-2016,ASDA HOME SHOPPING,Catering costs - provisions,-0.50,0.00,-0.50
Children and Adult Services,Planning & Service Strategy,SF-Rivergreen Durham,Supplies and Services,Equipment and Materials,19-Apr-2016,WILKO DURHAM 426,Equipment-purchase and rental,4.45,0.00,4.45
Children and Adult Services,Planning & Service Strategy,SF-Rivergreen Durham,Supplies and Services,Provisions,19-Apr-2016,LIDL UK,Catering costs - provisions,16.95,0.00,16.95
Children and Adult Services,Childrens Services,Bishop Auckland and Barnard Castle Locality,Supplies and Services,Clothing Uniforms and Laundry,19-Apr-2016,MOTHERCARE DIRECT-E-CO,Clothing uniforms and laundry,71.92,11.99,59.93
Neighbourhood Services,Culture & Sport,Events,Supplies and Services,Grants to Voluntary Organisations,19-Apr-2016,PREMIER INN,Accommodation assistance,532.00,88.67,443.33
Neighbourhood Services,Culture & Sport,Events,Supplies and Services,Grants to Voluntary Organisations,19-Apr-2016,PREMIER INN,Accommodation assistance,736.00,122.67,613.33
Neighbourhood Services,Culture & Sport,Events,Supplies and Services,Grants to Voluntary Organisations,19-Apr-2016,PREMIER INN,Accommodation assistance,648.00,108.00,540.00
Resources,I.C.T. Services,ICT School Services - DLG,Supplies and Services,Subscriptions,20-Apr-2016,WEB NETWORKSOLUTIONS,Subscriptions,1.75,0.00,1.75
Neighbourhood Services,Direct Services,Catering - County Hall Restaurant,Supplies and Services,Provisions,20-Apr-2016,JR HOLLAND FOODSERVICE,Catering costs - provisions,85.32,0.00,85.32
Neighbourhood Services,Direct Services,Catering - County Hall Restaurant,Supplies and Services,Provisions,20-Apr-2016,JR HOLLAND FOODSERVICE,Catering costs - provisions,38.42,0.00,38.42
Neighbourhood Services,Direct Services,Catering - County Hall Restaurant,Supplies and Services,Provisions,20-Apr-2016,JR HOLLAND FOODSERVICE,Catering costs - provisions,31.35,0.00,31.35
Neighbourhood Services,Direct Services,Catering - County Hall Restaurant,Supplies and Services,Provisions,20-Apr-2016,BRAKE BROS LTD,Catering costs - provisions,282.00,47.00,235.00
Neighbourhood Services,Direct Services,Catering - County Hall Restaurant,Supplies and Services,Provisions,20-Apr-2016,BRAKE BROS LTD,Catering costs - provisions,250.15,,250.15
Neighbourhood Services,Direct Services,Catering - County Hall Restaurant,Supplies and Services,Provisions,20-Apr-2016,BRAKE BROS LTD,Catering costs - provisions,-2.17,0.00,-2.17
Resources,I.C.T. Services,ICT School Services - DLG,Supplies and Services,Subscriptions,20-Apr-2016,WEB NETWORKSOLUTIONS,Subscriptions,63.70,10.62,53.08
Regeneration & Economic Development,Spatial Policy Planning Assets & Environment,North Pennines Core,Supplies and Services,Newspapers Books and Periodicals,20-Apr-2016,Amazon UK Marketplace,Books-school library,13.28,0.00,13.28
Neighbourhood Services,Culture & Sport,Office Services,Supplies and Services,Computers and Communications,20-Apr-2016,CREATESEND/COM,Computer software,288.00,0.00,288.00
Neighbourhood Services,Culture & Sport,Office Services,Supplies and Services,Clothing Uniforms and Laundry,20-Apr-2016,UGLY DUCK CLOTHING,Clothing uniforms and laundry,239.76,39.96,199.80
Children and Adult Services,Education,Dean Bank Childcare,Supplies and Services,Clothing Uniforms and Laundry,20-Apr-2016,B&M RETAIL LTD,Clothing uniforms and laundry,40.39,0.00,40.39
Children and Adult Services,Childrens Services,Durham and Chester Le Street Locality,Supplies and Services,Provisions,20-Apr-2016,ALDI,Catering costs - provisions,8.28,0.00,8.28
Children and Adult Services,Childrens Services,Secure Management,Supplies and Services,Clothing Uniforms and Laundry,20-Apr-2016,WWW.DESIGNERWEAR2U.COM,Clothing uniforms and laundry,73.45,0.00,73.45
Children and Adult Services,Childrens Services,Secure Management,Supplies and Services,Clothing Uniforms and Laundry,20-Apr-2016,WWW.MANDMDIRECT.COM,Clothing uniforms and laundry,14.99,0.00,14.99
Children and Adult Services,Childrens Services,Secure Management,Supplies and Services,Clothing Uniforms and Laundry,20-Apr-2016,WWW.COTSWOLDOUTDOOR.CO,Clothing uniforms and laundry,50.00,0.00,50.00
Children and Adult Services,Childrens Services,Secure Management,Supplies and Services,Clothing Uniforms and Laundry,20-Apr-2016,ARGOS RETAIL GROUP,Clothing uniforms and laundry,14.48,0.00,14.48
Children and Adult Services,Childrens Services,Secure Management,Supplies and Services,Clothing Uniforms and Laundry,20-Apr-2016,OFFICE LONDON INTE,Clothing uniforms and laundry,63.50,0.00,63.50
Children and Adult Services,Childrens Services,Secure Management,Supplies and Services,Provisions,20-Apr-2016,TESCO STORES 6329,Catering costs - provisions,131.18,0.00,131.18
Neighbourhood Services,Culture & Sport,Hardwick Park Catering,Supplies and Services,Provisions,20-Apr-2016,BRAKE BROS LTD,Catering costs - provisions,167.88,27.98,139.90
Neighbourhood Services,Culture & Sport,Hardwick Park Catering,Supplies and Services,Provisions,20-Apr-2016,BRAKE BROS LTD,Catering costs - provisions,67.08,11.18,55.90
Neighbourhood Services,Culture & Sport,Hardwick Park Catering,Supplies and Services,Provisions,20-Apr-2016,BRAKE BROS LTD,Catering costs - provisions,72.66,,72.66
Resources,I.C.T. Services,Operations - MSU,Supplies and Services,Computers and Communications,20-Apr-2016,Amazon UK Marketplace,Computer hardware,29.98,0.00,29.98
Neighbourhood Services,Direct Services,Catering - Green Lane Canteen,Supplies and Services,Provisions,20-Apr-2016,JR HOLLAND FOODSERVICE,Catering costs - provisions,46.50,0.00,46.50
Neighbourhood Services,Direct Services,Catering - Green Lane Canteen,Supplies and Services,Provisions,20-Apr-2016,BRAKE BROS LTD,Catering costs - provisions,72.78,0.00,72.78
Children and Adult Services,Childrens Services,Tow Law CU,Supplies and Services,Provisions,20-Apr-2016,TESCO STORES 2371,Catering costs - provisions,236.09,0.00,236.09
Neighbourhood Services,Culture & Sport,Wellbeing4Life,Supplies and Services,Provisions,20-Apr-2016,TESCO STORES 2916,Catering costs - provisions,41.11,0.00,41.11
Children and Adult Services,Childrens Services,TTF-Attachment and Results,Supplies and Services,Provisions,20-Apr-2016,ASDA 4387,Catering costs - provisions,17.00,0.00,17.00
Children and Adult Services,Childrens Services,TTF-Attachment and Results,Supplies and Services,Equipment and Materials,20-Apr-2016,TESCO - Tescopay,Other consumables,23.90,0.00,23.90
Children and Adult Services,Childrens Services,TTF-Attachment and Results,Supplies and Services,Equipment and Materials,20-Apr-2016,TESCO DIRECT,Other consumables,25.30,0.00,25.30
Assistant Chief Executive,Policy & Communications Division,Corporate News,Supplies and Services,Subscriptions,20-Apr-2016,HOOTSUITE MEDIA INC.,Subscriptions,4.99,0.00,4.99
Neighbourhood Services,Culture & Sport,Events,Supplies and Services,Equipment and Materials,20-Apr-2016,B AND Q 1120,Equipment-purchase and rental,46.60,0.00,46.60
Neighbourhood Services,Culture & Sport,Bp Auckland Town Hall Cafe,Supplies and Services,Provisions,20-Apr-2016,JR HOLLAND FOODSERVICE,Catering costs - provisions,22.96,0.00,22.96
Neighbourhood Services,Culture & Sport,Bp Auckland Town Hall Cafe,Supplies and Services,Provisions,20-Apr-2016,BRAKE BROS LTD,Catering costs - provisions,16.78,0.00,16.78
Regeneration & Economic Development,Transport and Contracted Services,Care Connect All Localities,Supplies and Services,Telephones,20-Apr-2016,BT BILL PAYMENT 2,Telephones general-all costs,24.64,4.11,20.53
Regeneration & Economic Development,Transport and Contracted Services,Care Connect All Localities,Supplies and Services,Telephones,20-Apr-2016,BT BILL PAYMENT 2,Telephones general-all costs,83.82,13.97,69.85
Regeneration & Economic Development,Transport and Contracted Services,Care Connect All Localities,Supplies and Services,Telephones,20-Apr-2016,BT BILL PAYMENT 2,Telephones general-all costs,100.13,16.69,83.44
Regeneration & Economic Development,Transport and Contracted Services,Care Connect All Localities,Supplies and Services,Telephones,20-Apr-2016,BT BILL PAYMENT 2,Telephones general-all costs,85.47,14.25,71.22
Regeneration & Economic Development,Transport and Contracted Services,Care Connect All Localities,Supplies and Services,Telephones,20-Apr-2016,BT BILL PAYMENT 2,Telephones general-all costs,90.66,15.11,75.55
Regeneration & Economic Development,Transport and Contracted Services,Care Connect All Localities,Supplies and Services,Telephones,20-Apr-2016,BT BILL PAYMENT 2,Telephones general-all costs,78.66,13.11,65.55
Regeneration & Economic Development,Transport and Contracted Services,Care Connect All Localities,Supplies and Services,Telephones,20-Apr-2016,BT BILL PAYMENT 2,Telephones general-all costs,70.02,11.67,58.35
Regeneration & Economic Development,Transport and Contracted Services,Care Connect All Localities,Supplies and Services,Telephones,20-Apr-2016,BT BILL PAYMENT 2,Telephones general-all costs,78.66,13.11,65.55
Regeneration & Economic Development,Transport and Contracted Services,Care Connect All Localities,Supplies and Services,Telephones,20-Apr-2016,BT BILL PAYMENT 2,Telephones general-all costs,58.28,9.71,48.57
Regeneration & Economic Development,Transport and Contracted Services,Care Connect All Localities,Supplies and Services,Telephones,20-Apr-2016,BT BILL PAYMENT 2,Telephones general-all costs,78.66,13.11,65.55
Regeneration & Economic Development,Transport and Contracted Services,Care Connect All Localities,Supplies and Services,Telephones,20-Apr-2016,BT BILL PAYMENT 2,Telephones general-all costs,15.30,2.55,12.75
Regeneration & Economic Development,Transport and Contracted Services,Care Connect All Localities,Supplies and Services,Telephones,20-Apr-2016,BT BILL PAYMENT 2,Telephones general-all costs,16.99,2.83,14.16
Regeneration & Economic Development,Transport and Contracted Services,Care Connect All Localities,Supplies and Services,Telephones,20-Apr-2016,BT BILL PAYMENT 2,Telephones general-all costs,83.82,13.97,69.85
Neighbourhood Services,Direct Services,Catering - Service Direct,Supplies and Services,Provisions,20-Apr-2016,JR HOLLAND FOODSERVICE,Catering costs - provisions,27.53,0.00,27.53
Neighbourhood Services,Direct Services,Catering - Service Direct,Supplies and Services,Provisions,20-Apr-2016,JR HOLLAND FOODSERVICE,Catering costs - provisions,13.45,0.00,13.45
Neighbourhood Services,Direct Services,Catering - Service Direct,Supplies and Services,Provisions,20-Apr-2016,BRAKE BROS LTD,Catering costs - provisions,60.06,10.01,50.05
Neighbourhood Services,Direct Services,Catering - Service Direct,Supplies and Services,Provisions,20-Apr-2016,BRAKE BROS LTD,Catering costs - provisions,93.29,,93.29
Neighbourhood Services,Direct Services,C&G - North Grounds Maintenance,Supplies and Services,Equipment and Materials,20-Apr-2016,GUSTHARTS CHAINSAW CTR,Misc equipment tools and materials,80.06,13.34,66.72
Neighbourhood Services,Culture & Sport,Positive Futures,Supplies and Services,Provisions,20-Apr-2016,W M MORRISON PLC,Catering costs - provisions,15.19,0.00,15.19
Children and Adult Services,Childrens Services,Bishop Auckland and Barnard Castle Locality,Supplies and Services,Equipment and Materials,20-Apr-2016,TESCO DIRECT,Other consumables,-339.98,0.00,-339.98
Children and Adult Services,Childrens Services,Ferryhill 0 - 5,Supplies and Services,Provisions,20-Apr-2016,CO-OP GROUP 010518,Catering costs - provisions,83.41,0.00,83.41
Children and Adult Services,Childrens Services,Laurel Avenue Childrens Centre,Supplies and Services,Provisions,20-Apr-2016,TESCO STORES 2371,Catering costs - provisions,19.47,0.00,19.47
Neighbourhood Services,Culture & Sport,Woodhouse Close Leisure Complex,Supplies and Services,Provisions,20-Apr-2016,JR HOLLAND FOODSERVICE,Catering costs - provisions,24.82,0.00,24.82
Regeneration & Economic Development,Economic Development and Housing,Employability - Youth Contract,Supplies and Services,Miscellaneous Expenses,20-Apr-2016,SS MAAN & SS MAAN JNR,Other expenses,93.00,0.00,93.00
Children and Adult Services,Planning & Service Strategy,P and P-Learning and Dev Mgt,Supplies and Services,Grants to Voluntary Organisations,20-Apr-2016,GOLDEN JUBILEE CONFERE,Accommodation assistance,130.00,0.00,130.00
Regeneration & Economic Development,Spatial Policy Planning Assets & Environment,North Pennines Core,Supplies and Services,Conference Expenses,20-Apr-2016,ST ATHANS HOTEL,Conferencesseminars fees etc,65.00,0.00,65.00
Resources,Financial Services,Welfare Rights,Supplies and Services,Subscriptions,20-Apr-2016,WWW POSTCODEANYWHERE C,Subscriptions,300.00,50.00,250.00
Children and Adult Services,Education,Curric and Professional Development,Supplies and Services,Conference Expenses,20-Apr-2016,INTERCONTINENTAL HOTELS,Conferencesseminars fees etc,139.00,0.00,139.00
Resources,I.C.T. Services,Domains,Supplies and Services,Subscriptions,21-Apr-2016,WEB NETWORKSOLUTIONS,Subscriptions,1.75,0.00,1.75
Assistant Chief Executive,Policy & Communications Division,Corporate News,Supplies and Services,Subscriptions,21-Apr-2016,HOOTSUITE MEDIA INC.,Subscriptions,0.14,0.00,0.14
Children and Adult Services,Education,Shildon Childcare,Supplies and Services,Equipment and Materials,21-Apr-2016,B & M RETAIL,Toys,7.98,0.00,7.98
Neighbourhood Services,Direct Services,C&G - South Street Cleansing,Supplies and Services,Equipment and Materials,21-Apr-2016,NEW ROW FARM NURSERIES,Misc equipment tools and materials,494.22,82.37,411.85
Neighbourhood Services,Direct Services,C&G - South Street Cleansing,Supplies and Services,Newspapers Books and Periodicals,21-Apr-2016,C.L.A.S.S,Books-school library,13.00,0.00,13.00
Regeneration & Economic Development,Economic Development and Housing,Business Growth and Innovation General,Supplies and Services,Advertising,21-Apr-2016,ADROLL,Advertising other than for staff,18.23,0.00,18.23
Neighbourhood Services,Direct Services,Catering - County Hall Restaurant,Supplies and Services,Provisions,21-Apr-2016,JR HOLLAND FOODSERVICE,Catering costs - provisions,115.34,0.00,115.34
Neighbourhood Services,Direct Services,Catering - County Hall Restaurant,Supplies and Services,Provisions,21-Apr-2016,JR HOLLAND FOODSERVICE,Catering costs - provisions,34.10,0.00,34.10
Neighbourhood Services,Direct Services,Catering - County Hall Restaurant,Supplies and Services,Provisions,21-Apr-2016,JR HOLLAND FOODSERVICE,Catering costs - provisions,13.16,0.00,13.16
Neighbourhood Services,Culture & Sport,Gala Theatre - Catering etc,Supplies and Services,Provisions,21-Apr-2016,JR HOLLAND FOODSERVICE,Catering costs - provisions,44.16,0.00,44.16
Regeneration & Economic Development,Spatial Policy Planning Assets & Environment,North Pennines Core,Supplies and Services,Newspapers Books and Periodicals,21-Apr-2016,Amazon UK Marketplace,Books-school library,26.04,0.00,26.04
Neighbourhood Services,Culture & Sport,Office Services,Supplies and Services,Advertising,21-Apr-2016,FACEBOOK DZ767929Y2,Advertising other than for staff,400.87,0.00,400.87
Neighbourhood Services,Culture & Sport,Office Services,Supplies and Services,Advertising,21-Apr-2016,FACEBOOK 7ERHH96SF2,Advertising other than for staff,49.99,0.00,49.99
Neighbourhood Services,Culture & Sport,Office Services,Supplies and Services,Equipment and Materials,21-Apr-2016,GOOGLE ADWS2420292471,Misc equipment tools and materials,61.37,0.00,61.37
Children and Adult Services,Childrens Services,High Etherley Satelite Home,Supplies and Services,Furniture,21-Apr-2016,ASDA STORES,Curtains and carpets,30.00,0.00,30.00
Children and Adult Services,Childrens Services,High Etherley Satelite Home,Supplies and Services,Provisions,21-Apr-2016,TESCO STORES 6329,Catering costs - provisions,145.50,0.00,145.50
Children and Adult Services,Childrens Services,High Etherley Satelite Home,Supplies and Services,Furniture,21-Apr-2016,ASDA STORES,Curtains and carpets,-27.00,0.00,-27.00
Regeneration & Economic Development,Economic Development and Housing,International Relations,Supplies and Services,Subsistence,21-Apr-2016,RITAZZA - 18271415,Subsistence,12.64,0.00,12.64
Regeneration & Economic Development,Economic Development and Housing,International Relations,Supplies and Services,Subsistence,21-Apr-2016,THE GOLDEN ARCH 1203,Subsistence,22.69,0.00,22.69
Children and Adult Services,Childrens Services,Secure Management,Supplies and Services,Provisions,21-Apr-2016,TESCO STORES 6329,Catering costs - provisions,83.83,0.00,83.83
Neighbourhood Services,Culture & Sport,Hardwick Park Catering,Supplies and Services,Provisions,21-Apr-2016,JR HOLLAND FOODSERVICE,Catering costs - provisions,48.55,0.00,48.55
Regeneration & Economic Development,Spatial Policy Planning Assets & Environment,North Pennines Core,Transport,Public Transport,21-Apr-2016,LUL TICKET MACHINE,Staff travelling,4.90,0.00,4.90
Resources,I.C.T. Services,Operations - System & Repairs Trading,Supplies and Services,Computers and Communications,21-Apr-2016,Amazon UK Marketplace,Computer hardware,30.44,0.00,30.44
Resources,I.C.T. Services,ICT School Services - Health and Safety Services,Supplies and Services,Equipment and Materials,21-Apr-2016,Amazon UK Marketplace,Other consumables,26.60,0.00,26.60
Neighbourhood Services,Direct Services,C&G - South Grounds Maintenance,Supplies and Services,Provisions,21-Apr-2016,J M RAINE,Catering costs - provisions,66.07,0.00,66.07
Neighbourhood Services,Culture & Sport,County Durham Sport - Management,Supplies and Services,Subscriptions,21-Apr-2016,FASTHOSTS INTERNET,Subscriptions,13.19,2.20,10.99
Regeneration & Economic Development,Spatial Policy Planning Assets & Environment,Heritage Coast,Supplies and Services,Printing Stationery and Gen Off Exps,21-Apr-2016,Amazon UK Marketplace,Stationery,15.99,0.00,15.99
Resources,Legal & Democratic Services,Democratic Representation,Supplies and Services,Subscriptions,21-Apr-2016,WWW.ICO.GOV.UK,Subscriptions,35.00,0.00,35.00
Resources,Legal & Democratic Services,Democratic Representation,Supplies and Services,Subscriptions,21-Apr-2016,WWW.ICO.GOV.UK,Subscriptions,35.00,0.00,35.00
Dedicated Schools Grant,Dedicated Schools Grant,School Admissions and Transport,Supplies and Services,Subscriptions,21-Apr-2016,WWW.ICO.GOV.UK,Subscriptions,35.00,0.00,35.00
Resources,Legal & Democratic Services,Democratic Representation,Supplies and Services,Subscriptions,21-Apr-2016,WWW.ICO.GOV.UK,Subscriptions,35.00,0.00,35.00
Resources,Internal Audit and Insurance,Insurance and Risk,Supplies and Services,Grants to Voluntary Organisations,21-Apr-2016,IMPERIAL LONDON HOTELS,Accommodation assistance,88.00,0.00,88.00
Neighbourhood Services,Culture & Sport,Events,Supplies and Services,Provisions,21-Apr-2016,SAINSBURYS 2199,Catering costs - provisions,308.00,0.00,308.00
Neighbourhood Services,Culture & Sport,Events,Supplies and Services,Provisions,21-Apr-2016,SAINSBURYS 2199,Catering costs - provisions,308.00,0.00,308.00
Neighbourhood Services,Direct Services,C&G - North Grounds Maintenance,Supplies and Services,Miscellaneous Expenses,21-Apr-2016,MO TECH,Other hired and contracted services,79.00,13.17,65.83
Neighbourhood Services,Culture & Sport,Positive Futures,Supplies and Services,Provisions,21-Apr-2016,CO-OP GROUP 010490,Catering costs - provisions,1.38,0.00,1.38
Children and Adult Services,Childrens Services,Bishop Auckland and Barnard Castle Locality,Supplies and Services,Equipment and Materials,21-Apr-2016,TESCO - Seller_IST_1_2,Other consumables,339.98,0.00,339.98
Neighbourhood Services,Culture & Sport,Woodhouse Close Leisure Complex,Supplies and Services,Provisions,21-Apr-2016,BRAKE BROS LTD,Catering costs - provisions,34.32,5.72,28.60
Neighbourhood Services,Culture & Sport,Woodhouse Close Leisure Complex,Supplies and Services,Provisions,21-Apr-2016,BRAKE BROS LTD,Catering costs - provisions,104.89,,104.89
Regeneration & Economic Development,Economic Development and Housing,B& B - Temp Accom,Supplies and Services,Grants to Voluntary Organisations,21-Apr-2016,PREMIER INN,Accommodation assistance,60.00,10.00,50.00
Regeneration & Economic Development,Spatial Policy Planning Assets & Environment,North Pennines Core,Supplies and Services,Conference Expenses,21-Apr-2016,THE GOLDEN LION,Conferencesseminars fees etc,55.00,0.00,55.00
Neighbourhood Services,Culture & Sport,Events,Supplies and Services,Grants to Voluntary Organisations,21-Apr-2016,PREMIER INN,Accommodation assistance,-174.00,0.00,-174.00
Regeneration & Economic Development,Economic Development and Housing,Business Growth and Innovation General,Supplies and Services,Advertising,22-Apr-2016,ADROLL,Advertising other than for staff,0.50,0.00,0.50
Regeneration & Economic Development,Economic Development and Housing,International Relations,Supplies and Services,Subsistence,22-Apr-2016,THE GOLDEN ARCH 1203,Subsistence,0.62,0.00,0.62
Neighbourhood Services,Direct Services,C&G - South Street Cleansing,Supplies and Services,Provisions,22-Apr-2016,J M RAINE,Catering costs - provisions,171.58,0.00,171.58
Neighbourhood Services,Direct Services,Catering - County Hall Restaurant,Supplies and Services,Provisions,22-Apr-2016,JR HOLLAND FOODSERVICE,Catering costs - provisions,97.04,0.00,97.04
Neighbourhood Services,Direct Services,Catering - County Hall Restaurant,Supplies and Services,Provisions,22-Apr-2016,JR HOLLAND FOODSERVICE,Catering costs - provisions,13.16,0.00,13.16
Neighbourhood Services,Direct Services,Catering - County Hall Restaurant,Supplies and Services,Provisions,22-Apr-2016,BRAKE BROS LTD,Catering costs - provisions,178.68,0.00,178.68
Regeneration & Economic Development,Economic Development and Housing,Employability - Youth Contract,Transport,Public Transport,22-Apr-2016,WWW.SIMPLYGO.COM,Staff travelling,66.24,0.00,66.24
Children and Adult Services,Education,Dean Bank Childcare,Supplies and Services,Provisions,22-Apr-2016,ASDA SUPERSTORE 4987,Catering costs - provisions,22.00,0.00,22.00
Children and Adult Services,Childrens Services,High Etherley Satelite Home,Supplies and Services,Furniture,22-Apr-2016,Amazon UK Marketplace,Curtains and carpets,23.76,0.00,23.76
Children and Adult Services,Childrens Services,High Etherley Satelite Home,Supplies and Services,Furniture,22-Apr-2016,Amazon UK Marketplace,Furniture repair and replacement,6.98,0.00,6.98
Children and Adult Services,Childrens Services,High Etherley Satelite Home,Supplies and Services,Newspapers Books and Periodicals,22-Apr-2016,PAYPAL CLAPHAMBOOK,Books-school library,17.94,0.00,17.94
Neighbourhood Services,Direct Services,C&G - North Grounds Maintenance,Supplies and Services,Equipment and Materials,22-Apr-2016,BESCOL,Other consumables,48.02,8.00,40.02
Children and Adult Services,Childrens Services,Secure Management,Supplies and Services,Provisions,22-Apr-2016,TESCO STORES 6329,Catering costs - provisions,96.93,0.00,96.93
Neighbourhood Services,Culture & Sport,Hardwick Park Catering,Supplies and Services,Provisions,22-Apr-2016,JR HOLLAND FOODSERVICE,Catering costs - provisions,33.09,0.00,33.09
Neighbourhood Services,Culture & Sport,Hardwick Park Catering,Supplies and Services,Provisions,22-Apr-2016,BRAKE BROS LTD,Catering costs - provisions,422.16,70.36,351.80
Neighbourhood Services,Culture & Sport,Hardwick Park Catering,Supplies and Services,Provisions,22-Apr-2016,BRAKE BROS LTD,Catering costs - provisions,275.50,,275.50
Neighbourhood Services,Culture & Sport,Hardwick Park Catering,Supplies and Services,Provisions,22-Apr-2016,BRAKE BROS LTD,Catering costs - provisions,364.62,60.77,303.85
Neighbourhood Services,Culture & Sport,Hardwick Park Catering,Supplies and Services,Provisions,22-Apr-2016,BRAKE BROS LTD,Catering costs - provisions,127.52,,127.52
Neighbourhood Services,Direct Services,Catering - Green Lane Canteen,Supplies and Services,Provisions,22-Apr-2016,JR HOLLAND FOODSERVICE,Catering costs - provisions,47.95,0.00,47.95
Children and Adult Services,Childrens Services,Young People Services - North,Supplies and Services,Services,22-Apr-2016,DISCLOSURE SCOT,Disclosure & Barring (DBS) Fees,25.00,0.00,25.00
Children and Adult Services,Childrens Services,Young People Services - North,Supplies and Services,Services,22-Apr-2016,DISCLOSURE SCOT,Disclosure & Barring (DBS) Fees,25.00,0.00,25.00
Children and Adult Services,Childrens Services,Tow Law CU,Supplies and Services,Equipment and Materials,22-Apr-2016,B AND Q 1120,Equipment-purchase and rental,138.87,0.00,138.87
Children and Adult Services,Childrens Services,Consett and Stanley Locality,Supplies and Services,Newspapers Books and Periodicals,22-Apr-2016,Amazon UK Marketplace,Books-school library,103.98,0.00,103.98
Children and Adult Services,Childrens Services,Consett and Stanley Locality,Supplies and Services,Provisions,22-Apr-2016,ASDA SUPERSTORE,Catering costs - provisions,50.00,0.00,50.00
Regeneration & Economic Development,Spatial Policy Planning Assets & Environment,North Pennines Core,Supplies and Services,Newspapers Books and Periodicals,22-Apr-2016,Amazon EU,Books-school library,37.98,0.00,37.98
Resources,Legal & Democratic Services,Democratic Representation,Supplies and Services,Subscriptions,22-Apr-2016,WWW.ICO.GOV.UK,Subscriptions,35.00,0.00,35.00
Resources,Legal & Democratic Services,Democratic Representation,Supplies and Services,Subscriptions,22-Apr-2016,WWW.ICO.GOV.UK,Subscriptions,35.00,0.00,35.00
Resources,Legal & Democratic Services,Democratic Representation,Supplies and Services,Subscriptions,22-Apr-2016,WWW.ICO.GOV.UK,Subscriptions,35.00,0.00,35.00
Children and Adult Services,Education,16-19 Education & Training,Supplies and Services,Services,22-Apr-2016,DISCLOSURE SCOT,Disclosure & Barring (DBS) Fees,25.00,0.00,25.00
Neighbourhood Services,Culture & Sport,Events,Supplies and Services,Equipment and Materials,22-Apr-2016,B AND Q 1120,Equipment-purchase and rental,95.44,0.00,95.44
Neighbourhood Services,Direct Services,C&G - North Grounds Maintenance,Supplies and Services,Provisions,22-Apr-2016,J VAN VLIET GATESHEAD,Catering costs - provisions,28.44,4.74,23.70
Neighbourhood Services,Culture & Sport,Bp Auckland Town Hall Cafe,Supplies and Services,Provisions,22-Apr-2016,JR HOLLAND FOODSERVICE,Catering costs - provisions,20.61,0.00,20.61
Regeneration & Economic Development,Transport and Contracted Services,Care Connect All Localities,Supplies and Services,Telephones,22-Apr-2016,BT BILL PAYMENT 2,Telephones general-all costs,83.82,13.97,69.85
Neighbourhood Services,Direct Services,Catering - Service Direct,Supplies and Services,Provisions,22-Apr-2016,JR HOLLAND FOODSERVICE,Catering costs - provisions,34.58,0.00,34.58
Neighbourhood Services,Direct Services,Catering - Service Direct,Supplies and Services,Provisions,22-Apr-2016,JR HOLLAND FOODSERVICE,Catering costs - provisions,9.87,0.00,9.87
Neighbourhood Services,Culture & Sport,Positive Futures,Supplies and Services,Provisions,22-Apr-2016,ASDA STORES,Catering costs - provisions,28.03,0.00,28.03
Neighbourhood Services,Technical Services,Training and Development,Employees,Recruitment Instruction and Training,22-Apr-2016,WWW.CIM.CO.UK,Training-all costs,130.00,0.00,130.00
Neighbourhood Services,Technical Services,Training and Development,Supplies and Services,Conference Expenses,22-Apr-2016,CIM,Conferencesseminars fees etc,130.00,0.00,130.00
Neighbourhood Services,Technical Services,Training and Development,Supplies and Services,Conference Expenses,22-Apr-2016,CIM,Conferencesseminars fees etc,130.00,0.00,130.00
Dedicated Schools Grant,Dedicated Schools Grant,Part Sighted-Belmont Comp,Supplies and Services,Equipment and Materials,22-Apr-2016,ITUNES.COM/BILL,Equipment-purchase and rental,22.99,0.00,22.99
Resources,Financial Services,Purchasing,Supplies and Services,Equipment and Materials,22-Apr-2016,CURRYS ONLINE,Equipment-purchase and rental,474.98,79.16,395.82
Neighbourhood Services,Culture & Sport,Woodhouse Close Leisure Complex,Supplies and Services,Provisions,22-Apr-2016,BRAKE BROS LTD,Catering costs - provisions,109.22,0.00,109.22
Neighbourhood Services,Culture & Sport,Locality 2 Team Management,Supplies and Services,Equipment and Materials,22-Apr-2016,HOMEPLAN DIY LIMITED,Other consumables,86.22,0.00,86.22
Neighbourhood Services,Culture & Sport,Locality 2 Team Management,Supplies and Services,Clothing Uniforms and Laundry,22-Apr-2016,ARGOS LTD,Clothing uniforms and laundry,47.98,0.00,47.98
Children and Adult Services,Childrens Services,Bishop Auckland and Barnard Castle Locality,Supplies and Services,Equipment and Materials,23-Apr-2016,Amazon Prime,Misc equipment tools and materials,79.00,0.00,79.00
Regeneration & Economic Development,Economic Development and Housing,Business Growth and Innovation General,Third Party Payments,Rendered by Private Contractors,23-Apr-2016,MAILCHIMP,Payments to sub-contractors,52.39,0.00,52.39
Neighbourhood Services,Direct Services,Catering - County Hall Restaurant,Supplies and Services,Provisions,23-Apr-2016,BRAKE BROS LTD,Catering costs - provisions,-7.69,0.00,-7.69
Children and Adult Services,Childrens Services,Secure Management,Supplies and Services,Provisions,23-Apr-2016,TESCO STORES 6329,Catering costs - provisions,124.02,0.00,124.02
Regeneration & Economic Development,Economic Development and Housing,International Relations,Supplies and Services,Miscellaneous Expenses,23-Apr-2016,EUROWINGS GC9LPQ_1103183,International visits,-177.49,0.00,-177.49
Neighbourhood Services,Direct Services,Catering - Green Lane Canteen,Supplies and Services,Provisions,23-Apr-2016,BRAKE BROS LTD,Catering costs - provisions,-4.37,0.00,-4.37
Resources,Resources Management,Resources Management,Supplies and Services,Provisions,23-Apr-2016,CO-OP GROUP 010830,Catering costs - provisions,2.00,0.00,2.00
Regeneration & Economic Development,Economic Development and Housing,Housing Solutions - Core Team,Supplies and Services,Subsistence,23-Apr-2016,PREMIER INN44023785,Subsistence,170.50,0.00,170.50
Regeneration & Economic Development,Economic Development and Housing,Business Services General,Supplies and Services,Conference Expenses,23-Apr-2016,WWW.HARDWICKHALLHOTEL.,Conferencesseminars fees etc,21.90,3.65,18.25
Resources,Legal & Democratic Services,Litigation Child Care/Adult,Supplies and Services,Printing Stationery and Gen Off Exps,23-Apr-2016,Amazon EU,Stationery,23.37,3.90,19.47
Neighbourhood Services,Culture & Sport,Woodhouse Close Leisure Complex,Supplies and Services,Provisions,23-Apr-2016,BRAKE BROS LTD,Catering costs - provisions,-8.04,0.00,-8.04
Regeneration & Economic Development,Economic Development and Housing,Business Growth and Innovation General,Supplies and Services,Equipment and Materials,24-Apr-2016,LINKEDIN-3283629573,Misc equipment tools and materials,33.08,0.00,33.08
Regeneration & Economic Development,Economic Development and Housing,Business Growth and Innovation General,Supplies and Services,Newspapers Books and Periodicals,24-Apr-2016,FASTHOSTS INTERNET,Books-school library,11.94,1.99,9.95
Regeneration & Economic Development,Economic Development and Housing,International Relations,Transport,Public Transport,24-Apr-2016,DB BAHN AUTOMATEN,Staff travelling,23.67,0.00,23.67
Children and Adult Services,Childrens Services,Ferryhill 0 - 5,Supplies and Services,Equipment and Materials,24-Apr-2016,WILKO DURHAM 426,Equipment-purchase and rental,6.00,0.00,6.00
Regeneration & Economic Development,Economic Development and Housing,International Relations,Supplies and Services,Subsistence,24-Apr-2016,DB FERNVERKEHR AG-SIZ,Subsistence,20.07,0.00,20.07
Regeneration & Economic Development,Economic Development and Housing,Business Growth and Innovation General,Third Party Payments,Rendered by Private Contractors,25-Apr-2016,MAILCHIMP,Payments to sub-contractors,1.44,0.00,1.44
Regeneration & Economic Development,Economic Development and Housing,International Relations,Transport,Public Transport,25-Apr-2016,DB BAHN AUTOMATEN,Staff travelling,0.65,0.00,0.65
Regeneration & Economic Development,Economic Development and Housing,International Relations,Supplies and Services,Miscellaneous Expenses,25-Apr-2016,EUROWINGS GC9LPQ_1103183,International visits,-4.88,0.00,-4.88
Neighbourhood Services,Direct Services,C&G - South Grounds Maintenance,Supplies and Services,Equipment and Materials,25-Apr-2016,FRED WILLIAMSON,Other consumables,378.86,63.14,315.72
Neighbourhood Services,Direct Services,Catering - County Hall Restaurant,Supplies and Services,Provisions,25-Apr-2016,BRAMBLES FOODS LTD,Catering costs - provisions,586.25,0.00,586.25
Neighbourhood Services,Direct Services,Catering - County Hall Restaurant,Supplies and Services,Provisions,25-Apr-2016,JR HOLLAND FOODSERVICE,Catering costs - provisions,72.56,0.00,72.56
Neighbourhood Services,Direct Services,Catering - County Hall Restaurant,Supplies and Services,Provisions,25-Apr-2016,JR HOLLAND FOODSERVICE,Catering costs - provisions,22.04,0.00,22.04
Neighbourhood Services,Direct Services,Catering - County Hall Restaurant,Supplies and Services,Provisions,25-Apr-2016,JR HOLLAND FOODSERVICE,Catering costs - provisions,13.52,0.00,13.52
Neighbourhood Services,Direct Services,Catering - County Hall Restaurant,Supplies and Services,Provisions,25-Apr-2016,BRAKE BROS LTD,Catering costs - provisions,216.78,36.13,180.65
Neighbourhood Services,Direct Services,Catering - County Hall Restaurant,Supplies and Services,Provisions,25-Apr-2016,BRAKE BROS LTD,Catering costs - provisions,196.82,,196.82
Neighbourhood Services,Direct Services,Catering - County Hall Restaurant,Supplies and Services,Provisions,25-Apr-2016,BRAKE BROS LTD,Catering costs - provisions,97.25,0.00,97.25
Children and Adult Services,Childrens Services,Fishburn Community and Youth Centre,Supplies and Services,Miscellaneous Expenses,25-Apr-2016,Amazon UK Marketplace,Training-other activities,6.91,0.00,6.91
Children and Adult Services,Childrens Services,Fishburn Community and Youth Centre,Supplies and Services,Miscellaneous Expenses,25-Apr-2016,Amazon UK Marketplace,Training-other activities,9.94,0.00,9.94
Neighbourhood Services,Culture & Sport,Office Services,Supplies and Services,Equipment and Materials,25-Apr-2016,GOOGLE ADWS2420292471,Misc equipment tools and materials,12.21,0.00,12.21
Children and Adult Services,Childrens Services,LAC & Permanence Team 1 Aycliffe,Supplies and Services,Equipment and Materials,25-Apr-2016,HARTLEPOOL BC CNP,Equipment-purchase and rental,28.50,0.00,28.50
Children and Adult Services,Education,Dean Bank Childcare,Supplies and Services,Provisions,25-Apr-2016,ASDA HOME SHOPPING,Catering costs - provisions,5.00,0.00,5.00
Children and Adult Services,Education,Dean Bank Childcare,Supplies and Services,Provisions,25-Apr-2016,CO-OP GROUP 010518,Catering costs - provisions,13.95,0.00,13.95
Neighbourhood Services,Culture & Sport,Hardwick Park Catering,Supplies and Services,Provisions,25-Apr-2016,JR HOLLAND FOODSERVICE,Catering costs - provisions,39.10,0.00,39.10
Neighbourhood Services,Culture & Sport,Hardwick Park Catering,Supplies and Services,Provisions,25-Apr-2016,JR HOLLAND FOODSERVICE,Catering costs - provisions,18.60,0.00,18.60
Neighbourhood Services,Culture & Sport,Hardwick Park Catering,Supplies and Services,Provisions,25-Apr-2016,BRAKE BROS LTD,Catering costs - provisions,188.10,31.35,156.75
Neighbourhood Services,Culture & Sport,Hardwick Park Catering,Supplies and Services,Provisions,25-Apr-2016,BRAKE BROS LTD,Catering costs - provisions,55.57,,55.57
Neighbourhood Services,Culture & Sport,Hardwick Park Catering,Supplies and Services,Provisions,25-Apr-2016,BRAKE BROS LTD,Catering costs - provisions,22.62,3.77,18.85
Neighbourhood Services,Culture & Sport,Hardwick Park Catering,Supplies and Services,Provisions,25-Apr-2016,BRAKE BROS LTD,Catering costs - provisions,122.70,,122.70
Neighbourhood Services,Culture & Sport,Gala Theatre Stage School,Supplies and Services,Equipment and Materials,25-Apr-2016,PAYPAL BLUESTONE,Equipment-purchase and rental,5.75,0.00,5.75
Neighbourhood Services,Direct Services,Catering - Green Lane Canteen,Supplies and Services,Provisions,25-Apr-2016,BRAMBLES FOODS LTD,Catering costs - provisions,94.31,0.00,94.31
Resources,Financial Services,Purchasing,Employees,Recruitment Instruction and Training,25-Apr-2016,NCS VUE CITB HS&E REV,Training-all costs,234.00,0.00,234.00
Children and Adult Services,Childrens Services,Bishop Auckland 0 - 5,Supplies and Services,Provisions,25-Apr-2016,ICELAND,Catering costs - provisions,3.57,0.00,3.57
Neighbourhood Services,Culture & Sport,Events,Supplies and Services,Miscellaneous Expenses,25-Apr-2016,BREWERS FAYRE 41517810,Other hired and contracted services,349.58,0.00,349.58
Neighbourhood Services,Culture & Sport,County Durham Sport - Management,Supplies and Services,Subscriptions,25-Apr-2016,HOOTSUITE MEDIA INC.,Subscriptions,4.97,0.00,4.97
Neighbourhood Services,Culture & Sport,Wellbeing4Life,Supplies and Services,Provisions,25-Apr-2016,TESCO STORES 6329,Catering costs - provisions,53.45,0.00,53.45
Resources,I.C.T. Services,ICT Telephony Recharges,Supplies and Services,Telephones,25-Apr-2016,Amazon UK Marketplace,Telephones general-all costs,58.00,0.00,58.00
Regeneration & Economic Development,Spatial Policy Planning Assets & Environment,Asset Management,Supplies and Services,Conference Expenses,25-Apr-2016,UNIVERSITY OF NORT,Conferencesseminars fees etc,18.00,3.00,15.00
Resources,Financial Services,SF-Financial Services Team,Supplies and Services,Services,25-Apr-2016,HMCOURTS-SERVICE.G,Court Costs,"6,900.00",0.00,6900.00
Neighbourhood Services,Culture & Sport,Bp Auckland Town Hall Cafe,Supplies and Services,Provisions,25-Apr-2016,BRAMBLES FOODS LTD,Catering costs - provisions,195.73,0.00,195.73
Neighbourhood Services,Direct Services,Catering - Service Direct,Supplies and Services,Provisions,25-Apr-2016,BRAMBLES FOODS LTD,Catering costs - provisions,75.78,0.00,75.78
Neighbourhood Services,Direct Services,C&G - North Grounds Maintenance,Supplies and Services,Equipment and Materials,25-Apr-2016,GUSTHARTS CHAINSAW CTR,Misc equipment tools and materials,152.52,25.42,127.10
Neighbourhood Services,Culture & Sport,Positive Futures,Supplies and Services,Provisions,25-Apr-2016,ASDA STORES LTD,Catering costs - provisions,44.99,0.00,44.99
Children and Adult Services,Childrens Services,Bishop Auckland and Barnard Castle Locality,Supplies and Services,Equipment and Materials,25-Apr-2016,TESCO DIRECT,Other consumables,-339.98,0.00,-339.98
Children and Adult Services,Childrens Services,Ferryhill 0 - 5,Supplies and Services,Provisions,25-Apr-2016,ASDA HOME SHOPPING,Catering costs - provisions,53.82,0.00,53.82
Resources,Financial Services,Purchasing,Supplies and Services,Newspapers Books and Periodicals,25-Apr-2016,Amazon UK Marketplace,Books-school library,14.95,0.00,14.95
Resources,Financial Services,Purchasing,Supplies and Services,Printing Stationery and Gen Off Exps,25-Apr-2016,EUROFFICE.CO.UK,Stationery,35.09,5.85,29.24
Neighbourhood Services,Culture & Sport,Woodhouse Close Leisure Complex,Supplies and Services,Provisions,25-Apr-2016,JR HOLLAND FOODSERVICE,Catering costs - provisions,36.51,0.00,36.51
Children and Adult Services,Planning & Service Strategy,SF-Rivergreen Durham,Transport,Public Transport,25-Apr-2016,WALKERGATE CAR PAR,Staff travelling,1.80,0.00,1.80
Children and Adult Services,Childrens Services,Peterlee and Seaham Locality,Supplies and Services,Clothing Uniforms and Laundry,25-Apr-2016,ARGOS RETAIL GROUP,Clothing uniforms and laundry,248.94,0.00,248.94
Neighbourhood Services,Direct Services,Catering - County Hall Restaurant,Supplies and Services,Postages,25-Apr-2016,POST OFFICE SHOP,Postages,3.00,0.50,2.50
Neighbourhood Services,Direct Services,Catering - County Hall Restaurant,Supplies and Services,Postages,25-Apr-2016,POST OFFICE SHOP,Postages,936.95,,936.95
Neighbourhood Services,Culture & Sport,County Durham Sport - Management,Transport,Public Transport,25-Apr-2016,ECML DURHAM PARKING,Staff travelling,12.00,0.00,12.00
Neighbourhood Services,Direct Services,Catering - County Hall Restaurant,Supplies and Services,Postages,25-Apr-2016,POST OFFICE SHOP,Postages,791.04,0.00,791.04
Children and Adult Services,Education,Selby Cottage Childcare Centre,Supplies and Services,Clothing Uniforms and Laundry,26-Apr-2016,THE RANGE,Clothing uniforms and laundry,99.07,0.00,99.07
Children and Adult Services,Education,Selby Cottage Childcare Centre,Supplies and Services,Provisions,26-Apr-2016,ASDA HOME SHOPPING,Catering costs - provisions,91.51,0.00,91.51
Children and Adult Services,Childrens Services,Bishop Auckland 0 - 5,Supplies and Services,Provisions,26-Apr-2016,TESCO STORES 6329,Catering costs - provisions,24.34,0.00,24.34
Children and Adult Services,Childrens Services,Bishop Auckland and Barnard Castle Locality,Supplies and Services,Equipment and Materials,26-Apr-2016,B AND Q 1120,Equipment-purchase and rental,32.00,0.00,32.00
Children and Adult Services,Childrens Services,Bishop Auckland and Barnard Castle Locality,Supplies and Services,Provisions,26-Apr-2016,ASDA 4387,Catering costs - provisions,51.96,8.66,43.30
Children and Adult Services,Childrens Services,Bishop Auckland and Barnard Castle Locality,Supplies and Services,Provisions,26-Apr-2016,ASDA 4387,Catering costs - provisions,36.99,,36.99
Children and Adult Services,Childrens Services,Bishop Auckland and Barnard Castle Locality,Supplies and Services,Provisions,26-Apr-2016,ASDA 4387,Catering costs - provisions,28.00,4.67,23.33
Neighbourhood Services,Direct Services,Catering - County Hall Restaurant,Supplies and Services,Provisions,26-Apr-2016,FREEMAN CATERING BUTCH,Catering costs - provisions,112.34,0.00,112.34
Neighbourhood Services,Direct Services,Catering - County Hall Restaurant,Supplies and Services,Provisions,26-Apr-2016,JR HOLLAND FOODSERVICE,Catering costs - provisions,139.20,0.00,139.20
Neighbourhood Services,Direct Services,Catering - County Hall Restaurant,Supplies and Services,Provisions,26-Apr-2016,JR HOLLAND FOODSERVICE,Catering costs - provisions,6.58,0.00,6.58
Neighbourhood Services,Direct Services,Catering - County Hall Restaurant,Supplies and Services,Provisions,26-Apr-2016,BRAKE BROS LTD,Catering costs - provisions,-3.71,0.00,-3.71
Neighbourhood Services,Culture & Sport,Gala Theatre - Catering etc,Supplies and Services,Provisions,26-Apr-2016,FREEMAN CATERING BUTCH,Catering costs - provisions,48.44,0.00,48.44
Neighbourhood Services,Culture & Sport,Gala Theatre - Catering etc,Supplies and Services,Provisions,26-Apr-2016,JR HOLLAND FOODSERVICE,Catering costs - provisions,17.03,0.00,17.03
Neighbourhood Services,Culture & Sport,Gala Theatre - Catering etc,Supplies and Services,Provisions,26-Apr-2016,JR HOLLAND FOODSERVICE,Catering costs - provisions,15.60,0.00,15.60
Neighbourhood Services,Culture & Sport,Gala Theatre - Catering etc,Supplies and Services,Provisions,26-Apr-2016,BRAKE BROS LTD,Catering costs - provisions,93.18,15.53,77.65
Neighbourhood Services,Culture & Sport,Gala Theatre - Catering etc,Supplies and Services,Provisions,26-Apr-2016,BRAKE BROS LTD,Catering costs - provisions,26.81,,26.81
Neighbourhood Services,Culture & Sport,Gala Theatre - Catering etc,Supplies and Services,Provisions,26-Apr-2016,BRAKE BROS LTD,Catering costs - provisions,40.15,0.00,40.15
Children and Adult Services,Childrens Services,Framwellgate Moor CU,Supplies and Services,Provisions,26-Apr-2016,ASDA HOME SHOPPING,Catering costs - provisions,193.74,0.00,193.74
Children and Adult Services,Childrens Services,Framwellgate Moor CU,Supplies and Services,Provisions,26-Apr-2016,ASDA HOME SHOPPING,Catering costs - provisions,-1.15,0.00,-1.15
Children and Adult Services,Education,Dean Bank Childcare,Supplies and Services,Provisions,26-Apr-2016,ASDA HOME SHOPPING,Catering costs - provisions,46.84,0.00,46.84
Neighbourhood Services,Direct Services,C&G - North Grounds Maintenance,Supplies and Services,Equipment and Materials,26-Apr-2016,HARELAW SAWMILL,Equipment-purchase and rental,37.24,6.21,31.03
Children and Adult Services,Childrens Services,Barnard,Supplies and Services,Equipment and Materials,26-Apr-2016,Amazon UK Marketplace,Toys,103.99,0.00,103.99
Children and Adult Services,Childrens Services,Barnard,Supplies and Services,Newspapers Books and Periodicals,26-Apr-2016,Amazon EU,Books-school library,14.35,0.00,14.35
Children and Adult Services,Childrens Services,Secure Management,Premises,Repairs to Grounds,26-Apr-2016,Amazon EU,General maintenance,13.95,0.00,13.95
Children and Adult Services,Childrens Services,Secure Management,Supplies and Services,Clothing Uniforms and Laundry,26-Apr-2016,WWW.FOOTLOCKER.EU,Clothing uniforms and laundry,52.99,0.00,52.99
Children and Adult Services,Childrens Services,Secure Management,Supplies and Services,Clothing Uniforms and Laundry,26-Apr-2016,WWW.FOOTASYLUM.COM,Clothing uniforms and laundry,75.99,0.00,75.99
Children and Adult Services,Childrens Services,Secure Management,Supplies and Services,Clothing Uniforms and Laundry,26-Apr-2016,BOOHOO.COM,Clothing uniforms and laundry,74.99,0.00,74.99
Neighbourhood Services,Culture & Sport,Hardwick Park Catering,Supplies and Services,Provisions,26-Apr-2016,FREEMAN CATERING BUTCH,Catering costs - provisions,25.14,0.00,25.14
Neighbourhood Services,Culture & Sport,Hardwick Park Catering,Supplies and Services,Provisions,26-Apr-2016,FREEMAN CATERING BUTCH,Catering costs - provisions,19.59,0.00,19.59
Neighbourhood Services,Culture & Sport,Hardwick Park Catering,Supplies and Services,Provisions,26-Apr-2016,JR HOLLAND FOODSERVICE,Catering costs - provisions,109.73,0.00,109.73
Neighbourhood Services,Culture & Sport,Hardwick Park Catering,Supplies and Services,Provisions,26-Apr-2016,JR HOLLAND FOODSERVICE,Catering costs - provisions,41.55,0.00,41.55
Neighbourhood Services,Culture & Sport,Hardwick Park Catering,Supplies and Services,Provisions,26-Apr-2016,JR HOLLAND FOODSERVICE,Catering costs - provisions,9.44,0.00,9.44
Resources,I.C.T. Services,Operations - System & Repairs Trading,Supplies and Services,Computers and Communications,26-Apr-2016,WWW.ALIEXPRESS.COM,Computer hardware,124.44,0.00,124.44
Neighbourhood Services,Direct Services,Catering - Green Lane Canteen,Supplies and Services,Provisions,26-Apr-2016,FREEMAN CATERING BUTCH,Catering costs - provisions,23.62,0.00,23.62
Neighbourhood Services,Direct Services,Catering - Green Lane Canteen,Supplies and Services,Provisions,26-Apr-2016,BRAKE BROS LTD,Catering costs - provisions,110.64,0.00,110.64
Neighbourhood Services,Culture & Sport,Meadowfield Leisure Centre,Supplies and Services,Equipment and Materials,26-Apr-2016,Amazon UK Marketplace,Materials,36.24,0.00,36.24
Children and Adult Services,Childrens Services,Tow Law CU,Supplies and Services,Equipment and Materials,26-Apr-2016,WILKO RETAIL LIMIT,Equipment-purchase and rental,22.00,0.00,22.00
Children and Adult Services,Childrens Services,Bishop Auckland 0 - 5,Supplies and Services,Provisions,26-Apr-2016,POUNDLAND LTD 1554,Catering costs - provisions,11.00,0.00,11.00
Children and Adult Services,Childrens Services,Bishop Auckland and Barnard Castle Locality,Supplies and Services,Provisions,26-Apr-2016,HOME BARGAINS,Catering costs - provisions,8.28,1.38,6.90
Children and Adult Services,Childrens Services,Bishop Auckland 0 - 5,Supplies and Services,Provisions,26-Apr-2016,ASDA STORES,Catering costs - provisions,6.00,0.00,6.00
Children and Adult Services,Childrens Services,Bishop Auckland 0 - 5,Supplies and Services,Provisions,26-Apr-2016,TESCO STORES 6329,Catering costs - provisions,38.00,0.00,38.00
Children and Adult Services,Childrens Services,Bishop Auckland 0 - 5,Supplies and Services,Provisions,26-Apr-2016,WM MORRISON 040,Catering costs - provisions,23.57,0.00,23.57
Regeneration & Economic Development,Economic Development and Housing,Housing Solutions - Core Team,Transport,Public Transport,26-Apr-2016,CARE FREE TAXIS,Staff travelling,10.00,0.00,10.00
Regeneration & Economic Development,Economic Development and Housing,Housing Solutions - Core Team,Transport,Public Transport,26-Apr-2016,UNITED TAXIS (CONTRACT,Staff travelling,40.00,0.00,40.00
Children and Adult Services,Childrens Services,TTF-Attachment and Results,Supplies and Services,Equipment and Materials,26-Apr-2016,TESCO DIRECT,Other consumables,148.95,0.00,148.95
Regeneration & Economic Development,Transport and Contracted Services,Traffic,Supplies and Services,Computers and Communications,26-Apr-2016,CRUCIAL.COM,Computer hardware,14.39,2.40,11.99
Resources,I.C.T. Services,Administration,Transport,Public Transport,26-Apr-2016,OYSTER RENEW WEB,Staff travelling,50.00,0.00,50.00
Regeneration & Economic Development,Economic Development and Housing,Visit County Durham,Supplies and Services,Grants to Voluntary Organisations,26-Apr-2016,MERCURE LEICESTER,Accommodation assistance,90.00,0.00,90.00
Regeneration & Economic Development,Economic Development and Housing,Visit County Durham,Supplies and Services,Grants to Voluntary Organisations,26-Apr-2016,MERCURE LEICESTER,Accommodation assistance,-9.00,0.00,-9.00
Children and Adult Services,Childrens Services,CDYOS - Support,Employees,Recruitment Instruction and Training,26-Apr-2016,PAYPAL SAMROGERSON,Training-all costs,135.00,0.00,135.00
Children and Adult Services,Childrens Services,CDYOS - Support,Supplies and Services,Conference Expenses,26-Apr-2016,ADAMS MARK HOTELS,Conferencesseminars fees etc,114.25,0.00,114.25
Neighbourhood Services,Culture & Sport,Sports,Employees,Recruitment Instruction and Training,26-Apr-2016,TYNE AND WEAR SPORT,Training-all costs,35.00,0.00,35.00
Neighbourhood Services,Culture & Sport,Sports,Employees,Recruitment Instruction and Training,26-Apr-2016,TYNE AND WEAR SPORT,Training-all costs,35.00,0.00,35.00
Neighbourhood Services,Culture & Sport,Bp Auckland Town Hall Cafe,Supplies and Services,Provisions,26-Apr-2016,JR HOLLAND FOODSERVICE,Catering costs - provisions,80.87,0.00,80.87
Neighbourhood Services,Direct Services,Catering - Service Direct,Supplies and Services,Provisions,26-Apr-2016,FREEMAN CATERING BUTCH,Catering costs - provisions,59.79,0.00,59.79
Neighbourhood Services,Direct Services,Catering - Service Direct,Supplies and Services,Provisions,26-Apr-2016,FREEMAN CATERING BUTCH,Catering costs - provisions,46.94,0.00,46.94
Neighbourhood Services,Direct Services,Catering - Service Direct,Supplies and Services,Provisions,26-Apr-2016,BRAKE BROS LTD,Catering costs - provisions,49.78,0.00,49.78
Neighbourhood Services,Direct Services,C&G - North Grounds Maintenance,Supplies and Services,Newspapers Books and Periodicals,26-Apr-2016,GRALANDS WOODWORK SUPP,Books-school library,5.00,0.83,4.17
Resources,Financial Services,Purchasing,Supplies and Services,Newspapers Books and Periodicals,26-Apr-2016,Amazon UK Marketplace,Books-school library,28.99,4.83,24.16
Regeneration & Economic Development,Economic Development and Housing,Employability - Youth Contract,Supplies and Services,Clothing Uniforms and Laundry,26-Apr-2016,DALE CARE LTD,Clothing uniforms and laundry,46.50,0.00,46.50
Regeneration & Economic Development,Economic Development and Housing,Employability - Youth Contract,Supplies and Services,Miscellaneous Expenses,26-Apr-2016,SAINSBURYS 2199,Other expenses,56.18,0.00,56.18
Children and Adult Services,Childrens Services,Secure Management,Supplies and Services,Clothing Uniforms and Laundry,26-Apr-2016,NEW LOOK INTERNET,Clothing uniforms and laundry,67.95,0.00,67.95
Children and Adult Services,Childrens Services,Secure Management,Supplies and Services,Clothing Uniforms and Laundry,26-Apr-2016,RIVER ISLAND 400,Clothing uniforms and laundry,15.95,0.00,15.95
Children and Adult Services,Childrens Services,Secure Management,Supplies and Services,Clothing Uniforms and Laundry,26-Apr-2016,WWW.TOPSHOP.COM,Clothing uniforms and laundry,24.00,0.00,24.00
Children and Adult Services,Education,16-19 Education & Training,Supplies and Services,Postages,26-Apr-2016,POST OFFICE SHOP,Postages,112.99,0.00,112.99
Children and Adult Services,Education,Selby Cottage Childcare Centre,Supplies and Services,Provisions,27-Apr-2016,TESCO STORES 2278,Catering costs - provisions,8.99,0.00,8.99
Children and Adult Services,Education,Selby Cottage Childcare Centre,Supplies and Services,Provisions,27-Apr-2016,TESCO STORES 2278,Catering costs - provisions,8.05,0.00,8.05
Children and Adult Services,Childrens Services,Bishop Auckland 0 - 5,Supplies and Services,Newspapers Books and Periodicals,27-Apr-2016,Amazon UK Marketplace,Books-school library,18.95,0.00,18.95
Children and Adult Services,Childrens Services,Bishop Auckland and Barnard Castle Locality,Supplies and Services,Newspapers Books and Periodicals,27-Apr-2016,"Amazon Svcs Europe,SAR",Books-school library,17.85,0.00,17.85
Regeneration & Economic Development,Economic Development and Housing,Business Growth and Innovation General,Supplies and Services,Conference Expenses,27-Apr-2016,MILTON HILL HOUSE,Conferencesseminars fees etc,146.60,24.43,122.17
Regeneration & Economic Development,Economic Development and Housing,Business Growth and Innovation General,Transport,Public Transport,27-Apr-2016,GWR DIDCOT PKWY OT,Staff travelling,6.10,0.00,6.10
Children and Adult Services,Head of Adults,OP Management,Income,Fees and Charges,27-Apr-2016,WWW.MONEYCLAIM.GOV,Fees-legal,410.00,0.00,410.00
Neighbourhood Services,Direct Services,Catering - County Hall Restaurant,Supplies and Services,Provisions,27-Apr-2016,JR HOLLAND FOODSERVICE,Catering costs - provisions,75.73,0.00,75.73
Neighbourhood Services,Direct Services,Catering - County Hall Restaurant,Supplies and Services,Provisions,27-Apr-2016,JR HOLLAND FOODSERVICE,Catering costs - provisions,34.10,0.00,34.10
Neighbourhood Services,Direct Services,Catering - County Hall Restaurant,Supplies and Services,Provisions,27-Apr-2016,JR HOLLAND FOODSERVICE,Catering costs - provisions,31.35,0.00,31.35
Neighbourhood Services,Direct Services,Catering - County Hall Restaurant,Supplies and Services,Provisions,27-Apr-2016,BRAKE BROS LTD,Catering costs - provisions,242.03,0.00,242.03
Resources,I.C.T. Services,Domains,Supplies and Services,Subscriptions,27-Apr-2016,WEB NETWORKSOLUTIONS,Subscriptions,94.38,15.73,78.65
Children and Adult Services,Childrens Services,Secure Management,Supplies and Services,Clothing Uniforms and Laundry,27-Apr-2016,FLANNELSFASHION.,Clothing uniforms and laundry,115.99,0.00,115.99
Children and Adult Services,Childrens Services,Secure Management,Supplies and Services,Provisions,27-Apr-2016,TESCO STORES 6329,Catering costs - provisions,79.40,0.00,79.40
Neighbourhood Services,Direct Services,C&G - South Grounds Maintenance,Supplies and Services,Provisions,27-Apr-2016,J M RAINE,Catering costs - provisions,57.60,9.60,48.00
Neighbourhood Services,Culture & Sport,Hardwick Park Catering,Supplies and Services,Provisions,27-Apr-2016,JR HOLLAND FOODSERVICE,Catering costs - provisions,21.09,0.00,21.09
Neighbourhood Services,Culture & Sport,Hardwick Park Catering,Supplies and Services,Provisions,27-Apr-2016,BRAKE BROS LTD,Catering costs - provisions,104.64,17.44,87.20
Neighbourhood Services,Culture & Sport,Hardwick Park Catering,Supplies and Services,Provisions,27-Apr-2016,BRAKE BROS LTD,Catering costs - provisions,203.77,,203.77
Neighbourhood Services,Culture & Sport,Hardwick Park Catering,Supplies and Services,Provisions,27-Apr-2016,BRAKE BROS LTD,Catering costs - provisions,76.62,12.77,63.85
Neighbourhood Services,Culture & Sport,Hardwick Park Catering,Supplies and Services,Provisions,27-Apr-2016,BRAKE BROS LTD,Catering costs - provisions,51.09,,51.09
Resources,I.C.T. Services,Operations - System & Repairs Trading,Supplies and Services,Computers and Communications,27-Apr-2016,Amazon UK Marketplace,Computer hardware,32.39,0.00,32.39
Neighbourhood Services,Culture & Sport,Gala Theatre Stage School,Supplies and Services,Newspapers Books and Periodicals,27-Apr-2016,Amazon UK Marketplace,Books-school library,7.99,0.00,7.99
Neighbourhood Services,Culture & Sport,Gala Theatre Stage School,Supplies and Services,Newspapers Books and Periodicals,27-Apr-2016,Amazon UK Marketplace,Books-school library,11.90,0.00,11.90
Neighbourhood Services,Culture & Sport,Gala Theatre Stage School,Supplies and Services,Newspapers Books and Periodicals,27-Apr-2016,Amazon UK Marketplace,Books-school library,5.90,0.00,5.90
Neighbourhood Services,Culture & Sport,Gala Theatre Stage School,Supplies and Services,Newspapers Books and Periodicals,27-Apr-2016,Amazon UK Marketplace,Books-school library,7.10,0.00,7.10
Neighbourhood Services,Culture & Sport,Gala Theatre Stage School,Supplies and Services,Newspapers Books and Periodicals,27-Apr-2016,Amazon UK Marketplace,Books-school library,10.53,0.00,10.53
Neighbourhood Services,Culture & Sport,Gala Theatre Stage School,Supplies and Services,Newspapers Books and Periodicals,27-Apr-2016,Amazon UK Marketplace,Books-school library,12.69,0.00,12.69
Neighbourhood Services,Culture & Sport,Gala Theatre Stage School,Supplies and Services,Newspapers Books and Periodicals,27-Apr-2016,Amazon UK Marketplace,Books-school library,27.48,0.00,27.48
Neighbourhood Services,Culture & Sport,Gala Theatre Stage School,Supplies and Services,Newspapers Books and Periodicals,27-Apr-2016,Amazon UK Marketplace,Books-school library,12.99,0.00,12.99
Neighbourhood Services,Culture & Sport,Gala Theatre Stage School,Supplies and Services,Equipment and Materials,27-Apr-2016,WWW.PARTYDELIGHTS.CO.U,Other consumables,15.94,0.00,15.94
Neighbourhood Services,Culture & Sport,Gala Theatre Stage School,Supplies and Services,Provisions,27-Apr-2016,HALLOWEEN COSTUMES,Catering costs - provisions,34.48,0.00,34.48
Neighbourhood Services,Direct Services,Catering - Green Lane Canteen,Supplies and Services,Provisions,27-Apr-2016,JR HOLLAND FOODSERVICE,Catering costs - provisions,29.65,0.00,29.65
Neighbourhood Services,Direct Services,Catering - Green Lane Canteen,Supplies and Services,Provisions,27-Apr-2016,BRAKE BROS LTD,Catering costs - provisions,56.91,0.00,56.91
Children and Adult Services,Childrens Services,Tow Law CU,Supplies and Services,Provisions,27-Apr-2016,TESCO STORES 2371,Catering costs - provisions,237.65,0.00,237.65
Children and Adult Services,Head of Adults,Community Alcohol Service,Supplies and Services,Miscellaneous Expenses,27-Apr-2016,ARRIVA PASSENGER S,Other hired and contracted services,85.50,0.00,85.50
Resources,Legal & Democratic Services,Registrars Headquarters,Supplies and Services,Printing Stationery and Gen Off Exps,27-Apr-2016,Amazon UK Marketplace,Stationery,67.70,0.00,67.70
Neighbourhood Services,Direct Services,C&G - North Grounds Maintenance,Supplies and Services,Provisions,27-Apr-2016,J VAN VLIET GATESHEAD,Catering costs - provisions,57.12,9.52,47.60
Neighbourhood Services,Direct Services,Catering - Service Direct,Supplies and Services,Provisions,27-Apr-2016,JR HOLLAND FOODSERVICE,Catering costs - provisions,18.82,0.00,18.82
Neighbourhood Services,Direct Services,Catering - Service Direct,Supplies and Services,Provisions,27-Apr-2016,JR HOLLAND FOODSERVICE,Catering costs - provisions,13.45,0.00,13.45
Neighbourhood Services,Direct Services,Catering - Service Direct,Supplies and Services,Provisions,27-Apr-2016,BRAKE BROS LTD,Catering costs - provisions,67.08,11.18,55.90
Neighbourhood Services,Direct Services,Catering - Service Direct,Supplies and Services,Provisions,27-Apr-2016,BRAKE BROS LTD,Catering costs - provisions,63.86,,63.86
Neighbourhood Services,Culture & Sport,Positive Futures,Supplies and Services,Provisions,27-Apr-2016,CO-OP GROUP 010490,Catering costs - provisions,1.38,0.00,1.38
Neighbourhood Services,Culture & Sport,Hardwick Park Catering,Supplies and Services,Equipment and Materials,27-Apr-2016,Amazon EU,Materials,14.72,0.00,14.72
Neighbourhood Services,Culture & Sport,Woodhouse Close Leisure Complex,Supplies and Services,Provisions,27-Apr-2016,JR HOLLAND FOODSERVICE,Catering costs - provisions,9.16,0.00,9.16
Neighbourhood Services,Culture & Sport,Commercial Management,Supplies and Services,Advertising,27-Apr-2016,GOOGLE ADWS2146659444,Advertising other than for staff,250.00,0.00,250.00
Neighbourhood Services,Technical Services,Strategic Highways - Drainage and Coast Protection,Third Party Payments,Rendered by Private Contractors,27-Apr-2016,WALLINGFORD HYDROS,Payments to sub-contractors,120.00,20.00,100.00
Children and Adult Services,Childrens Services,Secure Management,Supplies and Services,Clothing Uniforms and Laundry,27-Apr-2016,gethelabel.com,Clothing uniforms and laundry,93.94,0.00,93.94
Children and Adult Services,Childrens Services,Bishop Auckland 0 - 5,Supplies and Services,Newspapers Books and Periodicals,28-Apr-2016,Amazon UK Marketplace,Books-school library,3.21,0.00,3.21
Resources,I.C.T. Services,Domains,Supplies and Services,Subscriptions,28-Apr-2016,WEB NETWORKSOLUTIONS,Subscriptions,2.60,0.00,2.60
Children and Adult Services,Childrens Services,Bishop Auckland 0 - 5,Supplies and Services,Newspapers Books and Periodicals,28-Apr-2016,Amazon EU,Books-school library,19.51,0.00,19.51
Children and Adult Services,Childrens Services,Bishop Auckland and Barnard Castle Locality,Supplies and Services,Newspapers Books and Periodicals,28-Apr-2016,Amazon EU,Books-school library,19.51,0.00,19.51
Children and Adult Services,Childrens Services,Bishop Auckland 0 - 5,Supplies and Services,Newspapers Books and Periodicals,28-Apr-2016,Amazon UK Marketplace,Books-school library,2.50,0.00,2.50
Children and Adult Services,Childrens Services,Bishop Auckland 0 - 5,Supplies and Services,Newspapers Books and Periodicals,28-Apr-2016,Amazon UK Marketplace,Books-school library,25.38,0.00,25.38
Children and Adult Services,Childrens Services,Bishop Auckland 0 - 5,Supplies and Services,Printing Stationery and Gen Off Exps,28-Apr-2016,DEMCO EUROPE,Stationery,76.80,0.00,76.80
Children and Adult Services,Education,Shildon Childcare,Supplies and Services,Equipment and Materials,28-Apr-2016,Amazon UK Marketplace,Toys,12.99,0.00,12.99
Regeneration & Economic Development,Economic Development and Housing,Business Growth and Innovation General,Supplies and Services,Advertising,28-Apr-2016,ADROLL,Advertising other than for staff,18.64,0.00,18.64
Regeneration & Economic Development,Economic Development and Housing,Business Growth and Innovation General,Supplies and Services,Equipment and Materials,28-Apr-2016,AUDIENSE SOCIALBRO,Other consumables,29.48,4.91,24.57
Resources,Financial Services,Collections,Income,Fees and Charges,28-Apr-2016,WWW.MONEYCLAIM.GOV,Fees-legal,410.00,0.00,410.00
Resources,Financial Services,Collections,Income,Fees and Charges,28-Apr-2016,WWW.MONEYCLAIM.GOV,Fees-legal,410.00,0.00,410.00
Neighbourhood Services,Direct Services,Catering - County Hall Restaurant,Supplies and Services,Provisions,28-Apr-2016,JR HOLLAND FOODSERVICE,Catering costs - provisions,105.26,0.00,105.26
Neighbourhood Services,Direct Services,Catering - County Hall Restaurant,Supplies and Services,Provisions,28-Apr-2016,JR HOLLAND FOODSERVICE,Catering costs - provisions,26.80,0.00,26.80
Neighbourhood Services,Direct Services,Catering - County Hall Restaurant,Supplies and Services,Provisions,28-Apr-2016,JR HOLLAND FOODSERVICE,Catering costs - provisions,13.16,0.00,13.16
Neighbourhood Services,Culture & Sport,Gala Theatre - Catering etc,Supplies and Services,Provisions,28-Apr-2016,JR HOLLAND FOODSERVICE,Catering costs - provisions,47.67,0.00,47.67
Neighbourhood Services,Culture & Sport,Gala Theatre - Catering etc,Supplies and Services,Provisions,28-Apr-2016,JR HOLLAND FOODSERVICE,Catering costs - provisions,3.41,0.00,3.41
Children and Adult Services,Childrens Services,LAC & Permanence Team 1 Aycliffe,Supplies and Services,Equipment and Materials,28-Apr-2016,HARTLEPOOL BC CNP,Equipment-purchase and rental,14.25,0.00,14.25
Neighbourhood Services,Culture & Sport,Local Delivery-Libraries,Supplies and Services,Newspapers Books and Periodicals,28-Apr-2016,Amazon EU,Books-school library,10.98,0.00,10.98
Neighbourhood Services,Direct Services,C&G - North Grounds Maintenance,Supplies and Services,Equipment and Materials,28-Apr-2016,NEW ROW FARM NURSERIES,Misc equipment tools and materials,495.00,82.50,412.50
Neighbourhood Services,Direct Services,C&G - North Grounds Maintenance,Supplies and Services,Equipment and Materials,28-Apr-2016,HARELAW SAWMILL,Equipment-purchase and rental,106.82,17.80,89.02
Children and Adult Services,Childrens Services,Secure Management,Supplies and Services,Newspapers Books and Periodicals,28-Apr-2016,Amazon UK Marketplace,Books-school library,19.56,0.00,19.56
Children and Adult Services,Childrens Services,Secure Management,Supplies and Services,Provisions,28-Apr-2016,TESCO STORES 6329,Catering costs - provisions,85.83,0.00,85.83
Children and Adult Services,Childrens Services,Secure Management,Supplies and Services,Clothing Uniforms and Laundry,28-Apr-2016,WWW.FOOTASYLUM.COM,Clothing uniforms and laundry,-34.99,0.00,-34.99
Neighbourhood Services,Direct Services,C&G - South Grounds Maintenance,Supplies and Services,Equipment and Materials,28-Apr-2016,HORNS GARDEN CENTR,Equipment-purchase and rental,107.84,0.00,107.84
Neighbourhood Services,Culture & Sport,Hardwick Park Catering,Supplies and Services,Provisions,28-Apr-2016,JR HOLLAND FOODSERVICE,Catering costs - provisions,30.59,0.00,30.59
Resources,I.C.T. Services,Operations - System & Repairs Team,Supplies and Services,Computers and Communications,28-Apr-2016,Amazon UK Marketplace,Computer hardware,5.76,0.00,5.76
Resources,I.C.T. Services,Operations - System & Repairs Trading,Supplies and Services,Computers and Communications,28-Apr-2016,WWW.ALIEXPRESS.COM,Computer hardware,11.53,0.00,11.53
Neighbourhood Services,Culture & Sport,Gala Theatre Stage School,Supplies and Services,Newspapers Books and Periodicals,28-Apr-2016,Amazon UK Marketplace,Books-school library,9.24,0.00,9.24
Neighbourhood Services,Culture & Sport,Gala Theatre Stage School,Supplies and Services,Newspapers Books and Periodicals,28-Apr-2016,Amazon UK Marketplace,Books-school library,4.98,0.00,4.98
Neighbourhood Services,Culture & Sport,Gala Theatre Stage School,Supplies and Services,Newspapers Books and Periodicals,28-Apr-2016,Amazon UK Marketplace,Books-school library,5.94,0.00,5.94
Neighbourhood Services,Culture & Sport,Gala Theatre Stage School,Supplies and Services,Newspapers Books and Periodicals,28-Apr-2016,Amazon UK Marketplace,Books-school library,20.52,0.00,20.52
Children and Adult Services,Education,Inspection-HQ,Supplies and Services,Conference Expenses,28-Apr-2016,DUNSLEY HALL HOTEL,Conferencesseminars fees etc,221.85,36.98,184.87
Neighbourhood Services,Direct Services,C&G - South Grounds Maintenance,Supplies and Services,Equipment and Materials,28-Apr-2016,SCREWFIX,Equipment-purchase and rental,44.98,0.00,44.98
Neighbourhood Services,Direct Services,C&G - South Grounds Maintenance,Supplies and Services,Equipment and Materials,28-Apr-2016,SCREWFIX,Equipment-purchase and rental,17.98,0.00,17.98
Children and Adult Services,Childrens Services,Coxhoe Satelite Home,Supplies and Services,Newspapers Books and Periodicals,28-Apr-2016,Amazon UK Marketplace,Books-school library,34.99,0.00,34.99
Children and Adult Services,Childrens Services,Coxhoe Satelite Home,Supplies and Services,Provisions,28-Apr-2016,ASDA SUPERSTORE 4987,Catering costs - provisions,16.00,0.00,16.00
Neighbourhood Services,Direct Services,C&G - South Grounds Maintenance,Transport,Running Costs of Vehicles,28-Apr-2016,SNOWBALLS (RAILWAY,Vehicle running expenses,12.70,0.00,12.70
Neighbourhood Services,Direct Services,Fleet - Hackworth Road Fleet,Transport,Running Costs of Vehicles,28-Apr-2016,DVLA VEHICLE TAX,Vehicle Excise Duty (VED),167.50,0.00,167.50
Neighbourhood Services,Direct Services,Fleet - Chilton Fleet,Transport,Running Costs of Vehicles,28-Apr-2016,DVLA VEHICLE TAX,Vehicle Excise Duty (VED),167.50,0.00,167.50
Neighbourhood Services,Direct Services,Fleet - Chilton Fleet,Transport,Running Costs of Vehicles,28-Apr-2016,DVLA VEHICLE TAX,Vehicle Excise Duty (VED),167.50,0.00,167.50
Neighbourhood Services,Direct Services,Fleet - Morrison Busty Fleet,Transport,Running Costs of Vehicles,28-Apr-2016,DVLA VEHICLE TAX,Vehicle Excise Duty (VED),167.50,0.00,167.50
Neighbourhood Services,Direct Services,Fleet - Chilton Fleet,Transport,Running Costs of Vehicles,28-Apr-2016,DVLA VEHICLE TAX,Vehicle Excise Duty (VED),167.50,0.00,167.50
Neighbourhood Services,Direct Services,Fleet - Chilton Fleet,Transport,Running Costs of Vehicles,28-Apr-2016,DVLA VEHICLE TAX,Vehicle Excise Duty (VED),167.50,0.00,167.50
Resources,I.C.T. Services,ICT Telephony Recharges,Supplies and Services,Telephones,28-Apr-2016,Amazon UK Marketplace,Telephones general-all costs,23.92,0.00,23.92
Resources,I.C.T. Services,Internal Applications Group,Supplies and Services,Computers and Communications,28-Apr-2016,GOOGLE Google Play,Computer hardware,17.11,0.00,17.11
Children and Adult Services,Childrens Services,Peterlee and Seaham Locality,Supplies and Services,Equipment and Materials,28-Apr-2016,TESCO - Tescopay,Other consumables,30.00,0.00,30.00
Children and Adult Services,Childrens Services,Peterlee and Seaham Locality,Supplies and Services,Equipment and Materials,28-Apr-2016,TESCO DIRECT,Other consumables,43.00,0.00,43.00
Neighbourhood Services,Culture & Sport,Positive Futures,Supplies and Services,Provisions,28-Apr-2016,CO-OP GROUP 010490,Catering costs - provisions,10.01,0.00,10.01
Regeneration & Economic Development,Economic Development and Housing,B& B - Temp Accom,Supplies and Services,Grants to Voluntary Organisations,28-Apr-2016,AYCLIFFE BIZ,Accommodation assistance,70.00,0.00,70.00
Regeneration & Economic Development,Economic Development and Housing,B& B - Temp Accom,Supplies and Services,Grants to Voluntary Organisations,28-Apr-2016,AYCLIFFE BIZ,Accommodation assistance,35.00,0.00,35.00
Regeneration & Economic Development,Economic Development and Housing,B& B - Temp Accom,Supplies and Services,Grants to Voluntary Organisations,28-Apr-2016,AYCLIFFE BIZ,Accommodation assistance,210.00,0.00,210.00
Neighbourhood Services,Culture & Sport,Woodhouse Close Leisure Complex,Supplies and Services,Provisions,28-Apr-2016,JR HOLLAND FOODSERVICE,Catering costs - provisions,12.11,0.00,12.11
Neighbourhood Services,Culture & Sport,Woodhouse Close Leisure Complex,Supplies and Services,Provisions,28-Apr-2016,BRAKE BROS LTD,Catering costs - provisions,56.94,9.49,47.45
Neighbourhood Services,Culture & Sport,Woodhouse Close Leisure Complex,Supplies and Services,Provisions,28-Apr-2016,BRAKE BROS LTD,Catering costs - provisions,71.33,,71.33
Regeneration & Economic Development,Economic Development and Housing,Employability - Youth Contract,Supplies and Services,Equipment and Materials,28-Apr-2016,DVLA DRIVER ONLINE,Other consumables,34.00,0.00,34.00
Children and Adult Services,Childrens Services,Peterlee and Seaham Locality,Supplies and Services,Clothing Uniforms and Laundry,28-Apr-2016,ARGOS RETAIL GROUP,Clothing uniforms and laundry,139.98,0.00,139.98
Regeneration & Economic Development,Economic Development and Housing,Business Growth and Innovation General,Supplies and Services,Computers and Communications,28-Apr-2016,FONTS.COM,Computer hardware,9.60,1.60,8.00
Children and Adult Services,Education,16-19 Education & Training,Supplies and Services,Postages,28-Apr-2016,POST OFFICE SHOP,Postages,3.00,0.50,2.50
Children and Adult Services,Education,16-19 Education & Training,Supplies and Services,Postages,28-Apr-2016,POST OFFICE SHOP,Postages,384.99,,384.99
Children and Adult Services,Education,16-19 Education & Training,Supplies and Services,Postages,28-Apr-2016,POST OFFICE SHOP,Postages,3.00,0.50,2.50
Children and Adult Services,Head of Adults,OP/PD Durham & CLS,Supplies and Services,Postages,28-Apr-2016,POST OFFICE SHOP,Postages,54.99,,54.99
Children and Adult Services,Childrens Services,Bishop Auckland 0 - 5,Supplies and Services,Newspapers Books and Periodicals,29-Apr-2016,Amazon UK Marketplace,Books-school library,1.37,0.00,1.37
Regeneration & Economic Development,Economic Development and Housing,Business Growth and Innovation General,Supplies and Services,Advertising,29-Apr-2016,ADROLL,Advertising other than for staff,0.51,0.00,0.51
Regeneration & Economic Development,Economic Development and Housing,International Relations,Supplies and Services,Subsistence,29-Apr-2016,DB FERNVERKEHR AG-SIZ,Subsistence,0.55,0.00,0.55
Resources,I.C.T. Services,Internal Applications Group,Supplies and Services,Computers and Communications,29-Apr-2016,GOOGLE Google Play,Computer hardware,0.47,0.00,0.47
Children and Adult Services,Childrens Services,Bishop Auckland 0 - 5,Supplies and Services,Newspapers Books and Periodicals,29-Apr-2016,Amazon UK Marketplace,Books-school library,18.78,0.00,18.78
Children and Adult Services,Childrens Services,Bishop Auckland 0 - 5,Supplies and Services,Newspapers Books and Periodicals,29-Apr-2016,Amazon UK Marketplace,Books-school library,2.17,0.00,2.17
Children and Adult Services,Childrens Services,Bishop Auckland 0 - 5,Supplies and Services,Newspapers Books and Periodicals,29-Apr-2016,Amazon UK Marketplace,Books-school library,2.98,0.00,2.98
Children and Adult Services,Childrens Services,Secure Management,Supplies and Services,Provisions,29-Apr-2016,TESCO DELIVERY SAVER2,Catering costs - provisions,6.00,0.00,6.00
Resources,Financial Services,Collections,Income,Fees and Charges,29-Apr-2016,WWW.MONEYCLAIM.GOV,Fees-legal,909.76,0.00,909.76
Children and Adult Services,Childrens Services,Durham 0 - 5,Supplies and Services,Newspapers Books and Periodicals,29-Apr-2016,Amazon UK Marketplace,Books-school library,56.25,0.00,56.25
Children and Adult Services,Childrens Services,Durham 0 - 5,Supplies and Services,Newspapers Books and Periodicals,29-Apr-2016,Amazon UK Marketplace,Books-school library,114.80,0.00,114.80
Children and Adult Services,Childrens Services,Peterlee and Seaham Locality,Supplies and Services,Miscellaneous Expenses,29-Apr-2016,ADVENTURE VALLEY,Recreational exps outings parties,20.90,3.48,17.42
Resources,Legal & Democratic Services,Charter Trust,Supplies and Services,Equipment and Materials,29-Apr-2016,DURHAM PIPE & TOBACCO,Other consumables,15.00,0.00,15.00
Children and Adult Services,Head of Adults,Substance Misuse,Supplies and Services,Equipment and Materials,29-Apr-2016,GO NORTH EAST - V/T,Other consumables,105.84,0.00,105.84
Children and Adult Services,Head of Adults,Substance Misuse,Supplies and Services,Miscellaneous Expenses,29-Apr-2016,ARRIVA PASSENGER S,Other expenses,92.00,0.00,92.00
Children and Adult Services,Childrens Services,Secure Management,Supplies and Services,Provisions,29-Apr-2016,TESCO STORES 6329,Catering costs - provisions,77.64,0.00,77.64
Resources,I.C.T. Services,IT Renewals Fund,Supplies and Services,Printing Stationery and Gen Off Exps,29-Apr-2016,Amazon UK Marketplace,Stationery,1.77,0.00,1.77
Resources,I.C.T. Services,Operations - System & Repairs Trading,Supplies and Services,Computers and Communications,29-Apr-2016,Amazon UK Marketplace,Computer hardware,8.00,0.00,8.00
Neighbourhood Services,Culture & Sport,Gala Theatre Stage School,Supplies and Services,Newspapers Books and Periodicals,29-Apr-2016,Amazon UK Marketplace,Books-school library,6.97,0.00,6.97
Neighbourhood Services,Culture & Sport,Gala Theatre Stage School,Supplies and Services,Newspapers Books and Periodicals,29-Apr-2016,Amazon UK Marketplace,Books-school library,3.64,0.00,3.64
Neighbourhood Services,Culture & Sport,Gala Theatre Stage School,Supplies and Services,Newspapers Books and Periodicals,29-Apr-2016,Amazon UK Marketplace,Books-school library,10.00,0.00,10.00
Neighbourhood Services,Culture & Sport,Gala Theatre Stage School,Supplies and Services,Newspapers Books and Periodicals,29-Apr-2016,Amazon UK Marketplace,Books-school library,10.98,0.00,10.98
Neighbourhood Services,Culture & Sport,Gala Theatre Stage School,Supplies and Services,Newspapers Books and Periodicals,29-Apr-2016,Amazon UK Marketplace,Books-school library,3.93,0.00,3.93
Neighbourhood Services,Culture & Sport,Gala Theatre Stage School,Supplies and Services,Newspapers Books and Periodicals,29-Apr-2016,Amazon UK Marketplace,Books-school library,8.98,0.00,8.98
Neighbourhood Services,Direct Services,Fleet - Chilton Fleet,Transport,Running Costs of Vehicles,29-Apr-2016,POST OFFICE COUNTER,Vehicle Excise Duty (VED),282.50,0.00,282.50
Neighbourhood Services,Direct Services,Fleet - Meadowfield Fleet,Transport,Running Costs of Vehicles,29-Apr-2016,POST OFFICE COUNTER,Vehicle Excise Duty (VED),167.50,0.00,167.50
Neighbourhood Services,Direct Services,Fleet - Chilton Fleet,Transport,Running Costs of Vehicles,29-Apr-2016,POST OFFICE COUNTER,Vehicle Excise Duty (VED),652.50,0.00,652.50
Children and Adult Services,Childrens Services,Coxhoe Satelite Home,Supplies and Services,Provisions,29-Apr-2016,ALDI,Catering costs - provisions,70.47,0.00,70.47
Children and Adult Services,Childrens Services,Coxhoe Satelite Home,Supplies and Services,Provisions,29-Apr-2016,TESCO STORES 2371,Catering costs - provisions,33.46,0.00,33.46
Regeneration & Economic Development,Spatial Policy Planning Assets & Environment,North Pennines Core,Supplies and Services,Provisions,29-Apr-2016,SCOTMID CO-OP STANHOPE,Catering costs - provisions,43.39,0.00,43.39
Neighbourhood Services,Direct Services,Fleet - Meadowfield Fleet,Transport,Running Costs of Vehicles,29-Apr-2016,DVLA VEHICLE TAX,Vehicle Excise Duty (VED),167.50,0.00,167.50
Neighbourhood Services,Direct Services,Fleet - Meadowfield Fleet,Transport,Running Costs of Vehicles,29-Apr-2016,DVLA VEHICLE TAX,Vehicle Excise Duty (VED),167.50,0.00,167.50
Neighbourhood Services,Direct Services,Fleet - Hackworth Road Fleet,Transport,Running Costs of Vehicles,29-Apr-2016,DVLA VEHICLE TAX,Vehicle Excise Duty (VED),167.50,0.00,167.50
Neighbourhood Services,Direct Services,Fleet - Meadowfield Fleet,Transport,Running Costs of Vehicles,29-Apr-2016,DVLA VEHICLE TAX,Vehicle Excise Duty (VED),167.50,0.00,167.50
Neighbourhood Services,Direct Services,Fleet - Meadowfield Fleet,Transport,Running Costs of Vehicles,29-Apr-2016,DVLA VEHICLE TAX,Vehicle Excise Duty (VED),167.50,0.00,167.50
Neighbourhood Services,Direct Services,Fleet - Meadowfield Fleet,Transport,Running Costs of Vehicles,29-Apr-2016,DVLA VEHICLE TAX,Vehicle Excise Duty (VED),167.50,0.00,167.50
Neighbourhood Services,Direct Services,Fleet - Meadowfield Fleet,Transport,Running Costs of Vehicles,29-Apr-2016,DVLA VEHICLE TAX,Vehicle Excise Duty (VED),167.50,0.00,167.50
Neighbourhood Services,Direct Services,Fleet - Meadowfield Fleet,Transport,Running Costs of Vehicles,29-Apr-2016,DVLA VEHICLE TAX,Vehicle Excise Duty (VED),167.50,0.00,167.50
Neighbourhood Services,Direct Services,Fleet - Hackworth Road Fleet,Transport,Running Costs of Vehicles,29-Apr-2016,WWW.DVLA.GOV.UK,Vehicle Excise Duty (VED),167.50,0.00,167.50
Neighbourhood Services,Direct Services,Fleet - Meadowfield Fleet,Transport,Running Costs of Vehicles,29-Apr-2016,WWW.DVLA.GOV.UK,Vehicle Excise Duty (VED),232.50,0.00,232.50
Neighbourhood Services,Direct Services,Fleet - Meadowfield Fleet,Transport,Running Costs of Vehicles,29-Apr-2016,WWW.DVLA.GOV.UK,Vehicle Excise Duty (VED),167.50,0.00,167.50
Neighbourhood Services,Direct Services,Fleet - Hackworth Road Fleet,Transport,Contract Hire,29-Apr-2016,WWW.DVLA.GOV.UK,Pupils-transport to play fields etc,232.50,0.00,232.50
Neighbourhood Services,Direct Services,Fleet - Hackworth Road Fleet,Transport,Running Costs of Vehicles,29-Apr-2016,WWW.DVLA.GOV.UK,Vehicle Excise Duty (VED),232.50,0.00,232.50
Neighbourhood Services,Direct Services,Fleet - Meadowfield Fleet,Transport,Running Costs of Vehicles,29-Apr-2016,WWW.DVLA.GOV.UK,Vehicle Excise Duty (VED),232.50,0.00,232.50
Neighbourhood Services,Direct Services,Fleet - Meadowfield Fleet,Transport,Running Costs of Vehicles,29-Apr-2016,WWW.DVLA.GOV.UK,Vehicle Excise Duty (VED),232.50,0.00,232.50
Neighbourhood Services,Direct Services,Fleet - Morrison Busty Fleet,Transport,Running Costs of Vehicles,29-Apr-2016,WWW.DVLA.GOV.UK,Vehicle Excise Duty (VED),232.50,0.00,232.50
Neighbourhood Services,Direct Services,Fleet - Meadowfield Fleet,Transport,Running Costs of Vehicles,29-Apr-2016,WWW.DVLA.GOV.UK,Vehicle Excise Duty (VED),232.50,0.00,232.50
Neighbourhood Services,Direct Services,Fleet - Meadowfield Fleet,Transport,Running Costs of Vehicles,29-Apr-2016,WWW.DVLA.GOV.UK,Vehicle Excise Duty (VED),232.50,0.00,232.50
Neighbourhood Services,Direct Services,Fleet - Meadowfield Fleet,Transport,Running Costs of Vehicles,29-Apr-2016,WWW.DVLA.GOV.UK,Vehicle Excise Duty (VED),232.50,0.00,232.50
Neighbourhood Services,Direct Services,Fleet - Meadowfield Fleet,Transport,Running Costs of Vehicles,29-Apr-2016,WWW.DVLA.GOV.UK,Vehicle Excise Duty (VED),232.50,0.00,232.50
Neighbourhood Services,Direct Services,Fleet - Meadowfield Fleet,Transport,Running Costs of Vehicles,29-Apr-2016,WWW.DVLA.GOV.UK,Vehicle Excise Duty (VED),232.50,0.00,232.50
Neighbourhood Services,Direct Services,Fleet - Hackworth Road Fleet,Transport,Running Costs of Vehicles,29-Apr-2016,WWW.DVLA.GOV.UK,Vehicle Excise Duty (VED),352.50,0.00,352.50
Neighbourhood Services,Direct Services,Fleet - Hackworth Road Fleet,Transport,Running Costs of Vehicles,29-Apr-2016,WWW.DVLA.GOV.UK,Vehicle Excise Duty (VED),652.50,0.00,652.50
Neighbourhood Services,Direct Services,Fleet - Morrison Busty Fleet,Transport,Running Costs of Vehicles,29-Apr-2016,WWW.DVLA.GOV.UK,Vehicle Excise Duty (VED),652.50,0.00,652.50
Neighbourhood Services,Direct Services,Fleet - Hackworth Road Fleet,Transport,Running Costs of Vehicles,29-Apr-2016,WWW.DVLA.GOV.UK,Vehicle Excise Duty (VED),652.50,0.00,652.50
Neighbourhood Services,Direct Services,Fleet - Morrison Busty Fleet,Transport,Running Costs of Vehicles,29-Apr-2016,WWW.DVLA.GOV.UK,Vehicle Excise Duty (VED),652.50,0.00,652.50
Neighbourhood Services,Direct Services,Fleet - Meadowfield Fleet,Transport,Running Costs of Vehicles,29-Apr-2016,WWW.DVLA.GOV.UK,Vehicle Excise Duty (VED),652.50,0.00,652.50
Neighbourhood Services,Direct Services,Fleet - Chilton Fleet,Transport,Running Costs of Vehicles,29-Apr-2016,WWW.DVLA.GOV.UK,Vehicle Excise Duty (VED),652.50,0.00,652.50
Neighbourhood Services,Direct Services,Fleet - Chilton Fleet,Transport,Running Costs of Vehicles,29-Apr-2016,WWW.DVLA.GOV.UK,Vehicle Excise Duty (VED),652.50,0.00,652.50
Neighbourhood Services,Direct Services,Fleet - Chilton Fleet,Transport,Running Costs of Vehicles,29-Apr-2016,WWW.DVLA.GOV.UK,Vehicle Excise Duty (VED),652.50,0.00,652.50
Neighbourhood Services,Direct Services,Fleet - Morrison Busty Fleet,Transport,Running Costs of Vehicles,29-Apr-2016,WWW.DVLA.GOV.UK,Vehicle Excise Duty (VED),167.50,0.00,167.50
Neighbourhood Services,Direct Services,Fleet - Chilton Fleet,Transport,Running Costs of Vehicles,29-Apr-2016,WWW.DVLA.GOV.UK,Vehicle Excise Duty (VED),212.50,0.00,212.50
Neighbourhood Services,Direct Services,Fleet - Meadowfield Fleet,Transport,Running Costs of Vehicles,29-Apr-2016,WWW.DVLA.GOV.UK,Vehicle Excise Duty (VED),232.50,0.00,232.50
Neighbourhood Services,Direct Services,Fleet - Meadowfield Fleet,Transport,Running Costs of Vehicles,29-Apr-2016,WWW.DVLA.GOV.UK,Vehicle Excise Duty (VED),232.50,0.00,232.50
Neighbourhood Services,Direct Services,Fleet - Meadowfield Fleet,Transport,Running Costs of Vehicles,29-Apr-2016,WWW.DVLA.GOV.UK,Vehicle Excise Duty (VED),232.50,0.00,232.50
Neighbourhood Services,Direct Services,Fleet - Meadowfield Fleet,Transport,Running Costs of Vehicles,29-Apr-2016,WWW.DVLA.GOV.UK,Vehicle Excise Duty (VED),232.50,0.00,232.50
Neighbourhood Services,Direct Services,Fleet - Meadowfield Fleet,Transport,Running Costs of Vehicles,29-Apr-2016,WWW.DVLA.GOV.UK,Vehicle Excise Duty (VED),232.50,0.00,232.50
Neighbourhood Services,Direct Services,Fleet - Meadowfield Fleet,Transport,Running Costs of Vehicles,29-Apr-2016,WWW.DVLA.GOV.UK,Vehicle Excise Duty (VED),232.50,0.00,232.50
Neighbourhood Services,Direct Services,Fleet - Meadowfield Fleet,Transport,Running Costs of Vehicles,29-Apr-2016,WWW.DVLA.GOV.UK,Vehicle Excise Duty (VED),232.50,0.00,232.50
Neighbourhood Services,Direct Services,Fleet - Meadowfield Fleet,Transport,Running Costs of Vehicles,29-Apr-2016,WWW.DVLA.GOV.UK,Vehicle Excise Duty (VED),232.50,0.00,232.50
Neighbourhood Services,Direct Services,Fleet - Meadowfield Fleet,Transport,Running Costs of Vehicles,29-Apr-2016,WWW.DVLA.GOV.UK,Vehicle Excise Duty (VED),232.50,0.00,232.50
Neighbourhood Services,Direct Services,Fleet - Meadowfield Fleet,Transport,Running Costs of Vehicles,29-Apr-2016,WWW.DVLA.GOV.UK,Vehicle Excise Duty (VED),232.50,0.00,232.50
Neighbourhood Services,Direct Services,Fleet - Meadowfield Fleet,Transport,Running Costs of Vehicles,29-Apr-2016,WWW.DVLA.GOV.UK,Vehicle Excise Duty (VED),232.50,0.00,232.50
Neighbourhood Services,Direct Services,Fleet - Meadowfield Fleet,Transport,Running Costs of Vehicles,29-Apr-2016,WWW.DVLA.GOV.UK,Vehicle Excise Duty (VED),232.50,0.00,232.50
Neighbourhood Services,Direct Services,Fleet - Chilton Fleet,Transport,Running Costs of Vehicles,29-Apr-2016,WWW.DVLA.GOV.UK,Vehicle Excise Duty (VED),232.50,0.00,232.50
Neighbourhood Services,Direct Services,Fleet - Meadowfield Fleet,Transport,Running Costs of Vehicles,29-Apr-2016,WWW.DVLA.GOV.UK,Vehicle Excise Duty (VED),232.50,0.00,232.50
Neighbourhood Services,Direct Services,Fleet - Meadowfield Fleet,Transport,Running Costs of Vehicles,29-Apr-2016,WWW.DVLA.GOV.UK,Vehicle Excise Duty (VED),232.50,0.00,232.50
Neighbourhood Services,Direct Services,Fleet - Morrison Busty Fleet,Transport,Running Costs of Vehicles,29-Apr-2016,WWW.DVLA.GOV.UK,Vehicle Excise Duty (VED),652.50,0.00,652.50
Neighbourhood Services,Direct Services,Fleet - Hackworth Road Fleet,Transport,Running Costs of Vehicles,29-Apr-2016,WWW.DVLA.GOV.UK,Vehicle Excise Duty (VED),652.50,0.00,652.50
Neighbourhood Services,Direct Services,Fleet - Chilton Fleet,Transport,Running Costs of Vehicles,29-Apr-2016,WWW.DVLA.GOV.UK,Vehicle Excise Duty (VED),652.50,0.00,652.50
Neighbourhood Services,Direct Services,Fleet - Hackworth Road Fleet,Transport,Running Costs of Vehicles,29-Apr-2016,WWW.DVLA.GOV.UK,Vehicle Excise Duty (VED),652.50,0.00,652.50
Neighbourhood Services,Direct Services,Fleet - Chilton Fleet,Transport,Running Costs of Vehicles,29-Apr-2016,WWW.DVLA.GOV.UK,Vehicle Excise Duty (VED),652.50,0.00,652.50
Neighbourhood Services,Direct Services,Fleet - Meadowfield Fleet,Transport,Running Costs of Vehicles,29-Apr-2016,WWW.DVLA.GOV.UK,Vehicle Excise Duty (VED),652.50,0.00,652.50
Resources,I.C.T. Services,ICT Telephony Recharges,Supplies and Services,Telephones,29-Apr-2016,Amazon UK Marketplace,Telephones general-all costs,89.70,0.00,89.70
Children and Adult Services,Childrens Services,Peterlee and Seaham Locality,Supplies and Services,Clothing Uniforms and Laundry,29-Apr-2016,ARGOS RETAIL GROUP,Clothing uniforms and laundry,43.93,0.00,43.93
Neighbourhood Services,Culture & Sport,Positive Futures,Supplies and Services,Provisions,29-Apr-2016,W M MORRISONS,Catering costs - provisions,17.61,0.00,17.61
Regeneration & Economic Development,Economic Development and Housing,Syrian Refugee Humanitarian Support,Supplies and Services,Miscellaneous Expenses,29-Apr-2016,ONE STOP 2969,Other expenses,80.00,0.00,80.00
Resources,Financial Services,Purchasing,Supplies and Services,Equipment and Materials,29-Apr-2016,WWW.ALPLAS.COM,Equipment-purchase and rental,295.74,49.29,246.45
Children and Adult Services,Childrens Services,Bishop Auckland and Barnard Castle Locality,Supplies and Services,Newspapers Books and Periodicals,30-Apr-2016,Amazon UK Marketplace,Books-school library,6.98,0.00,6.98
Children and Adult Services,Education,Shildon Childcare,Supplies and Services,Equipment and Materials,30-Apr-2016,Amazon UK Marketplace,Toys,1.70,0.00,1.70
Resources,Financial Services,Purchasing,Supplies and Services,Newspapers Books and Periodicals,30-Apr-2016,Amazon EU,Books-school library,18.98,3.16,15.82
